"Body","BodyName","InvoiceDate","ClearanceDate","UniqueReference","SupplierName","SupplierRefNo","Amount","DepartmentExpenseArea","ExpenseType","ExpenseCode","ExtendedDescription","AccountHolder","MerchantCategory"
"http://statistics.data.gov.uk/id/local-authority/43UM","WOKING BOROUGH COUNCIL","01/10/2022","01/10/2022","GPC/00020807","HALFORDS 0479","PROCUREMENT CARD","83.32","HOUSING SERVICES - HOME IMPS & BEN AGENCY","HANDYPERSON MATERIALS","G201","SAT NAV","GARY COCKBURN","BICYCLE SHOPS/SALES/SERVICE"
"http://statistics.data.gov.uk/id/local-authority/43UM","WOKING BOROUGH COUNCIL","02/10/2022","02/10/2022","GPC/00020802","BOOKERECOMM","PROCUREMENT CARD","12.59","INDEPENDENT LIVING SERVICES - MEALS SERVICE -THE VYNE","PROVISIONS","G410","GROCERIES","REBECCA STEVENS","CATERERS"
"http://statistics.data.gov.uk/id/local-authority/43UM","WOKING BOROUGH COUNCIL","02/10/2022","02/10/2022","GPC/00020802","BOOKERECOMM","PROCUREMENT CARD","12.59","INDEPENDENT LIVING SERVICES - MEALS SERVICE - BROCKHILL","PROVISIONS","G410","GROCERIES","REBECCA STEVENS","CATERERS"
"http://statistics.data.gov.uk/id/local-authority/43UM","WOKING BOROUGH COUNCIL","02/10/2022","02/10/2022","GPC/00020802","BOOKERECOMM","PROCUREMENT CARD","34.98","INDEPENDENT LIVING SERVICES - MEALS SERVICE - HALE END COURT","PROVISIONS","G410","GROCERIES","REBECCA STEVENS","CATERERS"
"http://statistics.data.gov.uk/id/local-authority/43UM","WOKING BOROUGH COUNCIL","02/10/2022","02/10/2022","GPC/00020802","BOOKERECOMM","PROCUREMENT CARD","45.71","INDEPENDENT LIVING SERVICES - MEALS SERVICE - HALE END COURT","PROVISIONS","G410","GROCERIES","REBECCA STEVENS","CATERERS"
"http://statistics.data.gov.uk/id/local-authority/43UM","WOKING BOROUGH COUNCIL","02/10/2022","02/10/2022","GPC/00020811","BOOKERECOMM","PROCUREMENT CARD","44.95","INDEPENDENT LIVING SERVICES - MEALS SERVICE - BROCKHILL","PROVISIONS","G410","GROCERIES","REBECCA STEVENS","CATERERS"
"http://statistics.data.gov.uk/id/local-authority/43UM","WOKING BOROUGH COUNCIL","02/10/2022","02/10/2022","GPC/00020811","BOOKERECOMM","PROCUREMENT CARD","50.93","INDEPENDENT LIVING SERVICES - MEALS SERVICE - BROCKHILL","PROVISIONS","G410","GROCERIES","REBECCA STEVENS","CATERERS"
"http://statistics.data.gov.uk/id/local-authority/43UM","WOKING BOROUGH COUNCIL","02/10/2022","02/10/2022","GPC/00020812","BOOKERECOMM","PROCUREMENT CARD","13.77","INDEPENDENT LIVING SERVICES - MEALS ON WHEELS","PROVISIONS","G410","GROCERIES","REBECCA STEVENS","CATERERS"
"http://statistics.data.gov.uk/id/local-authority/43UM","WOKING BOROUGH COUNCIL","02/10/2022","02/10/2022","GPC/00020812","BOOKERECOMM","PROCUREMENT CARD","21.38","INDEPENDENT LIVING SERVICES - MEALS ON WHEELS","PROVISIONS","G410","GROCERIES","REBECCA STEVENS","CATERERS"
"http://statistics.data.gov.uk/id/local-authority/43UM","WOKING BOROUGH COUNCIL","02/10/2022","02/10/2022","GPC/00020813","BOOKERECOMM","PROCUREMENT CARD","34.55","INDEPENDENT LIVING SERVICES - MEALS SERVICE -THE VYNE","PROVISIONS","G410","GROCERIES","REBECCA STEVENS","CATERERS"
"http://statistics.data.gov.uk/id/local-authority/43UM","WOKING BOROUGH COUNCIL","02/10/2022","02/10/2022","GPC/00020815","AMZNMKTPLACE","PROCUREMENT CARD","23.32","INDEPENDENT LIVING SERVICES - INDEPENDENT LIV SERV GEN EXPEN","FREDA EBEL BEQUEST","H352","FLOWER ARRANGING ","MRS M CHILCOTT","MISC SPECIALITY RETAIL"
"http://statistics.data.gov.uk/id/local-authority/43UM","WOKING BOROUGH COUNCIL","02/10/2022","02/10/2022","GPC/00020816","BOOKERECOMM","PROCUREMENT CARD","3.48","INDEPENDENT LIVING SERVICES - MEALS SERVICE - BROCKHILL","PROVISIONS","G410","STRAWS ","REBECCA STEVENS","CATERERS"
"http://statistics.data.gov.uk/id/local-authority/43UM","WOKING BOROUGH COUNCIL","02/10/2022","02/10/2022","GPC/00020816","BOOKERECOMM","PROCUREMENT CARD","3.50","INDEPENDENT LIVING SERVICES - MEALS SERVICE -THE VYNE","PROVISIONS","G410","STRAWS ","REBECCA STEVENS","CATERERS"
"http://statistics.data.gov.uk/id/local-authority/43UM","WOKING BOROUGH COUNCIL","02/10/2022","02/10/2022","GPC/00020817","ASDA STORES 4823","PROCUREMENT CARD","5.25","INDEPENDENT LIVING SERVICES - FAMILY CENTRES","STATIONERY","G620","STICKERS AND PAPER","CLAIRE O'KELLY","GROCERY STORES"
"http://statistics.data.gov.uk/id/local-authority/43UM","WOKING BOROUGH COUNCIL","03/10/2022","03/10/2022","GPC/00020810","AMZNBUSINESS","PROCUREMENT CARD","14.14","ASSET MANAGEMENT - CIVIC OFFICES","CONSUMABLES","G630","FOOD CADDY LINERS ","MOLLY DOYLE","MISC SPECIALITY RETAIL"
"http://statistics.data.gov.uk/id/local-authority/43UM","WOKING BOROUGH COUNCIL","03/10/2022","03/10/2022","GPC/00020818","CLEARCHECK.CO.UK","PROCUREMENT CARD","8.00","CORPORATE MANAGEMENT GROUP - STAFF TRAINING/GENERAL COSTS","CRIMINAL RECORDS BUREAU FEES","H642","MONTHLY DBS FEE","MRS SARAH REED","PROFESSIONAL SERVICES - DEF"
"http://statistics.data.gov.uk/id/local-authority/43UM","WOKING BOROUGH COUNCIL","03/10/2022","03/10/2022","GPC/00020819","NYA*BFT AUTOMATION","PROCUREMENT CARD","6.50","CORPORATE STRATEGY - WOMENS SUPPORT CENTRE SURREY","PARKING COSTS","F510","UNI - CAR PARKING","ABI MEICHTRY","MISC FOOD STORES - DEFAULT"
"http://statistics.data.gov.uk/id/local-authority/43UM","WOKING BOROUGH COUNCIL","03/10/2022","03/10/2022","GPC/00020820","AMZNMKTPLACE","PROCUREMENT CARD","10.79","INDEPENDENT LIVING SERVICES - FAMILY CENTRES","NEW EQUIPMENT","G105","SAMSUNG CHARGER","KESARA CHEENA","MISC SPECIALITY RETAIL"
"http://statistics.data.gov.uk/id/local-authority/43UM","WOKING BOROUGH COUNCIL","03/10/2022","03/10/2022","GPC/00020821","RED GREEN","PROCUREMENT CARD","4.00","INDEPENDENT LIVING SERVICES - FAMILY CENTRES","PARKING COSTS","F510","TRAINING","NICOLA NORMAN","AUTO PARKING LOTS/GARAGES"
"http://statistics.data.gov.uk/id/local-authority/43UM","WOKING BOROUGH COUNCIL","03/10/2022","03/10/2022","GPC/00020823","SUMUP  *KAZEM POURANDI","PROCUREMENT CARD","6.67","CORPORATE STRATEGY - WOMENS SUPPORT CENTRE SURREY","ART AWARD","H534","TAXI TO ART AWARDS JUDGEING","LEANNE J SPILLER","TAXICABS/LIMOUSINES"
"http://statistics.data.gov.uk/id/local-authority/43UM","WOKING BOROUGH COUNCIL","03/10/2022","03/10/2022","GPC/00020824","AMZNMKTPLACE","PROCUREMENT CARD","13.97","INDEPENDENT LIVING SERVICES - FAMILY CENTRES","NEW EQUIPMENT","G105","KENSINGTON EASY RISER ","KESARA CHEENA","MISC SPECIALITY RETAIL"
"http://statistics.data.gov.uk/id/local-authority/43UM","WOKING BOROUGH COUNCIL","03/10/2022","03/10/2022","GPC/00020825","WWW.MONEYCLAIM.GOV","PROCUREMENT CARD","70.00","CORPORATE STRATEGY - LEGAL","COURT COSTS","H620","COURT FEE TO ISSUE CLAIM ","MISS A J FRANCIS","GOV'T SERV - DEFAULT"
"http://statistics.data.gov.uk/id/local-authority/43UM","WOKING BOROUGH COUNCIL","03/10/2022","03/10/2022","GPC/00020826","SWRAILWAYSELFSERVE","PROCUREMENT CARD","14.80","REVENUES AND BENEFITS - COUNCIL TAX","TRAVEL EXPENSES-OFFICERS","F600","TICKET TO CONFERENCE","MR T STOCKS","PASSENGER RAILWAYS"
"http://statistics.data.gov.uk/id/local-authority/43UM","WOKING BOROUGH COUNCIL","03/10/2022","03/10/2022","GPC/00020828","WWW.SCREWFIX.COM","PROCUREMENT CARD","12.49","NEIGHBOURHOOD SERVICES - CPZ WBC FROM 25/7/05","EQUIPMENT","G100","REPLACEMENT SIGN CHANGING KIT","RICHARD TAYLOR","LUMBER/BUILD SUPPLY STORES"
"http://statistics.data.gov.uk/id/local-authority/43UM","WOKING BOROUGH COUNCIL","03/10/2022","03/10/2022","GPC/00020830","WICKES WOKING","PROCUREMENT CARD","46.25","HOUSING SERVICES - HOME IMPS & BEN AGENCY","HANDYPERSON MATERIALS","G201","HANDY PERSON MATERIALS","JASON BALCHIN","HOME SUPPLY WAREHOUSE STORES"
"http://statistics.data.gov.uk/id/local-authority/43UM","WOKING BOROUGH COUNCIL","03/10/2022","03/10/2022","GPC/00020831","RED GREEN","PROCUREMENT CARD","6.33","ASSET MANAGEMENT - FACILITIES MANAGEMENT","FACILITIES MANAGEMENT REPAIRS","D908","PARKING FEE","MATTHEW WHEELER","AUTO PARKING LOTS/GARAGES"
"http://statistics.data.gov.uk/id/local-authority/43UM","WOKING BOROUGH COUNCIL","03/10/2022","03/10/2022","GPC/00020832","WWW.MONEYCLAIM.GOV","PROCUREMENT CARD","80.00","CORPORATE STRATEGY - LEGAL","COURT COSTS","H620","COURT FEE TO ISSUE CLAIM ","MISS A J FRANCIS","GOV'T SERV - DEFAULT"
"http://statistics.data.gov.uk/id/local-authority/43UM","WOKING BOROUGH COUNCIL","03/10/2022","03/10/2022","GPC/00020833","AMZNMKTPLACE","PROCUREMENT CARD","360.00","HOUSING SERVICES - HOME IMPS & BEN AGENCY","HANDYPERSON MATERIALS","G201","SUPERPOLES WITH HANDLES
HP MATERIALS","HANNAH SCOTT","MISC SPECIALITY RETAIL"
"http://statistics.data.gov.uk/id/local-authority/43UM","WOKING BOROUGH COUNCIL","04/10/2022","04/10/2022","GPC/00020822","AMZNMKTPLACE","PROCUREMENT CARD","22.00","HOUSING SERVICES - HMO LICENCES","EQUIPMENT","G100","PLASTIC CLIPBOARDS ","CHRISTINE CAMPBELL","MISC SPECIALITY RETAIL"
"http://statistics.data.gov.uk/id/local-authority/43UM","WOKING BOROUGH COUNCIL","04/10/2022","04/10/2022","GPC/00020827","AMZNMKTPLACE","PROCUREMENT CARD","10.58","HOUSING SERVICES - HMO LICENCES","EQUIPMENT","G100","SCAN DISKS ","CHRISTINE CAMPBELL","MISC SPECIALITY RETAIL"
"http://statistics.data.gov.uk/id/local-authority/43UM","WOKING BOROUGH COUNCIL","04/10/2022","04/10/2022","GPC/00020829","AMZNMKTPLACE","PROCUREMENT CARD","4.16","INDEPENDENT LIVING SERVICES - FAMILY CENTRES","NEW EQUIPMENT","G105","WRIST SUPPORT/MOUSE MAT","KESARA CHEENA","MISC SPECIALITY RETAIL"
"http://statistics.data.gov.uk/id/local-authority/43UM","WOKING BOROUGH COUNCIL","04/10/2022","04/10/2022","GPC/00020829","AMZNMKTPLACE","PROCUREMENT CARD","6.66","INDEPENDENT LIVING SERVICES - FAMILY CENTRES","NEW EQUIPMENT","G105","WRIST SUPPORT/MOUSE MAT","KESARA CHEENA","MISC SPECIALITY RETAIL"
"http://statistics.data.gov.uk/id/local-authority/43UM","WOKING BOROUGH COUNCIL","04/10/2022","04/10/2022","GPC/00020834","AMZNMKTPLACE","PROCUREMENT CARD","6.91","INDEPENDENT LIVING SERVICES - MOORCROFT","STATIONERY","G620","OFFICE SUPPLIES","RICHARD BUCKENHAM","MISC SPECIALITY RETAIL"
"http://statistics.data.gov.uk/id/local-authority/43UM","WOKING BOROUGH COUNCIL","04/10/2022","04/10/2022","GPC/00020835","AMZNMKTPLACE","PROCUREMENT CARD","10.17","INDEPENDENT LIVING SERVICES - MOORCROFT","CLEANING MATERIALS","D920","TOTS SUPPLIES","RICHARD BUCKENHAM","MISC SPECIALITY RETAIL"
"http://statistics.data.gov.uk/id/local-authority/43UM","WOKING BOROUGH COUNCIL","04/10/2022","04/10/2022","GPC/00020836","RAMADA HOTEL","PROCUREMENT CARD","554.17","REVENUES AND BENEFITS - COUNCIL TAX","TRAVEL EXPENSES-OFFICERS","F600","IRRV CONFERENCE","MR T STOCKS","HOTELS/MOTELS/RESORTS"
"http://statistics.data.gov.uk/id/local-authority/43UM","WOKING BOROUGH COUNCIL","04/10/2022","04/10/2022","GPC/00020837","AMZNBUSINESS","PROCUREMENT CARD","10.04","INDEPENDENT LIVING SERVICES - MEALS ON WHEELS","STATIONERY","G620","INK PADS FPR STAMPERS","REBECCA STEVENS","MISC SPECIALITY RETAIL"
"http://statistics.data.gov.uk/id/local-authority/43UM","WOKING BOROUGH COUNCIL","04/10/2022","04/10/2022","GPC/00020838","CAF? PRIMO","PROCUREMENT CARD","3.50","INDEPENDENT LIVING SERVICES - FAMILY SUPPORT PROGRAMME","FAMILY ENABLING (FSP PROJECT)","H137","DRINKS","RHIANNON STOKES","RESTAURANTS"
"http://statistics.data.gov.uk/id/local-authority/43UM","WOKING BOROUGH COUNCIL","04/10/2022","04/10/2022","GPC/00020840","AMZNMKTPLACE","PROCUREMENT CARD","19.87","INDEPENDENT LIVING SERVICES - MOORCROFT","PROVISIONS","G410","CAFE REPLENISHMENT","RICHARD BUCKENHAM","MISC SPECIALITY RETAIL"
"http://statistics.data.gov.uk/id/local-authority/43UM","WOKING BOROUGH COUNCIL","04/10/2022","04/10/2022","GPC/00020841","ASDA  STORES 4775","PROCUREMENT CARD","2.20","INDEPENDENT LIVING SERVICES - MEALS SERVICE - HALE END COURT","PROVISIONS","G410","GROCERIES","RIANNA MEME","GROCERY STORES"
"http://statistics.data.gov.uk/id/local-authority/43UM","WOKING BOROUGH COUNCIL","04/10/2022","04/10/2022","GPC/00020842","AMZNMKTPLACE","PROCUREMENT CARD","10.82","INDEPENDENT LIVING SERVICES - FAMILY CENTRES","STATIONERY","G620","DOCUMENT WALLET FOLDERS ","NASREEN FAROOQ","MISC SPECIALITY RETAIL"
"http://statistics.data.gov.uk/id/local-authority/43UM","WOKING BOROUGH COUNCIL","04/10/2022","04/10/2022","GPC/00020843","TRAVELODGE GB0000","PROCUREMENT CARD","545.93","HOUSING SERVICES - HOUSING OPTIONS","BED & BREAKFAST EXPENDITURE","H786","TRAVELODGE HOMELESS B&B BOOKING","JENNY WILLS","TRAVELODGE"
"http://statistics.data.gov.uk/id/local-authority/43UM","WOKING BOROUGH COUNCIL","04/10/2022","04/10/2022","GPC/00020844","AMZNMKTPLACE","PROCUREMENT CARD","10.17","INDEPENDENT LIVING SERVICES - MOORCROFT","CLEANING MATERIALS","D920","TOTS SUPPLIES","RICHARD BUCKENHAM","MISC SPECIALITY RETAIL"
"http://statistics.data.gov.uk/id/local-authority/43UM","WOKING BOROUGH COUNCIL","04/10/2022","04/10/2022","GPC/00020845","WWW.SCREWFIX.COM","PROCUREMENT CARD","37.48","ASSET MANAGEMENT - FACILITIES MANAGEMENT","FACILITIES MANAGEMENT REPAIRS","D908","HANDYMAN MATERIALS","MR R D SMITH","LUMBER/BUILD SUPPLY STORES"
"http://statistics.data.gov.uk/id/local-authority/43UM","WOKING BOROUGH COUNCIL","04/10/2022","04/10/2022","GPC/00020846","AMZNMKTPLACE","PROCUREMENT CARD","20.82","INDEPENDENT LIVING SERVICES - FAMILY CENTRES","PROVISIONS","G410","HOUR GLASS ","KESARA CHEENA","MISC SPECIALITY RETAIL"
"http://statistics.data.gov.uk/id/local-authority/43UM","WOKING BOROUGH COUNCIL","04/10/2022","04/10/2022","GPC/00020847","AMZNMKTPLACE","PROCUREMENT CARD","10.82","INDEPENDENT LIVING SERVICES - MOORCROFT","STATIONERY","G620","OFFICE SUPPLIES","RICHARD BUCKENHAM","MISC SPECIALITY RETAIL"
"http://statistics.data.gov.uk/id/local-authority/43UM","WOKING BOROUGH COUNCIL","04/10/2022","04/10/2022","GPC/00020848","LAND REGISTRY ECOM CCC","PROCUREMENT CARD","6.00","CORPORATE STRATEGY - LEGAL","LAND REGISTRY FEE","H425","LAND REG AND TILE PLAN","PHILLIPA DAVID","GOV'T SERV - DEFAULT"
"http://statistics.data.gov.uk/id/local-authority/43UM","WOKING BOROUGH COUNCIL","04/10/2022","04/10/2022","GPC/00020849","JUSTPARK PARKING LIMITED","PROCUREMENT CARD","2.67","INDEPENDENT LIVING SERVICES - FAMILY CENTRES","PARKING COSTS","F510","CAR PARKING ","NASREEN FAROOQ","AUTO PARKING LOTS/GARAGES"
"http://statistics.data.gov.uk/id/local-authority/43UM","WOKING BOROUGH COUNCIL","04/10/2022","04/10/2022","GPC/00020850","HORIZON PARKING LTD","PROCUREMENT CARD","3.33","CORPORATE STRATEGY - WOMENS SUPPORT CENTRE SURREY","PARKING COSTS","F510","CAR PARKING ","ABI MEICHTRY","AUTO PARKING LOTS/GARAGES"
"http://statistics.data.gov.uk/id/local-authority/43UM","WOKING BOROUGH COUNCIL","04/10/2022","04/10/2022","GPC/00020851","GLS EDUCATIONAL SU","PROCUREMENT CARD","24.33","INDEPENDENT LIVING SERVICES - FAMILY CENTRES","STATIONERY","G620","STATIONERY","KESARA CHEENA","COLLEGES/UNIV/JC/PROFESSION"
"http://statistics.data.gov.uk/id/local-authority/43UM","WOKING BOROUGH COUNCIL","04/10/2022","04/10/2022","GPC/00020852","RED GREEN","PROCUREMENT CARD","1.33","INDEPENDENT LIVING SERVICES - COMMUNITY ALARMS-GF","PARKING COSTS","F510","PARKING FEE","OVIDIU MITROFAN","AUTO PARKING LOTS/GARAGES"
"http://statistics.data.gov.uk/id/local-authority/43UM","WOKING BOROUGH COUNCIL","04/10/2022","04/10/2022","GPC/00020854","AMZNMKTPLACE","PROCUREMENT CARD","6.59","INDEPENDENT LIVING SERVICES - MOORCROFT","STATIONERY","G620","OFFICE SUPPLIES","RICHARD BUCKENHAM","MISC SPECIALITY RETAIL"
"http://statistics.data.gov.uk/id/local-authority/43UM","WOKING BOROUGH COUNCIL","04/10/2022","04/10/2022","GPC/00020855","AMZNMKTPLACE","PROCUREMENT CARD","29.30","INDEPENDENT LIVING SERVICES - THE VYNE","FIXTURES & FITTINGS - NEW","D800","CLOCKS ","DONNA GREGORY","MISC SPECIALITY RETAIL"
"http://statistics.data.gov.uk/id/local-authority/43UM","WOKING BOROUGH COUNCIL","04/10/2022","04/10/2022","GPC/00020856","BT PLC BUSINESS MOTO BPAY","PROCUREMENT CARD","34.76","INDEPENDENT LIVING SERVICES - YOUTH DEVELOPMENT","GRANTS","H100","SCT WIFI","RICHARD BUCKENHAM","PHONE SERV/EQUIP UTILITY"
"http://statistics.data.gov.uk/id/local-authority/43UM","WOKING BOROUGH COUNCIL","04/10/2022","04/10/2022","GPC/00020857","WISLEY FOH","PROCUREMENT CARD","34.12","ASSET MANAGEMENT - PLANET WOKING","MAIN CONTRACTOR","Q200","PLANET WOKING COMPETITION RHS WISLEY FAMILY TICKET","MRS L M BEATTIE","TOURIST ATTRACTIONS AND XHBT"
"http://statistics.data.gov.uk/id/local-authority/43UM","WOKING BOROUGH COUNCIL","04/10/2022","04/10/2022","GPC/00020858","FREEDOM LEISURE - SPOR","PROCUREMENT CARD","4.30","INDEPENDENT LIVING SERVICES - FAMILY SUPPORT PROGRAMME","FAMILY ENABLING (FSP PROJECT)","H137","FAMILY VISIT","SARAH WRIGHT","MEMBER CLUBS/SPORT/REC/GOLF"
"http://statistics.data.gov.uk/id/local-authority/43UM","WOKING BOROUGH COUNCIL","04/10/2022","04/10/2022","GPC/00020859","NATWEST BANK  /","PROCUREMENT CARD","100.00","CORPORATE STRATEGY - WOMENS SUPPORT CENTRE SURREY","TRAVEL EXPENSES-CLIENTS","F640","WITHDRAWAL FOR PETTY CASH","DONNA DRUMMOND","FINANCIAL INST/AUTO CASH"
"http://statistics.data.gov.uk/id/local-authority/43UM","WOKING BOROUGH COUNCIL","02/09/2022","05/10/2022","0000482022/001","STONE ARK LB & CO LTD","40920300","3122.00","NEIGHBOURHOOD SERVICES - TOWN CTR MANAGEMENT","GROUNDS MAINT-CONTRACTORS","D200","GROUNDS MAINT-CONTRACTORS","NEIGHBOURHOOD SERVICES","BUILDING CONSTRUCTION MATERIALS"
"http://statistics.data.gov.uk/id/local-authority/43UM","WOKING BOROUGH COUNCIL","07/09/2022","05/10/2022","0000482471/001","CHURCHILL CONTRACT SERVICES LTD","40917700","-349.13","ASSET MANAGEMENT - FACILITIES MANAGEMENT","FACILITIES MANAGEMENT REPAIRS","D908","FACILITIES MANAGEMENT REPAIRS","ASSET MANAGEMENT","BUILDING CONSTRUCTION MATERIALS"
"http://statistics.data.gov.uk/id/local-authority/43UM","WOKING BOROUGH COUNCIL","01/09/2022","05/10/2022","0000482495/001","CHURCHILL CONTRACT SERVICES LTD","40917700","1502.10","ASSET MANAGEMENT - UNIT 14B MON WAY EAST","FACILITIES MANAGEMENT CONTRACT","D909","FACILITIES MANAGEMENT CONTRACT","ASSET MANAGEMENT","BUILDING CONSTRUCTION MATERIALS"
"http://statistics.data.gov.uk/id/local-authority/43UM","WOKING BOROUGH COUNCIL","01/09/2022","05/10/2022","0000482495/002","CHURCHILL CONTRACT SERVICES LTD","40917700","549.05","ASSET MANAGEMENT - 19A HIGH STREET","FACILITIES MANAGEMENT CONTRACT","D909","FACILITIES MANAGEMENT CONTRACT","ASSET MANAGEMENT","BUILDING CONSTRUCTION MATERIALS"
"http://statistics.data.gov.uk/id/local-authority/43UM","WOKING BOROUGH COUNCIL","01/09/2022","05/10/2022","0000482495/003","CHURCHILL CONTRACT SERVICES LTD","40917700","124.04","ASSET MANAGEMENT - 20 HIGH ST. WOKING","FACILITIES MANAGEMENT CONTRACT","D909","FACILITIES MANAGEMENT CONTRACT","ASSET MANAGEMENT","BUILDING CONSTRUCTION MATERIALS"
"http://statistics.data.gov.uk/id/local-authority/43UM","WOKING BOROUGH COUNCIL","01/09/2022","05/10/2022","0000482495/004","CHURCHILL CONTRACT SERVICES LTD","40917700","10340.57","ASSET MANAGEMENT - CIVIC OFFICES","FACILITIES MANAGEMENT CONTRACT","D909","FACILITIES MANAGEMENT CONTRACT","ASSET MANAGEMENT","BUILDING CONSTRUCTION MATERIALS"
"http://statistics.data.gov.uk/id/local-authority/43UM","WOKING BOROUGH COUNCIL","01/09/2022","05/10/2022","0000482495/005","CHURCHILL CONTRACT SERVICES LTD","40917700","1473.44","NEIGHBOURHOOD SERVICES - THE LIGHTBOX","PEACOCKS R&M HOLDING","D108","PEACOCKS R&M HOLDING","NEIGHBOURHOOD SERVICES","BUILDING CONSTRUCTION MATERIALS"
"http://statistics.data.gov.uk/id/local-authority/43UM","WOKING BOROUGH COUNCIL","01/09/2022","05/10/2022","0000482495/006","CHURCHILL CONTRACT SERVICES LTD","40917700","282.05","INDEPENDENT LIVING SERVICES - BROCKHILL EXTRA CARE","FACILITIES MANAGEMENT CONTRACT","D909","FACILITIES MANAGEMENT CONTRACT","INDEPENDENT LIVING SERVICES","BUILDING CONSTRUCTION MATERIALS"
"http://statistics.data.gov.uk/id/local-authority/43UM","WOKING BOROUGH COUNCIL","01/09/2022","05/10/2022","0000482495/007","CHURCHILL CONTRACT SERVICES LTD","40917700","1270.40","INDEPENDENT LIVING SERVICES - BROCKHILL EXTRA CARE","FACILITIES MANAGEMENT CONTRACT","D909","FACILITIES MANAGEMENT CONTRACT","INDEPENDENT LIVING SERVICES","BUILDING CONSTRUCTION MATERIALS"
"http://statistics.data.gov.uk/id/local-authority/43UM","WOKING BOROUGH COUNCIL","01/09/2022","05/10/2022","0000482495/008","CHURCHILL CONTRACT SERVICES LTD","40917700","384.69","NEIGHBOURHOOD SERVICES - CAR PARKS ADMIN&OPERATIONAL EX","FACILITIES MANAGEMENT CONTRACT","D909","FACILITIES MANAGEMENT CONTRACT","NEIGHBOURHOOD SERVICES","BUILDING CONSTRUCTION MATERIALS"
"http://statistics.data.gov.uk/id/local-authority/43UM","WOKING BOROUGH COUNCIL","01/09/2022","05/10/2022","0000482495/009","CHURCHILL CONTRACT SERVICES LTD","40917700","2128.77","NEIGHBOURHOOD SERVICES - CAR PARKS ADMIN&OPERATIONAL EX","FACILITIES MANAGEMENT CONTRACT","D909","FACILITIES MANAGEMENT CONTRACT","NEIGHBOURHOOD SERVICES","BUILDING CONSTRUCTION MATERIALS"
"http://statistics.data.gov.uk/id/local-authority/43UM","WOKING BOROUGH COUNCIL","01/09/2022","05/10/2022","0000482495/010","CHURCHILL CONTRACT SERVICES LTD","40917700","1904.54","NEIGHBOURHOOD SERVICES - CAR PARKS ADMIN&OPERATIONAL EX","FACILITIES MANAGEMENT CONTRACT","D909","FACILITIES MANAGEMENT CONTRACT","NEIGHBOURHOOD SERVICES","BUILDING CONSTRUCTION MATERIALS"
"http://statistics.data.gov.uk/id/local-authority/43UM","WOKING BOROUGH COUNCIL","01/09/2022","05/10/2022","0000482495/011","CHURCHILL CONTRACT SERVICES LTD","40917700","2063.20","NEIGHBOURHOOD SERVICES - CAR PARKS ADMIN&OPERATIONAL EX","FACILITIES MANAGEMENT CONTRACT","D909","FACILITIES MANAGEMENT CONTRACT","NEIGHBOURHOOD SERVICES","BUILDING CONSTRUCTION MATERIALS"
"http://statistics.data.gov.uk/id/local-authority/43UM","WOKING BOROUGH COUNCIL","01/09/2022","05/10/2022","0000482495/012","CHURCHILL CONTRACT SERVICES LTD","40917700","1766.64","NEIGHBOURHOOD SERVICES - CAR PARKS ADMIN&OPERATIONAL EX","FACILITIES MANAGEMENT CONTRACT","D909","FACILITIES MANAGEMENT CONTRACT","NEIGHBOURHOOD SERVICES","BUILDING CONSTRUCTION MATERIALS"
"http://statistics.data.gov.uk/id/local-authority/43UM","WOKING BOROUGH COUNCIL","01/09/2022","05/10/2022","0000482495/013","CHURCHILL CONTRACT SERVICES LTD","40917700","1156.01","NEIGHBOURHOOD SERVICES - CAR PARKS ADMIN&OPERATIONAL EX","FACILITIES MANAGEMENT CONTRACT","D909","FACILITIES MANAGEMENT CONTRACT","NEIGHBOURHOOD SERVICES","BUILDING CONSTRUCTION MATERIALS"
"http://statistics.data.gov.uk/id/local-authority/43UM","WOKING BOROUGH COUNCIL","01/09/2022","05/10/2022","0000482495/014","CHURCHILL CONTRACT SERVICES LTD","40917700","613.01","NEIGHBOURHOOD SERVICES - CAR PARKS ADMIN&OPERATIONAL EX","FACILITIES MANAGEMENT CONTRACT","D909","FACILITIES MANAGEMENT CONTRACT","NEIGHBOURHOOD SERVICES","BUILDING CONSTRUCTION MATERIALS"
"http://statistics.data.gov.uk/id/local-authority/43UM","WOKING BOROUGH COUNCIL","01/09/2022","05/10/2022","0000482495/015","CHURCHILL CONTRACT SERVICES LTD","40917700","6492.23","ASSET MANAGEMENT - WOLSEY PLACE","PEACOCKS R&M HOLDING","D108","PEACOCKS R&M HOLDING","ASSET MANAGEMENT","BUILDING CONSTRUCTION MATERIALS"
"http://statistics.data.gov.uk/id/local-authority/43UM","WOKING BOROUGH COUNCIL","01/09/2022","05/10/2022","0000482495/016","CHURCHILL CONTRACT SERVICES LTD","40917700","389.02","ASSET MANAGEMENT - PEACOCKS - GENERAL","PEACOCKS R&M HOLDING","D108","PEACOCKS R&M HOLDING","ASSET MANAGEMENT","BUILDING CONSTRUCTION MATERIALS"
"http://statistics.data.gov.uk/id/local-authority/43UM","WOKING BOROUGH COUNCIL","01/09/2022","05/10/2022","0000482495/017","CHURCHILL CONTRACT SERVICES LTD","40917700","43479.08","ASSET MANAGEMENT - PEACOCKS - GENERAL","PEACOCKS R&M HOLDING","D108","PEACOCKS R&M HOLDING","ASSET MANAGEMENT","BUILDING CONSTRUCTION MATERIALS"
"http://statistics.data.gov.uk/id/local-authority/43UM","WOKING BOROUGH COUNCIL","01/09/2022","05/10/2022","0000482495/018","CHURCHILL CONTRACT SERVICES LTD","40917700","21187.15","ASSET MANAGEMENT - WOLSEY PLACE","PEACOCKS R&M HOLDING","D108","PEACOCKS R&M HOLDING","ASSET MANAGEMENT","BUILDING CONSTRUCTION MATERIALS"
"http://statistics.data.gov.uk/id/local-authority/43UM","WOKING BOROUGH COUNCIL","01/09/2022","05/10/2022","0000482495/019","CHURCHILL CONTRACT SERVICES LTD","40917700","6731.47","ASSET MANAGEMENT - PUBLIC CONVENIENCES","FACILITIES MANAGEMENT CONTRACT","D909","FACILITIES MANAGEMENT CONTRACT","ASSET MANAGEMENT","BUILDING CONSTRUCTION MATERIALS"
"http://statistics.data.gov.uk/id/local-authority/43UM","WOKING BOROUGH COUNCIL","01/09/2022","05/10/2022","0000482495/020","CHURCHILL CONTRACT SERVICES LTD","40917700","567.74","INDEPENDENT LIVING SERVICES - FAMILY CENTRES","FACILITIES MANAGEMENT CONTRACT","D909","FACILITIES MANAGEMENT CONTRACT","INDEPENDENT LIVING SERVICES","BUILDING CONSTRUCTION MATERIALS"
"http://statistics.data.gov.uk/id/local-authority/43UM","WOKING BOROUGH COUNCIL","01/09/2022","05/10/2022","0000482495/021","CHURCHILL CONTRACT SERVICES LTD","40917700","494.51","HOUSING SERVICES - DISABLED FACILITIES GRANTS","CONTRACT CLEANING","D900","CONTRACT CLEANING","HOUSING SERVICES","BUILDING CONSTRUCTION MATERIALS"
"http://statistics.data.gov.uk/id/local-authority/43UM","WOKING BOROUGH COUNCIL","01/09/2022","05/10/2022","0000482495/022","CHURCHILL CONTRACT SERVICES LTD","40917700","33.02","INDEPENDENT LIVING SERVICES - ALPHA RD COMMUNITY HALL","FACILITIES MANAGEMENT CONTRACT","D909","FACILITIES MANAGEMENT CONTRACT","INDEPENDENT LIVING SERVICES","BUILDING CONSTRUCTION MATERIALS"
"http://statistics.data.gov.uk/id/local-authority/43UM","WOKING BOROUGH COUNCIL","01/09/2022","05/10/2022","0000482495/023","CHURCHILL CONTRACT SERVICES LTD","40917700","7.97","ASSET MANAGEMENT - MAYBURY CENTRE","FACILITIES MANAGEMENT CONTRACT","D909","FACILITIES MANAGEMENT CONTRACT","ASSET MANAGEMENT","BUILDING CONSTRUCTION MATERIALS"
"http://statistics.data.gov.uk/id/local-authority/43UM","WOKING BOROUGH COUNCIL","01/09/2022","05/10/2022","0000482495/024","CHURCHILL CONTRACT SERVICES LTD","40917700","338.89","INDEPENDENT LIVING SERVICES - THE VYNE","FACILITIES MANAGEMENT CONTRACT","D909","FACILITIES MANAGEMENT CONTRACT","INDEPENDENT LIVING SERVICES","BUILDING CONSTRUCTION MATERIALS"
"http://statistics.data.gov.uk/id/local-authority/43UM","WOKING BOROUGH COUNCIL","01/09/2022","05/10/2022","0000482495/025","CHURCHILL CONTRACT SERVICES LTD","40917700","8.22","ASSET MANAGEMENT - PUBLIC CONVENIENCES","FACILITIES MANAGEMENT CONTRACT","D909","FACILITIES MANAGEMENT CONTRACT","ASSET MANAGEMENT","BUILDING CONSTRUCTION MATERIALS"
"http://statistics.data.gov.uk/id/local-authority/43UM","WOKING BOROUGH COUNCIL","01/09/2022","05/10/2022","0000482495/026","CHURCHILL CONTRACT SERVICES LTD","40917700","357.65","INDEPENDENT LIVING SERVICES - MEALS SERVICE - ST MARYS","FACILITIES MANAGEMENT CONTRACT","D909","FACILITIES MANAGEMENT CONTRACT","INDEPENDENT LIVING SERVICES","BUILDING CONSTRUCTION MATERIALS"
"http://statistics.data.gov.uk/id/local-authority/43UM","WOKING BOROUGH COUNCIL","01/09/2022","05/10/2022","0000482495/027","CHURCHILL CONTRACT SERVICES LTD","40917700","306.73","ASSET MANAGEMENT - CCTV CONTROL ROOM","CONTRACT CLEANING","D900","CONTRACT CLEANING","ASSET MANAGEMENT","BUILDING CONSTRUCTION MATERIALS"
"http://statistics.data.gov.uk/id/local-authority/43UM","WOKING BOROUGH COUNCIL","01/09/2022","05/10/2022","0000482495/028","CHURCHILL CONTRACT SERVICES LTD","40917700","1551.33","INDEPENDENT LIVING SERVICES - HALE END COURT","CONTRACT CLEANING","D900","CONTRACT CLEANING","INDEPENDENT LIVING SERVICES","BUILDING CONSTRUCTION MATERIALS"
"http://statistics.data.gov.uk/id/local-authority/43UM","WOKING BOROUGH COUNCIL","01/09/2022","05/10/2022","0000482495/029","CHURCHILL CONTRACT SERVICES LTD","40917700","318.98","INDEPENDENT LIVING SERVICES - MEALS SERVICE-MOORCROFT","FACILITIES MANAGEMENT CONTRACT","D909","FACILITIES MANAGEMENT CONTRACT","INDEPENDENT LIVING SERVICES","BUILDING CONSTRUCTION MATERIALS"
"http://statistics.data.gov.uk/id/local-authority/43UM","WOKING BOROUGH COUNCIL","01/09/2022","05/10/2022","0000482495/030","CHURCHILL CONTRACT SERVICES LTD","40917700","335.24","INDEPENDENT LIVING SERVICES - BROCKHILL EXTRA CARE","FACILITIES MANAGEMENT CONTRACT","D909","FACILITIES MANAGEMENT CONTRACT","INDEPENDENT LIVING SERVICES","BUILDING CONSTRUCTION MATERIALS"
"http://statistics.data.gov.uk/id/local-authority/43UM","WOKING BOROUGH COUNCIL","01/09/2022","05/10/2022","0000482495/031","CHURCHILL CONTRACT SERVICES LTD","40917700","9931.16","NEIGHBOURHOOD SERVICES - CAR PARKS ADMIN&OPERATIONAL EX","FACILITIES MANAGEMENT CONTRACT","D909","FACILITIES MANAGEMENT CONTRACT","NEIGHBOURHOOD SERVICES","BUILDING CONSTRUCTION MATERIALS"
"http://statistics.data.gov.uk/id/local-authority/43UM","WOKING BOROUGH COUNCIL","01/09/2022","05/10/2022","0000482495/032","CHURCHILL CONTRACT SERVICES LTD","40917700","13321.69","HOUSING SERVICES - FM CONTRACT REC GREEN CAR PARK","PAYMENT TO CONTRACTOR","T700","PAYMENT TO CONTRACTOR","HOUSING SERVICES","BUILDING CONSTRUCTION MATERIALS"
"http://statistics.data.gov.uk/id/local-authority/43UM","WOKING BOROUGH COUNCIL","01/09/2022","05/10/2022","0000482495/033","CHURCHILL CONTRACT SERVICES LTD","40917700","25170.47","HOUSING SERVICES - FM CONTRACT REC HENRY PLAZA","PAYMENT TO CONTRACTOR","T700","PAYMENT TO CONTRACTOR","HOUSING SERVICES","BUILDING CONSTRUCTION MATERIALS"
"http://statistics.data.gov.uk/id/local-authority/43UM","WOKING BOROUGH COUNCIL","01/09/2022","05/10/2022","0000482495/034","CHURCHILL CONTRACT SERVICES LTD","40917700","9.36","NEIGHBOURHOOD SERVICES - ARTS DEVELOPMENT","EQUIPMENT REPAIR & MAINTENANCE","G120","EQUIPMENT REPAIR & MAINTENANCE","NEIGHBOURHOOD SERVICES","BUILDING CONSTRUCTION MATERIALS"
"http://statistics.data.gov.uk/id/local-authority/43UM","WOKING BOROUGH COUNCIL","01/08/2022","05/10/2022","0000482496/001","CHURCHILL CONTRACT SERVICES LTD","40917700","1502.10","ASSET MANAGEMENT - UNIT 14B MON WAY EAST","FACILITIES MANAGEMENT CONTRACT","D909","FACILITIES MANAGEMENT CONTRACT","ASSET MANAGEMENT","BUILDING CONSTRUCTION MATERIALS"
"http://statistics.data.gov.uk/id/local-authority/43UM","WOKING BOROUGH COUNCIL","01/08/2022","05/10/2022","0000482496/002","CHURCHILL CONTRACT SERVICES LTD","40917700","549.05","ASSET MANAGEMENT - 19A HIGH STREET","FACILITIES MANAGEMENT CONTRACT","D909","FACILITIES MANAGEMENT CONTRACT","ASSET MANAGEMENT","BUILDING CONSTRUCTION MATERIALS"
"http://statistics.data.gov.uk/id/local-authority/43UM","WOKING BOROUGH COUNCIL","01/08/2022","05/10/2022","0000482496/003","CHURCHILL CONTRACT SERVICES LTD","40917700","124.04","ASSET MANAGEMENT - 20 HIGH ST. WOKING","FACILITIES MANAGEMENT CONTRACT","D909","FACILITIES MANAGEMENT CONTRACT","ASSET MANAGEMENT","BUILDING CONSTRUCTION MATERIALS"
"http://statistics.data.gov.uk/id/local-authority/43UM","WOKING BOROUGH COUNCIL","01/08/2022","05/10/2022","0000482496/004","CHURCHILL CONTRACT SERVICES LTD","40917700","10340.57","ASSET MANAGEMENT - CIVIC OFFICES","FACILITIES MANAGEMENT CONTRACT","D909","FACILITIES MANAGEMENT CONTRACT","ASSET MANAGEMENT","BUILDING CONSTRUCTION MATERIALS"
"http://statistics.data.gov.uk/id/local-authority/43UM","WOKING BOROUGH COUNCIL","01/08/2022","05/10/2022","0000482496/005","CHURCHILL CONTRACT SERVICES LTD","40917700","1473.44","NEIGHBOURHOOD SERVICES - THE LIGHTBOX","PEACOCKS R&M HOLDING","D108","PEACOCKS R&M HOLDING","NEIGHBOURHOOD SERVICES","BUILDING CONSTRUCTION MATERIALS"
"http://statistics.data.gov.uk/id/local-authority/43UM","WOKING BOROUGH COUNCIL","01/08/2022","05/10/2022","0000482496/006","CHURCHILL CONTRACT SERVICES LTD","40917700","282.05","INDEPENDENT LIVING SERVICES - BROCKHILL EXTRA CARE","FACILITIES MANAGEMENT CONTRACT","D909","FACILITIES MANAGEMENT CONTRACT","INDEPENDENT LIVING SERVICES","BUILDING CONSTRUCTION MATERIALS"
"http://statistics.data.gov.uk/id/local-authority/43UM","WOKING BOROUGH COUNCIL","01/08/2022","05/10/2022","0000482496/007","CHURCHILL CONTRACT SERVICES LTD","40917700","1270.40","INDEPENDENT LIVING SERVICES - BROCKHILL EXTRA CARE","FACILITIES MANAGEMENT CONTRACT","D909","FACILITIES MANAGEMENT CONTRACT","INDEPENDENT LIVING SERVICES","BUILDING CONSTRUCTION MATERIALS"
"http://statistics.data.gov.uk/id/local-authority/43UM","WOKING BOROUGH COUNCIL","01/08/2022","05/10/2022","0000482496/008","CHURCHILL CONTRACT SERVICES LTD","40917700","384.69","NEIGHBOURHOOD SERVICES - CAR PARKS ADMIN&OPERATIONAL EX","FACILITIES MANAGEMENT CONTRACT","D909","FACILITIES MANAGEMENT CONTRACT","NEIGHBOURHOOD SERVICES","BUILDING CONSTRUCTION MATERIALS"
"http://statistics.data.gov.uk/id/local-authority/43UM","WOKING BOROUGH COUNCIL","01/08/2022","05/10/2022","0000482496/009","CHURCHILL CONTRACT SERVICES LTD","40917700","2128.77","NEIGHBOURHOOD SERVICES - CAR PARKS ADMIN&OPERATIONAL EX","FACILITIES MANAGEMENT CONTRACT","D909","FACILITIES MANAGEMENT CONTRACT","NEIGHBOURHOOD SERVICES","BUILDING CONSTRUCTION MATERIALS"
"http://statistics.data.gov.uk/id/local-authority/43UM","WOKING BOROUGH COUNCIL","01/08/2022","05/10/2022","0000482496/010","CHURCHILL CONTRACT SERVICES LTD","40917700","1904.54","NEIGHBOURHOOD SERVICES - CAR PARKS ADMIN&OPERATIONAL EX","FACILITIES MANAGEMENT CONTRACT","D909","FACILITIES MANAGEMENT CONTRACT","NEIGHBOURHOOD SERVICES","BUILDING CONSTRUCTION MATERIALS"
"http://statistics.data.gov.uk/id/local-authority/43UM","WOKING BOROUGH COUNCIL","01/08/2022","05/10/2022","0000482496/011","CHURCHILL CONTRACT SERVICES LTD","40917700","2063.20","NEIGHBOURHOOD SERVICES - CAR PARKS ADMIN&OPERATIONAL EX","FACILITIES MANAGEMENT CONTRACT","D909","FACILITIES MANAGEMENT CONTRACT","NEIGHBOURHOOD SERVICES","BUILDING CONSTRUCTION MATERIALS"
"http://statistics.data.gov.uk/id/local-authority/43UM","WOKING BOROUGH COUNCIL","01/08/2022","05/10/2022","0000482496/012","CHURCHILL CONTRACT SERVICES LTD","40917700","1766.64","NEIGHBOURHOOD SERVICES - CAR PARKS ADMIN&OPERATIONAL EX","FACILITIES MANAGEMENT CONTRACT","D909","FACILITIES MANAGEMENT CONTRACT","NEIGHBOURHOOD SERVICES","BUILDING CONSTRUCTION MATERIALS"
"http://statistics.data.gov.uk/id/local-authority/43UM","WOKING BOROUGH COUNCIL","01/08/2022","05/10/2022","0000482496/013","CHURCHILL CONTRACT SERVICES LTD","40917700","1156.01","NEIGHBOURHOOD SERVICES - CAR PARKS ADMIN&OPERATIONAL EX","FACILITIES MANAGEMENT CONTRACT","D909","FACILITIES MANAGEMENT CONTRACT","NEIGHBOURHOOD SERVICES","BUILDING CONSTRUCTION MATERIALS"
"http://statistics.data.gov.uk/id/local-authority/43UM","WOKING BOROUGH COUNCIL","01/08/2022","05/10/2022","0000482496/014","CHURCHILL CONTRACT SERVICES LTD","40917700","613.01","NEIGHBOURHOOD SERVICES - CAR PARKS ADMIN&OPERATIONAL EX","FACILITIES MANAGEMENT CONTRACT","D909","FACILITIES MANAGEMENT CONTRACT","NEIGHBOURHOOD SERVICES","BUILDING CONSTRUCTION MATERIALS"
"http://statistics.data.gov.uk/id/local-authority/43UM","WOKING BOROUGH COUNCIL","01/08/2022","05/10/2022","0000482496/015","CHURCHILL CONTRACT SERVICES LTD","40917700","6492.23","ASSET MANAGEMENT - WOLSEY PLACE","PEACOCKS R&M HOLDING","D108","PEACOCKS R&M HOLDING","ASSET MANAGEMENT","BUILDING CONSTRUCTION MATERIALS"
"http://statistics.data.gov.uk/id/local-authority/43UM","WOKING BOROUGH COUNCIL","01/08/2022","05/10/2022","0000482496/016","CHURCHILL CONTRACT SERVICES LTD","40917700","389.02","ASSET MANAGEMENT - PEACOCKS - GENERAL","PEACOCKS R&M HOLDING","D108","PEACOCKS R&M HOLDING","ASSET MANAGEMENT","BUILDING CONSTRUCTION MATERIALS"
"http://statistics.data.gov.uk/id/local-authority/43UM","WOKING BOROUGH COUNCIL","01/08/2022","05/10/2022","0000482496/017","CHURCHILL CONTRACT SERVICES LTD","40917700","43479.08","ASSET MANAGEMENT - PEACOCKS - GENERAL","PEACOCKS R&M HOLDING","D108","PEACOCKS R&M HOLDING","ASSET MANAGEMENT","BUILDING CONSTRUCTION MATERIALS"
"http://statistics.data.gov.uk/id/local-authority/43UM","WOKING BOROUGH COUNCIL","01/08/2022","05/10/2022","0000482496/018","CHURCHILL CONTRACT SERVICES LTD","40917700","21187.15","ASSET MANAGEMENT - WOLSEY PLACE","PEACOCKS R&M HOLDING","D108","PEACOCKS R&M HOLDING","ASSET MANAGEMENT","BUILDING CONSTRUCTION MATERIALS"
"http://statistics.data.gov.uk/id/local-authority/43UM","WOKING BOROUGH COUNCIL","01/08/2022","05/10/2022","0000482496/019","CHURCHILL CONTRACT SERVICES LTD","40917700","6731.47","ASSET MANAGEMENT - PUBLIC CONVENIENCES","FACILITIES MANAGEMENT CONTRACT","D909","FACILITIES MANAGEMENT CONTRACT","ASSET MANAGEMENT","BUILDING CONSTRUCTION MATERIALS"
"http://statistics.data.gov.uk/id/local-authority/43UM","WOKING BOROUGH COUNCIL","01/08/2022","05/10/2022","0000482496/020","CHURCHILL CONTRACT SERVICES LTD","40917700","567.74","INDEPENDENT LIVING SERVICES - FAMILY CENTRES","FACILITIES MANAGEMENT CONTRACT","D909","FACILITIES MANAGEMENT CONTRACT","INDEPENDENT LIVING SERVICES","BUILDING CONSTRUCTION MATERIALS"
"http://statistics.data.gov.uk/id/local-authority/43UM","WOKING BOROUGH COUNCIL","01/08/2022","05/10/2022","0000482496/021","CHURCHILL CONTRACT SERVICES LTD","40917700","494.51","HOUSING SERVICES - DISABLED FACILITIES GRANTS","CONTRACT CLEANING","D900","CONTRACT CLEANING","HOUSING SERVICES","BUILDING CONSTRUCTION MATERIALS"
"http://statistics.data.gov.uk/id/local-authority/43UM","WOKING BOROUGH COUNCIL","01/08/2022","05/10/2022","0000482496/022","CHURCHILL CONTRACT SERVICES LTD","40917700","33.02","INDEPENDENT LIVING SERVICES - ALPHA RD COMMUNITY HALL","FACILITIES MANAGEMENT CONTRACT","D909","FACILITIES MANAGEMENT CONTRACT","INDEPENDENT LIVING SERVICES","BUILDING CONSTRUCTION MATERIALS"
"http://statistics.data.gov.uk/id/local-authority/43UM","WOKING BOROUGH COUNCIL","01/08/2022","05/10/2022","0000482496/023","CHURCHILL CONTRACT SERVICES LTD","40917700","7.97","ASSET MANAGEMENT - MAYBURY CENTRE","FACILITIES MANAGEMENT CONTRACT","D909","FACILITIES MANAGEMENT CONTRACT","ASSET MANAGEMENT","BUILDING CONSTRUCTION MATERIALS"
"http://statistics.data.gov.uk/id/local-authority/43UM","WOKING BOROUGH COUNCIL","01/08/2022","05/10/2022","0000482496/024","CHURCHILL CONTRACT SERVICES LTD","40917700","338.89","INDEPENDENT LIVING SERVICES - THE VYNE","FACILITIES MANAGEMENT CONTRACT","D909","FACILITIES MANAGEMENT CONTRACT","INDEPENDENT LIVING SERVICES","BUILDING CONSTRUCTION MATERIALS"
"http://statistics.data.gov.uk/id/local-authority/43UM","WOKING BOROUGH COUNCIL","01/08/2022","05/10/2022","0000482496/025","CHURCHILL CONTRACT SERVICES LTD","40917700","8.22","ASSET MANAGEMENT - PUBLIC CONVENIENCES","FACILITIES MANAGEMENT CONTRACT","D909","FACILITIES MANAGEMENT CONTRACT","ASSET MANAGEMENT","BUILDING CONSTRUCTION MATERIALS"
"http://statistics.data.gov.uk/id/local-authority/43UM","WOKING BOROUGH COUNCIL","01/08/2022","05/10/2022","0000482496/026","CHURCHILL CONTRACT SERVICES LTD","40917700","357.65","INDEPENDENT LIVING SERVICES - MEALS SERVICE - ST MARYS","FACILITIES MANAGEMENT CONTRACT","D909","FACILITIES MANAGEMENT CONTRACT","INDEPENDENT LIVING SERVICES","BUILDING CONSTRUCTION MATERIALS"
"http://statistics.data.gov.uk/id/local-authority/43UM","WOKING BOROUGH COUNCIL","01/08/2022","05/10/2022","0000482496/027","CHURCHILL CONTRACT SERVICES LTD","40917700","306.73","ASSET MANAGEMENT - CCTV CONTROL ROOM","CONTRACT CLEANING","D900","CONTRACT CLEANING","ASSET MANAGEMENT","BUILDING CONSTRUCTION MATERIALS"
"http://statistics.data.gov.uk/id/local-authority/43UM","WOKING BOROUGH COUNCIL","01/08/2022","05/10/2022","0000482496/028","CHURCHILL CONTRACT SERVICES LTD","40917700","1551.33","INDEPENDENT LIVING SERVICES - HALE END COURT","CONTRACT CLEANING","D900","CONTRACT CLEANING","INDEPENDENT LIVING SERVICES","BUILDING CONSTRUCTION MATERIALS"
"http://statistics.data.gov.uk/id/local-authority/43UM","WOKING BOROUGH COUNCIL","01/08/2022","05/10/2022","0000482496/029","CHURCHILL CONTRACT SERVICES LTD","40917700","318.98","INDEPENDENT LIVING SERVICES - MEALS SERVICE-MOORCROFT","FACILITIES MANAGEMENT CONTRACT","D909","FACILITIES MANAGEMENT CONTRACT","INDEPENDENT LIVING SERVICES","BUILDING CONSTRUCTION MATERIALS"
"http://statistics.data.gov.uk/id/local-authority/43UM","WOKING BOROUGH COUNCIL","01/08/2022","05/10/2022","0000482496/030","CHURCHILL CONTRACT SERVICES LTD","40917700","335.24","INDEPENDENT LIVING SERVICES - BROCKHILL EXTRA CARE","FACILITIES MANAGEMENT CONTRACT","D909","FACILITIES MANAGEMENT CONTRACT","INDEPENDENT LIVING SERVICES","BUILDING CONSTRUCTION MATERIALS"
"http://statistics.data.gov.uk/id/local-authority/43UM","WOKING BOROUGH COUNCIL","01/08/2022","05/10/2022","0000482496/031","CHURCHILL CONTRACT SERVICES LTD","40917700","9931.16","NEIGHBOURHOOD SERVICES - CAR PARKS ADMIN&OPERATIONAL EX","FACILITIES MANAGEMENT CONTRACT","D909","FACILITIES MANAGEMENT CONTRACT","NEIGHBOURHOOD SERVICES","BUILDING CONSTRUCTION MATERIALS"
"http://statistics.data.gov.uk/id/local-authority/43UM","WOKING BOROUGH COUNCIL","01/08/2022","05/10/2022","0000482496/032","CHURCHILL CONTRACT SERVICES LTD","40917700","13321.69","HOUSING SERVICES - FM CONTRACT REC GREEN CAR PARK","PAYMENT TO CONTRACTOR","T700","PAYMENT TO CONTRACTOR","HOUSING SERVICES","BUILDING CONSTRUCTION MATERIALS"
"http://statistics.data.gov.uk/id/local-authority/43UM","WOKING BOROUGH COUNCIL","01/08/2022","05/10/2022","0000482496/033","CHURCHILL CONTRACT SERVICES LTD","40917700","25170.47","HOUSING SERVICES - FM CONTRACT REC HENRY PLAZA","PAYMENT TO CONTRACTOR","T700","PAYMENT TO CONTRACTOR","HOUSING SERVICES","BUILDING CONSTRUCTION MATERIALS"
"http://statistics.data.gov.uk/id/local-authority/43UM","WOKING BOROUGH COUNCIL","01/08/2022","05/10/2022","0000482496/034","CHURCHILL CONTRACT SERVICES LTD","40917700","9.36","NEIGHBOURHOOD SERVICES - ARTS DEVELOPMENT","EQUIPMENT REPAIR & MAINTENANCE","G120","EQUIPMENT REPAIR & MAINTENANCE","NEIGHBOURHOOD SERVICES","BUILDING CONSTRUCTION MATERIALS"
"http://statistics.data.gov.uk/id/local-authority/43UM","WOKING BOROUGH COUNCIL","29/09/2022","05/10/2022","0000482497/001","CHURCHILL CONTRACT SERVICES LTD","40917700","34.36","INDEPENDENT LIVING SERVICES - BROCKHILL EXTRA CARE","FACILITIES MANAGEMENT CONTRACT","D909","FACILITIES MANAGEMENT CONTRACT","INDEPENDENT LIVING SERVICES","BUILDING CONSTRUCTION MATERIALS"
"http://statistics.data.gov.uk/id/local-authority/43UM","WOKING BOROUGH COUNCIL","29/09/2022","05/10/2022","0000482497/002","CHURCHILL CONTRACT SERVICES LTD","40917700","83.40","ASSET MANAGEMENT - CIVIC OFFICES","FACILITIES MANAGEMENT CONTRACT","D909","FACILITIES MANAGEMENT CONTRACT","ASSET MANAGEMENT","BUILDING CONSTRUCTION MATERIALS"
"http://statistics.data.gov.uk/id/local-authority/43UM","WOKING BOROUGH COUNCIL","29/09/2022","05/10/2022","0000482497/003","CHURCHILL CONTRACT SERVICES LTD","40917700","344.85","NEIGHBOURHOOD SERVICES - CAR PARKS ADMIN&OPERATIONAL EX","FACILITIES MANAGEMENT CONTRACT","D909","FACILITIES MANAGEMENT CONTRACT","NEIGHBOURHOOD SERVICES","BUILDING CONSTRUCTION MATERIALS"
"http://statistics.data.gov.uk/id/local-authority/43UM","WOKING BOROUGH COUNCIL","29/09/2022","05/10/2022","0000482497/004","CHURCHILL CONTRACT SERVICES LTD","40917700","589.27","NEIGHBOURHOOD SERVICES - ARTS DEVELOPMENT","EQUIPMENT REPAIR & MAINTENANCE","G120","EQUIPMENT REPAIR & MAINTENANCE","NEIGHBOURHOOD SERVICES","BUILDING CONSTRUCTION MATERIALS"
"http://statistics.data.gov.uk/id/local-authority/43UM","WOKING BOROUGH COUNCIL","29/09/2022","05/10/2022","0000482497/005","CHURCHILL CONTRACT SERVICES LTD","40917700","34.36","INDEPENDENT LIVING SERVICES - BROCKHILL EXTRA CARE","FACILITIES MANAGEMENT CONTRACT","D909","FACILITIES MANAGEMENT CONTRACT","INDEPENDENT LIVING SERVICES","BUILDING CONSTRUCTION MATERIALS"
"http://statistics.data.gov.uk/id/local-authority/43UM","WOKING BOROUGH COUNCIL","26/09/2022","05/10/2022","0000482498/001","CHURCHILL CONTRACT SERVICES LTD","40917700","998.25","ASSET MANAGEMENT - PEACOCKS - GENERAL","PEACOCKS R&M HOLDING","D108","PEACOCKS R&M HOLDING","ASSET MANAGEMENT","BUILDING CONSTRUCTION MATERIALS"
"http://statistics.data.gov.uk/id/local-authority/43UM","WOKING BOROUGH COUNCIL","26/09/2022","05/10/2022","0000482498/002","CHURCHILL CONTRACT SERVICES LTD","40917700","68.73","INDEPENDENT LIVING SERVICES - BROCKHILL EXTRA CARE","FACILITIES MANAGEMENT CONTRACT","D909","FACILITIES MANAGEMENT CONTRACT","INDEPENDENT LIVING SERVICES","BUILDING CONSTRUCTION MATERIALS"
"http://statistics.data.gov.uk/id/local-authority/43UM","WOKING BOROUGH COUNCIL","26/09/2022","05/10/2022","0000482498/003","CHURCHILL CONTRACT SERVICES LTD","40917700","30.00","ASSET MANAGEMENT - PEACOCKS - GENERAL","PEACOCKS R&M HOLDING","D108","PEACOCKS R&M HOLDING","ASSET MANAGEMENT","BUILDING CONSTRUCTION MATERIALS"
"http://statistics.data.gov.uk/id/local-authority/43UM","WOKING BOROUGH COUNCIL","26/09/2022","05/10/2022","0000482498/004","CHURCHILL CONTRACT SERVICES LTD","40917700","147.62","ASSET MANAGEMENT - PUBLIC CONVENIENCES","FACILITIES MANAGEMENT CONTRACT","D909","FACILITIES MANAGEMENT CONTRACT","ASSET MANAGEMENT","BUILDING CONSTRUCTION MATERIALS"
"http://statistics.data.gov.uk/id/local-authority/43UM","WOKING BOROUGH COUNCIL","26/09/2022","05/10/2022","0000482498/005","CHURCHILL CONTRACT SERVICES LTD","40917700","40.00","ASSET MANAGEMENT - PUBLIC CONVENIENCES","FACILITIES MANAGEMENT CONTRACT","D909","FACILITIES MANAGEMENT CONTRACT","ASSET MANAGEMENT","BUILDING CONSTRUCTION MATERIALS"
"http://statistics.data.gov.uk/id/local-authority/43UM","WOKING BOROUGH COUNCIL","01/07/2022","05/10/2022","0000482499/001","CHURCHILL CONTRACT SERVICES LTD","40917700","1502.10","ASSET MANAGEMENT - UNIT 14B MON WAY EAST","FACILITIES MANAGEMENT CONTRACT","D909","FACILITIES MANAGEMENT CONTRACT","ASSET MANAGEMENT","BUILDING CONSTRUCTION MATERIALS"
"http://statistics.data.gov.uk/id/local-authority/43UM","WOKING BOROUGH COUNCIL","01/07/2022","05/10/2022","0000482499/002","CHURCHILL CONTRACT SERVICES LTD","40917700","549.05","ASSET MANAGEMENT - 19A HIGH STREET","FACILITIES MANAGEMENT CONTRACT","D909","FACILITIES MANAGEMENT CONTRACT","ASSET MANAGEMENT","BUILDING CONSTRUCTION MATERIALS"
"http://statistics.data.gov.uk/id/local-authority/43UM","WOKING BOROUGH COUNCIL","01/07/2022","05/10/2022","0000482499/003","CHURCHILL CONTRACT SERVICES LTD","40917700","124.04","ASSET MANAGEMENT - 20 HIGH ST. WOKING","FACILITIES MANAGEMENT CONTRACT","D909","FACILITIES MANAGEMENT CONTRACT","ASSET MANAGEMENT","BUILDING CONSTRUCTION MATERIALS"
"http://statistics.data.gov.uk/id/local-authority/43UM","WOKING BOROUGH COUNCIL","01/07/2022","05/10/2022","0000482499/004","CHURCHILL CONTRACT SERVICES LTD","40917700","10340.57","ASSET MANAGEMENT - CIVIC OFFICES","FACILITIES MANAGEMENT CONTRACT","D909","FACILITIES MANAGEMENT CONTRACT","ASSET MANAGEMENT","BUILDING CONSTRUCTION MATERIALS"
"http://statistics.data.gov.uk/id/local-authority/43UM","WOKING BOROUGH COUNCIL","01/07/2022","05/10/2022","0000482499/005","CHURCHILL CONTRACT SERVICES LTD","40917700","1473.44","NEIGHBOURHOOD SERVICES - THE LIGHTBOX","PEACOCKS R&M HOLDING","D108","PEACOCKS R&M HOLDING","NEIGHBOURHOOD SERVICES","BUILDING CONSTRUCTION MATERIALS"
"http://statistics.data.gov.uk/id/local-authority/43UM","WOKING BOROUGH COUNCIL","01/07/2022","05/10/2022","0000482499/006","CHURCHILL CONTRACT SERVICES LTD","40917700","282.05","INDEPENDENT LIVING SERVICES - BROCKHILL EXTRA CARE","FACILITIES MANAGEMENT CONTRACT","D909","FACILITIES MANAGEMENT CONTRACT","INDEPENDENT LIVING SERVICES","BUILDING CONSTRUCTION MATERIALS"
"http://statistics.data.gov.uk/id/local-authority/43UM","WOKING BOROUGH COUNCIL","01/07/2022","05/10/2022","0000482499/007","CHURCHILL CONTRACT SERVICES LTD","40917700","1270.40","INDEPENDENT LIVING SERVICES - BROCKHILL EXTRA CARE","FACILITIES MANAGEMENT CONTRACT","D909","FACILITIES MANAGEMENT CONTRACT","INDEPENDENT LIVING SERVICES","BUILDING CONSTRUCTION MATERIALS"
"http://statistics.data.gov.uk/id/local-authority/43UM","WOKING BOROUGH COUNCIL","01/07/2022","05/10/2022","0000482499/008","CHURCHILL CONTRACT SERVICES LTD","40917700","384.69","NEIGHBOURHOOD SERVICES - CAR PARKS ADMIN&OPERATIONAL EX","FACILITIES MANAGEMENT CONTRACT","D909","FACILITIES MANAGEMENT CONTRACT","NEIGHBOURHOOD SERVICES","BUILDING CONSTRUCTION MATERIALS"
"http://statistics.data.gov.uk/id/local-authority/43UM","WOKING BOROUGH COUNCIL","01/07/2022","05/10/2022","0000482499/009","CHURCHILL CONTRACT SERVICES LTD","40917700","2128.77","NEIGHBOURHOOD SERVICES - CAR PARKS ADMIN&OPERATIONAL EX","FACILITIES MANAGEMENT CONTRACT","D909","FACILITIES MANAGEMENT CONTRACT","NEIGHBOURHOOD SERVICES","BUILDING CONSTRUCTION MATERIALS"
"http://statistics.data.gov.uk/id/local-authority/43UM","WOKING BOROUGH COUNCIL","01/07/2022","05/10/2022","0000482499/010","CHURCHILL CONTRACT SERVICES LTD","40917700","1904.54","NEIGHBOURHOOD SERVICES - CAR PARKS ADMIN&OPERATIONAL EX","FACILITIES MANAGEMENT CONTRACT","D909","FACILITIES MANAGEMENT CONTRACT","NEIGHBOURHOOD SERVICES","BUILDING CONSTRUCTION MATERIALS"
"http://statistics.data.gov.uk/id/local-authority/43UM","WOKING BOROUGH COUNCIL","01/07/2022","05/10/2022","0000482499/011","CHURCHILL CONTRACT SERVICES LTD","40917700","2063.20","NEIGHBOURHOOD SERVICES - CAR PARKS ADMIN&OPERATIONAL EX","FACILITIES MANAGEMENT CONTRACT","D909","FACILITIES MANAGEMENT CONTRACT","NEIGHBOURHOOD SERVICES","BUILDING CONSTRUCTION MATERIALS"
"http://statistics.data.gov.uk/id/local-authority/43UM","WOKING BOROUGH COUNCIL","01/07/2022","05/10/2022","0000482499/012","CHURCHILL CONTRACT SERVICES LTD","40917700","1766.64","NEIGHBOURHOOD SERVICES - CAR PARKS ADMIN&OPERATIONAL EX","FACILITIES MANAGEMENT CONTRACT","D909","FACILITIES MANAGEMENT CONTRACT","NEIGHBOURHOOD SERVICES","BUILDING CONSTRUCTION MATERIALS"
"http://statistics.data.gov.uk/id/local-authority/43UM","WOKING BOROUGH COUNCIL","01/07/2022","05/10/2022","0000482499/013","CHURCHILL CONTRACT SERVICES LTD","40917700","1156.01","NEIGHBOURHOOD SERVICES - CAR PARKS ADMIN&OPERATIONAL EX","FACILITIES MANAGEMENT CONTRACT","D909","FACILITIES MANAGEMENT CONTRACT","NEIGHBOURHOOD SERVICES","BUILDING CONSTRUCTION MATERIALS"
"http://statistics.data.gov.uk/id/local-authority/43UM","WOKING BOROUGH COUNCIL","01/07/2022","05/10/2022","0000482499/014","CHURCHILL CONTRACT SERVICES LTD","40917700","613.01","NEIGHBOURHOOD SERVICES - CAR PARKS ADMIN&OPERATIONAL EX","FACILITIES MANAGEMENT CONTRACT","D909","FACILITIES MANAGEMENT CONTRACT","NEIGHBOURHOOD SERVICES","BUILDING CONSTRUCTION MATERIALS"
"http://statistics.data.gov.uk/id/local-authority/43UM","WOKING BOROUGH COUNCIL","01/07/2022","05/10/2022","0000482499/015","CHURCHILL CONTRACT SERVICES LTD","40917700","6492.23","ASSET MANAGEMENT - WOLSEY PLACE","PEACOCKS R&M HOLDING","D108","PEACOCKS R&M HOLDING","ASSET MANAGEMENT","BUILDING CONSTRUCTION MATERIALS"
"http://statistics.data.gov.uk/id/local-authority/43UM","WOKING BOROUGH COUNCIL","01/07/2022","05/10/2022","0000482499/016","CHURCHILL CONTRACT SERVICES LTD","40917700","389.02","ASSET MANAGEMENT - PEACOCKS - GENERAL","PEACOCKS R&M HOLDING","D108","PEACOCKS R&M HOLDING","ASSET MANAGEMENT","BUILDING CONSTRUCTION MATERIALS"
"http://statistics.data.gov.uk/id/local-authority/43UM","WOKING BOROUGH COUNCIL","01/07/2022","05/10/2022","0000482499/017","CHURCHILL CONTRACT SERVICES LTD","40917700","43479.08","ASSET MANAGEMENT - PEACOCKS - GENERAL","PEACOCKS R&M HOLDING","D108","PEACOCKS R&M HOLDING","ASSET MANAGEMENT","BUILDING CONSTRUCTION MATERIALS"
"http://statistics.data.gov.uk/id/local-authority/43UM","WOKING BOROUGH COUNCIL","01/07/2022","05/10/2022","0000482499/018","CHURCHILL CONTRACT SERVICES LTD","40917700","21187.15","ASSET MANAGEMENT - WOLSEY PLACE","PEACOCKS R&M HOLDING","D108","PEACOCKS R&M HOLDING","ASSET MANAGEMENT","BUILDING CONSTRUCTION MATERIALS"
"http://statistics.data.gov.uk/id/local-authority/43UM","WOKING BOROUGH COUNCIL","01/07/2022","05/10/2022","0000482499/019","CHURCHILL CONTRACT SERVICES LTD","40917700","6731.47","ASSET MANAGEMENT - PUBLIC CONVENIENCES","FACILITIES MANAGEMENT CONTRACT","D909","FACILITIES MANAGEMENT CONTRACT","ASSET MANAGEMENT","BUILDING CONSTRUCTION MATERIALS"
"http://statistics.data.gov.uk/id/local-authority/43UM","WOKING BOROUGH COUNCIL","01/07/2022","05/10/2022","0000482499/020","CHURCHILL CONTRACT SERVICES LTD","40917700","567.74","INDEPENDENT LIVING SERVICES - FAMILY CENTRES","FACILITIES MANAGEMENT CONTRACT","D909","FACILITIES MANAGEMENT CONTRACT","INDEPENDENT LIVING SERVICES","BUILDING CONSTRUCTION MATERIALS"
"http://statistics.data.gov.uk/id/local-authority/43UM","WOKING BOROUGH COUNCIL","01/07/2022","05/10/2022","0000482499/021","CHURCHILL CONTRACT SERVICES LTD","40917700","494.51","HOUSING SERVICES - DISABLED FACILITIES GRANTS","CONTRACT CLEANING","D900","CONTRACT CLEANING","HOUSING SERVICES","BUILDING CONSTRUCTION MATERIALS"
"http://statistics.data.gov.uk/id/local-authority/43UM","WOKING BOROUGH COUNCIL","01/07/2022","05/10/2022","0000482499/022","CHURCHILL CONTRACT SERVICES LTD","40917700","33.02","INDEPENDENT LIVING SERVICES - ALPHA RD COMMUNITY HALL","FACILITIES MANAGEMENT CONTRACT","D909","FACILITIES MANAGEMENT CONTRACT","INDEPENDENT LIVING SERVICES","BUILDING CONSTRUCTION MATERIALS"
"http://statistics.data.gov.uk/id/local-authority/43UM","WOKING BOROUGH COUNCIL","01/07/2022","05/10/2022","0000482499/023","CHURCHILL CONTRACT SERVICES LTD","40917700","7.97","ASSET MANAGEMENT - MAYBURY CENTRE","FACILITIES MANAGEMENT CONTRACT","D909","FACILITIES MANAGEMENT CONTRACT","ASSET MANAGEMENT","BUILDING CONSTRUCTION MATERIALS"
"http://statistics.data.gov.uk/id/local-authority/43UM","WOKING BOROUGH COUNCIL","01/07/2022","05/10/2022","0000482499/024","CHURCHILL CONTRACT SERVICES LTD","40917700","338.89","INDEPENDENT LIVING SERVICES - THE VYNE","FACILITIES MANAGEMENT CONTRACT","D909","FACILITIES MANAGEMENT CONTRACT","INDEPENDENT LIVING SERVICES","BUILDING CONSTRUCTION MATERIALS"
"http://statistics.data.gov.uk/id/local-authority/43UM","WOKING BOROUGH COUNCIL","01/07/2022","05/10/2022","0000482499/025","CHURCHILL CONTRACT SERVICES LTD","40917700","8.22","ASSET MANAGEMENT - PUBLIC CONVENIENCES","FACILITIES MANAGEMENT CONTRACT","D909","FACILITIES MANAGEMENT CONTRACT","ASSET MANAGEMENT","BUILDING CONSTRUCTION MATERIALS"
"http://statistics.data.gov.uk/id/local-authority/43UM","WOKING BOROUGH COUNCIL","01/07/2022","05/10/2022","0000482499/026","CHURCHILL CONTRACT SERVICES LTD","40917700","357.65","INDEPENDENT LIVING SERVICES - MEALS SERVICE - ST MARYS","FACILITIES MANAGEMENT CONTRACT","D909","FACILITIES MANAGEMENT CONTRACT","INDEPENDENT LIVING SERVICES","BUILDING CONSTRUCTION MATERIALS"
"http://statistics.data.gov.uk/id/local-authority/43UM","WOKING BOROUGH COUNCIL","01/07/2022","05/10/2022","0000482499/027","CHURCHILL CONTRACT SERVICES LTD","40917700","306.73","ASSET MANAGEMENT - CCTV CONTROL ROOM","CONTRACT CLEANING","D900","CONTRACT CLEANING","ASSET MANAGEMENT","BUILDING CONSTRUCTION MATERIALS"
"http://statistics.data.gov.uk/id/local-authority/43UM","WOKING BOROUGH COUNCIL","01/07/2022","05/10/2022","0000482499/028","CHURCHILL CONTRACT SERVICES LTD","40917700","1551.33","INDEPENDENT LIVING SERVICES - HALE END COURT","CONTRACT CLEANING","D900","CONTRACT CLEANING","INDEPENDENT LIVING SERVICES","BUILDING CONSTRUCTION MATERIALS"
"http://statistics.data.gov.uk/id/local-authority/43UM","WOKING BOROUGH COUNCIL","01/07/2022","05/10/2022","0000482499/029","CHURCHILL CONTRACT SERVICES LTD","40917700","318.98","INDEPENDENT LIVING SERVICES - MEALS SERVICE-MOORCROFT","FACILITIES MANAGEMENT CONTRACT","D909","FACILITIES MANAGEMENT CONTRACT","INDEPENDENT LIVING SERVICES","BUILDING CONSTRUCTION MATERIALS"
"http://statistics.data.gov.uk/id/local-authority/43UM","WOKING BOROUGH COUNCIL","01/07/2022","05/10/2022","0000482499/030","CHURCHILL CONTRACT SERVICES LTD","40917700","335.24","INDEPENDENT LIVING SERVICES - BROCKHILL EXTRA CARE","FACILITIES MANAGEMENT CONTRACT","D909","FACILITIES MANAGEMENT CONTRACT","INDEPENDENT LIVING SERVICES","BUILDING CONSTRUCTION MATERIALS"
"http://statistics.data.gov.uk/id/local-authority/43UM","WOKING BOROUGH COUNCIL","01/07/2022","05/10/2022","0000482499/031","CHURCHILL CONTRACT SERVICES LTD","40917700","9931.16","NEIGHBOURHOOD SERVICES - CAR PARKS ADMIN&OPERATIONAL EX","FACILITIES MANAGEMENT CONTRACT","D909","FACILITIES MANAGEMENT CONTRACT","NEIGHBOURHOOD SERVICES","BUILDING CONSTRUCTION MATERIALS"
"http://statistics.data.gov.uk/id/local-authority/43UM","WOKING BOROUGH COUNCIL","01/07/2022","05/10/2022","0000482499/032","CHURCHILL CONTRACT SERVICES LTD","40917700","13321.69","HOUSING SERVICES - FM CONTRACT REC GREEN CAR PARK","PAYMENT TO CONTRACTOR","T700","PAYMENT TO CONTRACTOR","HOUSING SERVICES","BUILDING CONSTRUCTION MATERIALS"
"http://statistics.data.gov.uk/id/local-authority/43UM","WOKING BOROUGH COUNCIL","01/07/2022","05/10/2022","0000482499/033","CHURCHILL CONTRACT SERVICES LTD","40917700","25170.47","HOUSING SERVICES - FM CONTRACT REC HENRY PLAZA","PAYMENT TO CONTRACTOR","T700","PAYMENT TO CONTRACTOR","HOUSING SERVICES","BUILDING CONSTRUCTION MATERIALS"
"http://statistics.data.gov.uk/id/local-authority/43UM","WOKING BOROUGH COUNCIL","30/09/2022","05/10/2022","0000482550/001","MALTAWARD BARRIERS LTD","40850900","21.43","ASSET MANAGEMENT - WATERMAN HSE & TA UPGRADE","MAIN CONTRACTOR","Q200","MAIN CONTRACTOR","ASSET MANAGEMENT","BUILDING CONSTRUCTION MATERIALS"
"http://statistics.data.gov.uk/id/local-authority/43UM","WOKING BOROUGH COUNCIL","30/09/2022","05/10/2022","0000482555/001","EARTH ANCHORS LTD","00025400","632.00","PLANNING SERVICES - CIL - BYFLEET","MAIN CONTRACTOR","Q200","MAIN CONTRACTOR","PLANNING SERVICES","BUILDING CONSTRUCTION MATERIALS"
"http://statistics.data.gov.uk/id/local-authority/43UM","WOKING BOROUGH COUNCIL","22/09/2022","05/10/2022","0000482637/001","GIBBS & DANDY","40335300","105.37","HOUSING SERVICES - HOME IMPS & BEN AGENCY","HANDYPERSON MATERIALS","G201","HANDYPERSON MATERIALS","HOUSING SERVICES","BUILDING CONSTRUCTION MATERIALS"
"http://statistics.data.gov.uk/id/local-authority/43UM","WOKING BOROUGH COUNCIL","28/09/2022","05/10/2022","0000482639/001","GIBBS & DANDY","40335300","796.32","HOUSING SERVICES - HOME IMPS & BEN AGENCY","HANDYPERSON MATERIALS","G201","HANDYPERSON MATERIALS","HOUSING SERVICES","BUILDING CONSTRUCTION MATERIALS"
"http://statistics.data.gov.uk/id/local-authority/43UM","WOKING BOROUGH COUNCIL","28/09/2022","05/10/2022","0000482640/001","GIBBS & DANDY","40335300","3153.37","HOUSING SERVICES - HOME IMPS & BEN AGENCY","HANDYPERSON MATERIALS","G201","HANDYPERSON MATERIALS","HOUSING SERVICES","BUILDING CONSTRUCTION MATERIALS"
"http://statistics.data.gov.uk/id/local-authority/43UM","WOKING BOROUGH COUNCIL","28/09/2022","05/10/2022","0000482641/001","GIBBS & DANDY","40335300","58.86","HOUSING SERVICES - HOME IMPS & BEN AGENCY","HANDYPERSON MATERIALS","G201","HANDYPERSON MATERIALS","HOUSING SERVICES","BUILDING CONSTRUCTION MATERIALS"
"http://statistics.data.gov.uk/id/local-authority/43UM","WOKING BOROUGH COUNCIL","30/09/2022","05/10/2022","0000482642/001","GIBBS & DANDY","40335300","24.79","HOUSING SERVICES - HOME IMPS & BEN AGENCY","HANDYPERSON MATERIALS","G201","HANDYPERSON MATERIALS","HOUSING SERVICES","BUILDING CONSTRUCTION MATERIALS"
"http://statistics.data.gov.uk/id/local-authority/43UM","WOKING BOROUGH COUNCIL","17/09/2022","05/10/2022","0000482102/001","CHEESMAN BROTHERS LTD","01050500","26.27","INDEPENDENT LIVING SERVICES - MEALS SERVICE -THE VYNE","PROVISIONS","G410","PROVISIONS","INDEPENDENT LIVING SERVICES","CATERING"
"http://statistics.data.gov.uk/id/local-authority/43UM","WOKING BOROUGH COUNCIL","17/09/2022","05/10/2022","0000482102/002","CHEESMAN BROTHERS LTD","01050500","14.70","INDEPENDENT LIVING SERVICES - MEALS SERVICE - HALE END COURT","PROVISIONS","G410","PROVISIONS","INDEPENDENT LIVING SERVICES","CATERING"
"http://statistics.data.gov.uk/id/local-authority/43UM","WOKING BOROUGH COUNCIL","17/09/2022","05/10/2022","0000482102/003","CHEESMAN BROTHERS LTD","01050500","15.90","INDEPENDENT LIVING SERVICES - MEALS SERVICE - BROCKHILL","PROVISIONS","G410","PROVISIONS","INDEPENDENT LIVING SERVICES","CATERING"
"http://statistics.data.gov.uk/id/local-authority/43UM","WOKING BOROUGH COUNCIL","17/09/2022","05/10/2022","0000482102/004","CHEESMAN BROTHERS LTD","01050500","58.50","INDEPENDENT LIVING SERVICES - MEALS SERVICE - BROCKHILL","PROVISIONS","G410","PROVISIONS","INDEPENDENT LIVING SERVICES","CATERING"
"http://statistics.data.gov.uk/id/local-authority/43UM","WOKING BOROUGH COUNCIL","17/09/2022","05/10/2022","0000482102/005","CHEESMAN BROTHERS LTD","01050500","17.98","INDEPENDENT LIVING SERVICES - MEALS SERVICE -THE VYNE","PROVISIONS","G410","PROVISIONS","INDEPENDENT LIVING SERVICES","CATERING"
"http://statistics.data.gov.uk/id/local-authority/43UM","WOKING BOROUGH COUNCIL","01/07/2022","05/10/2022","0000482205/001","APETITO LTD","00186100","2873.34","INDEPENDENT LIVING SERVICES - MEALS ON WHEELS","VEHICLE LEASING COSTS","F400","VEHICLE LEASING COSTS","INDEPENDENT LIVING SERVICES","CATERING"
"http://statistics.data.gov.uk/id/local-authority/43UM","WOKING BOROUGH COUNCIL","21/09/2022","05/10/2022","0000482229/001","CHEESMAN BROTHERS LTD","01050500","34.73","INDEPENDENT LIVING SERVICES - MEALS ON WHEELS","PROVISIONS","G410","PROVISIONS","INDEPENDENT LIVING SERVICES","CATERING"
"http://statistics.data.gov.uk/id/local-authority/43UM","WOKING BOROUGH COUNCIL","23/09/2022","05/10/2022","0000482319/001","CHEESMAN BROTHERS LTD","01050500","36.31","INDEPENDENT LIVING SERVICES - MEALS ON WHEELS","PROVISIONS","G410","PROVISIONS","INDEPENDENT LIVING SERVICES","CATERING"
"http://statistics.data.gov.uk/id/local-authority/43UM","WOKING BOROUGH COUNCIL","24/09/2022","05/10/2022","0000482343/001","CHEESMAN BROTHERS LTD","01050500","23.39","INDEPENDENT LIVING SERVICES - MEALS SERVICE - BROCKHILL","PROVISIONS","G410","PROVISIONS","INDEPENDENT LIVING SERVICES","CATERING"
"http://statistics.data.gov.uk/id/local-authority/43UM","WOKING BOROUGH COUNCIL","24/09/2022","05/10/2022","0000482343/002","CHEESMAN BROTHERS LTD","01050500","26.11","INDEPENDENT LIVING SERVICES - MEALS SERVICE - HALE END COURT","PROVISIONS","G410","PROVISIONS","INDEPENDENT LIVING SERVICES","CATERING"
"http://statistics.data.gov.uk/id/local-authority/43UM","WOKING BOROUGH COUNCIL","14/09/2022","05/10/2022","0000482096/001","SERCO LIMITED","01380600","460.90","NEIGHBOURHOOD SERVICES - PARKS-GENERAL","SPORTS EQPT SUNDRIES","G171","SPORTS EQPT SUNDRIES","NEIGHBOURHOOD SERVICES","CLEANING & JANITORIAL"
"http://statistics.data.gov.uk/id/local-authority/43UM","WOKING BOROUGH COUNCIL","14/09/2022","05/10/2022","0000482096/002","SERCO LIMITED","01380600","209.01","NEIGHBOURHOOD SERVICES - PARKS-GENERAL","GROUNDS MAINT-CONTRACTORS","D200","GROUNDS MAINT-CONTRACTORS","NEIGHBOURHOOD SERVICES","CLEANING & JANITORIAL"
"http://statistics.data.gov.uk/id/local-authority/43UM","WOKING BOROUGH COUNCIL","14/09/2022","05/10/2022","0000482096/003","SERCO LIMITED","01380600","142.60","NEIGHBOURHOOD SERVICES - PARKS-GENERAL","PLAY EQUIPMENT","G167","PLAY EQUIPMENT","NEIGHBOURHOOD SERVICES","CLEANING & JANITORIAL"
"http://statistics.data.gov.uk/id/local-authority/43UM","WOKING BOROUGH COUNCIL","14/09/2022","05/10/2022","0000482096/004","SERCO LIMITED","01380600","320.57","NEIGHBOURHOOD SERVICES - STREET FURNITURE","GROUNDS MAINT-CONTRACTORS","D200","GROUNDS MAINT-CONTRACTORS","NEIGHBOURHOOD SERVICES","CLEANING & JANITORIAL"
"http://statistics.data.gov.uk/id/local-authority/43UM","WOKING BOROUGH COUNCIL","20/09/2022","05/10/2022","0000482132/001","WCS","00064200","42.50","INDEPENDENT LIVING SERVICES - THE VYNE","WINDOW CLEANING","D910","WINDOW CLEANING","INDEPENDENT LIVING SERVICES","CLEANING & JANITORIAL"
"http://statistics.data.gov.uk/id/local-authority/43UM","WOKING BOROUGH COUNCIL","26/08/2022","05/10/2022","0000482466/001","BOLLSCAR BUILDERS LTD","41003800","337.38","HOUSING SERVICES - PRIVATE SECTOR LEASING SCHEME","SCHED 1B VOIDS","D166","SCHED 1B VOIDS","HOUSING SERVICES","CLEANING & JANITORIAL"
"http://statistics.data.gov.uk/id/local-authority/43UM","WOKING BOROUGH COUNCIL","30/09/2022","05/10/2022","0000482629/001","BOLLSCAR BUILDERS LTD","41003800","568.31","HOUSING SERVICES - RESPONSIVE REPARS HRA","HRA REPAIRS CONTRACTOR","D112","HRA REPAIRS CONTRACTOR","HOUSING SERVICES","CLEANING & JANITORIAL"
"http://statistics.data.gov.uk/id/local-authority/43UM","WOKING BOROUGH COUNCIL","30/09/2022","05/10/2022","0000482630/001","BOLLSCAR BUILDERS LTD","41003800","55.00","HOUSING SERVICES - RESPONSIVE REPARS HRA","HRA REPAIRS CONTRACTOR","D112","HRA REPAIRS CONTRACTOR","HOUSING SERVICES","CLEANING & JANITORIAL"
"http://statistics.data.gov.uk/id/local-authority/43UM","WOKING BOROUGH COUNCIL","30/09/2022","05/10/2022","0000482631/001","BOLLSCAR BUILDERS LTD","41003800","5950.00","HOUSING SERVICES - PRIVATE SECTOR LEASING SCHEME","SCHED 1B VOIDS","D166","SCHED 1B VOIDS","HOUSING SERVICES","CLEANING & JANITORIAL"
"http://statistics.data.gov.uk/id/local-authority/43UM","WOKING BOROUGH COUNCIL","17/08/2022","05/10/2022","0000481222/001","JULIET-ANN BATISTA","40690700","77.90","CORPORATE STRATEGY - WAVS","INTERPRETATION & TRANSLATION","H636","INTERPRETATION & TRANSLATION","CORPORATE STRATEGY","CONSULTANCY"
"http://statistics.data.gov.uk/id/local-authority/43UM","WOKING BOROUGH COUNCIL","01/09/2022","05/10/2022","0000481662/001","PRIMARY BUSINESS SUPPORT","40912500","1718.75","HOUSING SERVICES - HOUSING MAINTENANCE PEOCUREMENT","OTHER CONSULTANTS","Q430","OTHER CONSULTANTS","HOUSING SERVICES","CONSULTANCY"
"http://statistics.data.gov.uk/id/local-authority/43UM","WOKING BOROUGH COUNCIL","12/09/2022","05/10/2022","0000482019/001","MARTA SMITH","40662800","414.68","CORPORATE STRATEGY - WAVS","INTERPRETATION & TRANSLATION","H636","INTERPRETATION & TRANSLATION","CORPORATE STRATEGY","CONSULTANCY"
"http://statistics.data.gov.uk/id/local-authority/43UM","WOKING BOROUGH COUNCIL","12/09/2022","05/10/2022","0000482020/001","LALEH MUSTAFA","40671400","224.00","CORPORATE STRATEGY - WAVS","INTERPRETATION & TRANSLATION","H636","INTERPRETATION & TRANSLATION","CORPORATE STRATEGY","CONSULTANCY"
"http://statistics.data.gov.uk/id/local-authority/43UM","WOKING BOROUGH COUNCIL","20/08/2022","05/10/2022","0000482037/001","NYIT MEE MORBEY","40668000","20.68","CORPORATE STRATEGY - WAVS","INTERPRETATION & TRANSLATION","H636","INTERPRETATION & TRANSLATION","CORPORATE STRATEGY","CONSULTANCY"
"http://statistics.data.gov.uk/id/local-authority/43UM","WOKING BOROUGH COUNCIL","15/06/2022","05/10/2022","0000482038/001","SIU WAN THOMAS","00520200","10.00","CORPORATE STRATEGY - WAVS","INTERPRETATION & TRANSLATION","H636","INTERPRETATION & TRANSLATION","CORPORATE STRATEGY","CONSULTANCY"
"http://statistics.data.gov.uk/id/local-authority/43UM","WOKING BOROUGH COUNCIL","08/06/2022","05/10/2022","0000482039/001","SIU WAN THOMAS","00520200","16.00","CORPORATE STRATEGY - WAVS","INTERPRETATION & TRANSLATION","H636","INTERPRETATION & TRANSLATION","CORPORATE STRATEGY","CONSULTANCY"
"http://statistics.data.gov.uk/id/local-authority/43UM","WOKING BOROUGH COUNCIL","06/07/2022","05/10/2022","0000482040/001","KAUSER MASOOD","40686100","62.00","CORPORATE STRATEGY - WAVS","INTERPRETATION & TRANSLATION","H636","INTERPRETATION & TRANSLATION","CORPORATE STRATEGY","CONSULTANCY"
"http://statistics.data.gov.uk/id/local-authority/43UM","WOKING BOROUGH COUNCIL","05/07/2022","05/10/2022","0000482041/001","KAUSER MASOOD","40686100","70.50","CORPORATE STRATEGY - WAVS","INTERPRETATION & TRANSLATION","H636","INTERPRETATION & TRANSLATION","CORPORATE STRATEGY","CONSULTANCY"
"http://statistics.data.gov.uk/id/local-authority/43UM","WOKING BOROUGH COUNCIL","16/09/2022","05/10/2022","0000482170/001","WERONIKA KLAPTOCZ","40669000","47.20","CORPORATE STRATEGY - WAVS","INTERPRETATION & TRANSLATION","H636","INTERPRETATION & TRANSLATION","CORPORATE STRATEGY","CONSULTANCY"
"http://statistics.data.gov.uk/id/local-authority/43UM","WOKING BOROUGH COUNCIL","19/09/2022","05/10/2022","0000482171/001","WERONIKA KLAPTOCZ","40669000","29.70","CORPORATE STRATEGY - WAVS","INTERPRETATION & TRANSLATION","H636","INTERPRETATION & TRANSLATION","CORPORATE STRATEGY","CONSULTANCY"
"http://statistics.data.gov.uk/id/local-authority/43UM","WOKING BOROUGH COUNCIL","19/09/2022","05/10/2022","0000482175/001","FATMA MEHMET","40663600","44.50","CORPORATE STRATEGY - WAVS","INTERPRETATION & TRANSLATION","H636","INTERPRETATION & TRANSLATION","CORPORATE STRATEGY","CONSULTANCY"
"http://statistics.data.gov.uk/id/local-authority/43UM","WOKING BOROUGH COUNCIL","15/09/2022","05/10/2022","0000482181/001","MIRIAM DA COSTA MACHADO","40680600","20.00","CORPORATE STRATEGY - WAVS","INTERPRETATION & TRANSLATION","H636","INTERPRETATION & TRANSLATION","CORPORATE STRATEGY","CONSULTANCY"
"http://statistics.data.gov.uk/id/local-authority/43UM","WOKING BOROUGH COUNCIL","20/09/2022","05/10/2022","0000482313/001","LUTHFUL KARIM","40662700","678.80","CORPORATE STRATEGY - WAVS","INTERPRETATION & TRANSLATION","H636","INTERPRETATION & TRANSLATION","CORPORATE STRATEGY","CONSULTANCY"
"http://statistics.data.gov.uk/id/local-authority/43UM","WOKING BOROUGH COUNCIL","12/09/2022","05/10/2022","0000482314/001","FATMA MEHMET","40663600","458.00","CORPORATE STRATEGY - WAVS","INTERPRETATION & TRANSLATION","H636","INTERPRETATION & TRANSLATION","CORPORATE STRATEGY","CONSULTANCY"
"http://statistics.data.gov.uk/id/local-authority/43UM","WOKING BOROUGH COUNCIL","12/09/2022","05/10/2022","0000482317/001","KAUSER MASOOD","40686100","158.50","CORPORATE STRATEGY - WAVS","INTERPRETATION & TRANSLATION","H636","INTERPRETATION & TRANSLATION","CORPORATE STRATEGY","CONSULTANCY"
"http://statistics.data.gov.uk/id/local-authority/43UM","WOKING BOROUGH COUNCIL","26/09/2022","05/10/2022","0000482431/001","BIDVEST NOONAN UK LTD","40977700","11685.20","ASSET MANAGEMENT - CIVIC OFFICES","CONTRACT SECURITY","H602","CONTRACT SECURITY","ASSET MANAGEMENT","CONSULTANCY"
"http://statistics.data.gov.uk/id/local-authority/43UM","WOKING BOROUGH COUNCIL","26/09/2022","05/10/2022","0000482431/002","BIDVEST NOONAN UK LTD","40977700","60509.16","ASSET MANAGEMENT - PEACOCKS - GENERAL","PEACOCKS R&M HOLDING","D108","PEACOCKS R&M HOLDING","ASSET MANAGEMENT","CONSULTANCY"
"http://statistics.data.gov.uk/id/local-authority/43UM","WOKING BOROUGH COUNCIL","26/09/2022","05/10/2022","0000482431/003","BIDVEST NOONAN UK LTD","40977700","3996.34","ASSET MANAGEMENT - WOLSEY PLACE","PEACOCKS R&M HOLDING","D108","PEACOCKS R&M HOLDING","ASSET MANAGEMENT","CONSULTANCY"
"http://statistics.data.gov.uk/id/local-authority/43UM","WOKING BOROUGH COUNCIL","26/09/2022","05/10/2022","0000482431/004","BIDVEST NOONAN UK LTD","40977700","4925.91","ASSET MANAGEMENT - WOLSEY PLACE","PEACOCKS R&M HOLDING","D108","PEACOCKS R&M HOLDING","ASSET MANAGEMENT","CONSULTANCY"
"http://statistics.data.gov.uk/id/local-authority/43UM","WOKING BOROUGH COUNCIL","26/09/2022","05/10/2022","0000482431/005","BIDVEST NOONAN UK LTD","40977700","9895.44","NEIGHBOURHOOD SERVICES - CAR PARKS ADMIN&OPERATIONAL EX","CONTRACT SECURITY","H602","CONTRACT SECURITY","NEIGHBOURHOOD SERVICES","CONSULTANCY"
"http://statistics.data.gov.uk/id/local-authority/43UM","WOKING BOROUGH COUNCIL","26/09/2022","05/10/2022","0000482431/006","BIDVEST NOONAN UK LTD","40977700","11314.58","HOUSING SERVICES - FM CONTRACT REC HENRY PLAZA","PAYMENT TO CONTRACTOR","T700","PAYMENT TO CONTRACTOR","HOUSING SERVICES","CONSULTANCY"
"http://statistics.data.gov.uk/id/local-authority/43UM","WOKING BOROUGH COUNCIL","28/09/2022","05/10/2022","0000482444/001","MARKS CONSULTING PARTNERS LIMITED","40708400","1575.00","ASSET MANAGEMENT - BUILDING SERVICES","TEMPORARY STAFF","A110","TEMPORARY STAFF","ASSET MANAGEMENT","CONSULTANCY"
"http://statistics.data.gov.uk/id/local-authority/43UM","WOKING BOROUGH COUNCIL","30/09/2022","05/10/2022","0000482467/001","PENNINGTON CHOICES LTD","40945100","142.70","HOUSING SERVICES - DISABLED FACILITIES GRANTS","MANDATORY GRANTS","Q712","MANDATORY GRANTS","HOUSING SERVICES","CONSULTANCY"
"http://statistics.data.gov.uk/id/local-authority/43UM","WOKING BOROUGH COUNCIL","30/08/2022","05/10/2022","0000482470/001","GLOBAL TRANSLATING & INTERPRETING","40662000","4075.10","CORPORATE STRATEGY - WAVS","INTERPRETATION & TRANSLATION","H636","INTERPRETATION & TRANSLATION","CORPORATE STRATEGY","CONSULTANCY"
"http://statistics.data.gov.uk/id/local-authority/43UM","WOKING BOROUGH COUNCIL","30/09/2022","05/10/2022","0000482551/001","CARTER JONAS","41040900","10000.00","ASSET MANAGEMENT - PROPERTY SERVICES","CONSULTANTS","H670","CONSULTANTS","ASSET MANAGEMENT","CONSULTANCY"
"http://statistics.data.gov.uk/id/local-authority/43UM","WOKING BOROUGH COUNCIL","30/09/2022","05/10/2022","0000482554/001","BRUTON KNOWLES","00413900","3437.50","ASSET MANAGEMENT - PROPERTY SERVICES","CONSULTANTS","H670","CONSULTANTS","ASSET MANAGEMENT","CONSULTANCY"
"http://statistics.data.gov.uk/id/local-authority/43UM","WOKING BOROUGH COUNCIL","30/09/2022","05/10/2022","0000482565/001","PRICE & MYERS LLP","40986400","3000.00","ASSET MANAGEMENT - OLD WOKING COMMUNITY CNTR OWCC","OTHER CONSULTANTS","Q430","OTHER CONSULTANTS","ASSET MANAGEMENT","CONSULTANCY"
"http://statistics.data.gov.uk/id/local-authority/43UM","WOKING BOROUGH COUNCIL","30/09/2022","05/10/2022","0000482585/001","PENNINGTON CHOICES LTD","40945100","4400.31","HOUSING SERVICES - STATUTORU HRA","HRA STATUTORY","D116","HRA STATUTORY","HOUSING SERVICES","CONSULTANCY"
"http://statistics.data.gov.uk/id/local-authority/43UM","WOKING BOROUGH COUNCIL","30/09/2022","05/10/2022","0000482585/002","PENNINGTON CHOICES LTD","40945100","114.17","HOUSING SERVICES - TEMPORARY ACCOMMODATION","SCHED 4 STATUTORY","D169","SCHED 4 STATUTORY","HOUSING SERVICES","CONSULTANCY"
"http://statistics.data.gov.uk/id/local-authority/43UM","WOKING BOROUGH COUNCIL","29/08/2022","05/10/2022","0000482638/001","DOVETAIL BUILDING CONSULTANTS LTD","40430000","11212.50","ASSET MANAGEMENT - FACILITIES MANAGEMENT","FACILITIES MANAGEMENT REPAIRS","D908","FACILITIES MANAGEMENT REPAIRS","ASSET MANAGEMENT","CONSULTANCY"
"http://statistics.data.gov.uk/id/local-authority/43UM","WOKING BOROUGH COUNCIL","31/08/2022","05/10/2022","0000481572/001","RSM DOMESTIC APPLIANCES","00582300","69.50","HOUSING SERVICES - TEMPORARY ACCOMMODATION","SCHED 1A RESPONSIVE REPAIRS","D165","SCHED 1A RESPONSIVE REPAIRS","HOUSING SERVICES","DOMESTIC GOODS"
"http://statistics.data.gov.uk/id/local-authority/43UM","WOKING BOROUGH COUNCIL","28/09/2022","05/10/2022","0000482506/001","ALLSOP & FRANCIS LTD","00963800","155.00","HOUSING SERVICES - RESPONSIVE REPARS HRA","HRA REPAIRS CONTRACTOR","D112","HRA REPAIRS CONTRACTOR","HOUSING SERVICES","DOMESTIC GOODS"
"http://statistics.data.gov.uk/id/local-authority/43UM","WOKING BOROUGH COUNCIL","28/09/2022","05/10/2022","0000482508/001","ALLSOP & FRANCIS LTD","00963800","177.50","HOUSING SERVICES - RESPONSIVE REPARS HRA","HRA REPAIRS CONTRACTOR","D112","HRA REPAIRS CONTRACTOR","HOUSING SERVICES","DOMESTIC GOODS"
"http://statistics.data.gov.uk/id/local-authority/43UM","WOKING BOROUGH COUNCIL","22/08/2022","05/10/2022","0000481276/001","IDIT YEHEZKELY LEWIS","41018600","145.00","CORPORATE STRATEGY - WOMENS SUPPORT CENTRE SURREY","PUBLIC HEALTH ACCESS","H701","PUBLIC HEALTH ACCESS","CORPORATE STRATEGY","EDUCATION"
"http://statistics.data.gov.uk/id/local-authority/43UM","WOKING BOROUGH COUNCIL","27/09/2022","05/10/2022","0000482437/001","VICTORIA BARKLAMB","40826300","350.00","NEIGHBOURHOOD SERVICES - ARTS DEVELOPMENT","GRANTS","H100","GRANTS","NEIGHBOURHOOD SERVICES","EDUCATION"
"http://statistics.data.gov.uk/id/local-authority/43UM","WOKING BOROUGH COUNCIL","30/09/2022","05/10/2022","0000482569/001","CAMBRIDGE PROFESSIONAL ACADEMY LIMITED","41053300","1885.00","CORPORATE MANAGEMENT GROUP - STAFF TRAINING/GENERAL COSTS","TRAINING - POST ENTRY","A903","TRAINING - POST ENTRY","CORPORATE MANAGEMENT GROUP","EDUCATION"
"http://statistics.data.gov.uk/id/local-authority/43UM","WOKING BOROUGH COUNCIL","06/09/2022","05/10/2022","0000482013/001","HUGHES & SALVIDGE LTD","40717100","54017.00","ASSET MANAGEMENT - VICTORIA ARCH SOUTH","MAIN CONTRACTOR","Q200","MAIN CONTRACTOR","ASSET MANAGEMENT","ENVIRONMENTAL SERVICES"
"http://statistics.data.gov.uk/id/local-authority/43UM","WOKING BOROUGH COUNCIL","08/09/2022","05/10/2022","0000482129/001","FAIRWAY PEST CONTROL","00946800","70.00","NEIGHBOURHOOD SERVICES - STREET FURNITURE","GROUNDS MAINT-CONTRACTORS","D200","GROUNDS MAINT-CONTRACTORS","NEIGHBOURHOOD SERVICES","ENVIRONMENTAL SERVICES"
"http://statistics.data.gov.uk/id/local-authority/43UM","WOKING BOROUGH COUNCIL","27/09/2022","05/10/2022","0000482581/001","FAIRWAY PEST CONTROL","00946800","140.00","NEIGHBOURHOOD SERVICES - STREET FURNITURE","GROUNDS MAINT-CONTRACTORS","D200","GROUNDS MAINT-CONTRACTORS","NEIGHBOURHOOD SERVICES","ENVIRONMENTAL SERVICES"
"http://statistics.data.gov.uk/id/local-authority/43UM","WOKING BOROUGH COUNCIL","09/09/2022","05/10/2022","0000481788/001","TINDLE NEWSPAPERS SURREY & HAMPSHIRE","40249900","100.00","CORPORATE STRATEGY - TOWN CENTRE FORUM","MARKETING","H406","MARKETING","CORPORATE STRATEGY","FACILITIES & MANAGEMENT SERVICES"
"http://statistics.data.gov.uk/id/local-authority/43UM","WOKING BOROUGH COUNCIL","31/08/2022","05/10/2022","0000481842/001","REACH PUBLISHING SERVICES LIMITED","40419300","566.67","PLANNING SERVICES - WOKING TOWN CENTRE MASTERPLAN","OTHER CONSULTANTS","Q430","OTHER CONSULTANTS","PLANNING SERVICES","FACILITIES & MANAGEMENT SERVICES"
"http://statistics.data.gov.uk/id/local-authority/43UM","WOKING BOROUGH COUNCIL","15/09/2022","05/10/2022","0000482007/001","TINDLE NEWSPAPERS SURREY & HAMPSHIRE","40249900","100.00","CORPORATE STRATEGY - TOWN CENTRE FORUM","MARKETING","H406","MARKETING","CORPORATE STRATEGY","FACILITIES & MANAGEMENT SERVICES"
"http://statistics.data.gov.uk/id/local-authority/43UM","WOKING BOROUGH COUNCIL","12/07/2022","05/10/2022","0000482259/001","THE CREATIVE COLONY","40487500","2125.00","PLANNING SERVICES - WOKING TOWN CENTRE MASTERPLAN","OTHER CONSULTANTS","Q430","OTHER CONSULTANTS","PLANNING SERVICES","FACILITIES & MANAGEMENT SERVICES"
"http://statistics.data.gov.uk/id/local-authority/43UM","WOKING BOROUGH COUNCIL","26/09/2022","05/10/2022","0000482348/001","FRONTLINE PROTECTION SGD LTD","40542500","839.99","HOUSING SERVICES - 121 CHERTSEY ROAD","CARETAKING/SECURITY","D995","CARETAKING/SECURITY","HOUSING SERVICES","FACILITIES & MANAGEMENT SERVICES"
"http://statistics.data.gov.uk/id/local-authority/43UM","WOKING BOROUGH COUNCIL","01/09/2021","05/10/2022","0000482350/001","SAVILLS (UK) LTD","01581900","26388.00","ASSET MANAGEMENT - WOLSEY PLACE","SERVICE CHARGE","D510","SERVICE CHARGE","ASSET MANAGEMENT","FACILITIES & MANAGEMENT SERVICES"
"http://statistics.data.gov.uk/id/local-authority/43UM","WOKING BOROUGH COUNCIL","11/11/2021","05/10/2022","0000482352/001","SAVILLS (UK) LTD","01581900","-26388.00","ASSET MANAGEMENT - WOLSEY PLACE","SERVICE CHARGE","D510","SERVICE CHARGE","ASSET MANAGEMENT","FACILITIES & MANAGEMENT SERVICES"
"http://statistics.data.gov.uk/id/local-authority/43UM","WOKING BOROUGH COUNCIL","01/12/2018","05/10/2022","0000482354/001","SAVILLS (UK) LTD","01581900","8462.00","ASSET MANAGEMENT - WOLSEY PLACE","SERVICE CHARGE","D510","SERVICE CHARGE","ASSET MANAGEMENT","FACILITIES & MANAGEMENT SERVICES"
"http://statistics.data.gov.uk/id/local-authority/43UM","WOKING BOROUGH COUNCIL","01/12/2018","05/10/2022","0000482356/001","SAVILLS (UK) LTD","01581900","4767.00","ASSET MANAGEMENT - WOLSEY PLACE","SERVICE CHARGE","D510","SERVICE CHARGE","ASSET MANAGEMENT","FACILITIES & MANAGEMENT SERVICES"
"http://statistics.data.gov.uk/id/local-authority/43UM","WOKING BOROUGH COUNCIL","01/12/2018","05/10/2022","0000482357/001","SAVILLS (UK) LTD","01581900","3877.00","ASSET MANAGEMENT - WOLSEY PLACE","SERVICE CHARGE","D510","SERVICE CHARGE","ASSET MANAGEMENT","FACILITIES & MANAGEMENT SERVICES"
"http://statistics.data.gov.uk/id/local-authority/43UM","WOKING BOROUGH COUNCIL","01/12/2018","05/10/2022","0000482360/001","SAVILLS (UK) LTD","01581900","2006.00","ASSET MANAGEMENT - WOLSEY PLACE","SERVICE CHARGE","D510","SERVICE CHARGE","ASSET MANAGEMENT","FACILITIES & MANAGEMENT SERVICES"
"http://statistics.data.gov.uk/id/local-authority/43UM","WOKING BOROUGH COUNCIL","05/03/2018","05/10/2022","0000482361/001","SAVILLS (UK) LTD","01581900","5829.00","ASSET MANAGEMENT - WOLSEY PLACE","SERVICE CHARGE","D510","SERVICE CHARGE","ASSET MANAGEMENT","FACILITIES & MANAGEMENT SERVICES"
"http://statistics.data.gov.uk/id/local-authority/43UM","WOKING BOROUGH COUNCIL","01/06/2018","05/10/2022","0000482362/001","SAVILLS (UK) LTD","01581900","5829.00","ASSET MANAGEMENT - WOLSEY PLACE","SERVICE CHARGE","D510","SERVICE CHARGE","ASSET MANAGEMENT","FACILITIES & MANAGEMENT SERVICES"
"http://statistics.data.gov.uk/id/local-authority/43UM","WOKING BOROUGH COUNCIL","01/09/2018","05/10/2022","0000482363/001","SAVILLS (UK) LTD","01581900","5829.00","ASSET MANAGEMENT - WOLSEY PLACE","SERVICE CHARGE","D510","SERVICE CHARGE","ASSET MANAGEMENT","FACILITIES & MANAGEMENT SERVICES"
"http://statistics.data.gov.uk/id/local-authority/43UM","WOKING BOROUGH COUNCIL","01/12/2018","05/10/2022","0000482364/001","SAVILLS (UK) LTD","01581900","5829.00","ASSET MANAGEMENT - WOLSEY PLACE","SERVICE CHARGE","D510","SERVICE CHARGE","ASSET MANAGEMENT","FACILITIES & MANAGEMENT SERVICES"
"http://statistics.data.gov.uk/id/local-authority/43UM","WOKING BOROUGH COUNCIL","05/03/2018","05/10/2022","0000482365/001","SAVILLS (UK) LTD","01581900","1770.00","ASSET MANAGEMENT - WOLSEY PLACE","SERVICE CHARGE","D510","SERVICE CHARGE","ASSET MANAGEMENT","FACILITIES & MANAGEMENT SERVICES"
"http://statistics.data.gov.uk/id/local-authority/43UM","WOKING BOROUGH COUNCIL","01/06/2018","05/10/2022","0000482366/001","SAVILLS (UK) LTD","01581900","1770.00","ASSET MANAGEMENT - WOLSEY PLACE","SERVICE CHARGE","D510","SERVICE CHARGE","ASSET MANAGEMENT","FACILITIES & MANAGEMENT SERVICES"
"http://statistics.data.gov.uk/id/local-authority/43UM","WOKING BOROUGH COUNCIL","01/09/2018","05/10/2022","0000482367/001","SAVILLS (UK) LTD","01581900","1770.00","ASSET MANAGEMENT - WOLSEY PLACE","SERVICE CHARGE","D510","SERVICE CHARGE","ASSET MANAGEMENT","FACILITIES & MANAGEMENT SERVICES"
"http://statistics.data.gov.uk/id/local-authority/43UM","WOKING BOROUGH COUNCIL","01/12/2018","05/10/2022","0000482368/001","SAVILLS (UK) LTD","01581900","1770.00","ASSET MANAGEMENT - WOLSEY PLACE","SERVICE CHARGE","D510","SERVICE CHARGE","ASSET MANAGEMENT","FACILITIES & MANAGEMENT SERVICES"
"http://statistics.data.gov.uk/id/local-authority/43UM","WOKING BOROUGH COUNCIL","09/08/2019","05/10/2022","0000482369/001","SAVILLS (UK) LTD","01581900","-7080.00","ASSET MANAGEMENT - WOLSEY PLACE","SERVICE CHARGE","D510","SERVICE CHARGE","ASSET MANAGEMENT","FACILITIES & MANAGEMENT SERVICES"
"http://statistics.data.gov.uk/id/local-authority/43UM","WOKING BOROUGH COUNCIL","01/06/2018","05/10/2022","0000482370/001","SAVILLS (UK) LTD","01581900","2687.00","ASSET MANAGEMENT - WOLSEY PLACE","SERVICE CHARGE","D510","SERVICE CHARGE","ASSET MANAGEMENT","FACILITIES & MANAGEMENT SERVICES"
"http://statistics.data.gov.uk/id/local-authority/43UM","WOKING BOROUGH COUNCIL","01/09/2018","05/10/2022","0000482371/001","SAVILLS (UK) LTD","01581900","2687.00","ASSET MANAGEMENT - WOLSEY PLACE","SERVICE CHARGE","D510","SERVICE CHARGE","ASSET MANAGEMENT","FACILITIES & MANAGEMENT SERVICES"
"http://statistics.data.gov.uk/id/local-authority/43UM","WOKING BOROUGH COUNCIL","01/12/2018","05/10/2022","0000482372/001","SAVILLS (UK) LTD","01581900","2687.00","ASSET MANAGEMENT - WOLSEY PLACE","SERVICE CHARGE","D510","SERVICE CHARGE","ASSET MANAGEMENT","FACILITIES & MANAGEMENT SERVICES"
"http://statistics.data.gov.uk/id/local-authority/43UM","WOKING BOROUGH COUNCIL","09/08/2019","05/10/2022","0000482373/001","SAVILLS (UK) LTD","01581900","-10748.00","ASSET MANAGEMENT - WOLSEY PLACE","SERVICE CHARGE","D510","SERVICE CHARGE","ASSET MANAGEMENT","FACILITIES & MANAGEMENT SERVICES"
"http://statistics.data.gov.uk/id/local-authority/43UM","WOKING BOROUGH COUNCIL","05/03/2018","05/10/2022","0000482375/001","SAVILLS (UK) LTD","01581900","2687.00","ASSET MANAGEMENT - WOLSEY PLACE","SERVICE CHARGE","D510","SERVICE CHARGE","ASSET MANAGEMENT","FACILITIES & MANAGEMENT SERVICES"
"http://statistics.data.gov.uk/id/local-authority/43UM","WOKING BOROUGH COUNCIL","01/12/2021","05/10/2022","0000482377/001","SAVILLS (UK) LTD","01581900","6329.00","ASSET MANAGEMENT - WOLSEY PLACE","SERVICE CHARGE","D510","SERVICE CHARGE","ASSET MANAGEMENT","FACILITIES & MANAGEMENT SERVICES"
"http://statistics.data.gov.uk/id/local-authority/43UM","WOKING BOROUGH COUNCIL","05/02/2019","05/10/2022","0000482381/001","SAVILLS (UK) LTD","01581900","9590.85","ASSET MANAGEMENT - WOLSEY PLACE","SERVICE CHARGE","D510","SERVICE CHARGE","ASSET MANAGEMENT","FACILITIES & MANAGEMENT SERVICES"
"http://statistics.data.gov.uk/id/local-authority/43UM","WOKING BOROUGH COUNCIL","09/08/2019","05/10/2022","0000482385/001","SAVILLS (UK) LTD","01581900","-385.27","ASSET MANAGEMENT - WOLSEY PLACE","SERVICE CHARGE","D510","SERVICE CHARGE","ASSET MANAGEMENT","FACILITIES & MANAGEMENT SERVICES"
"http://statistics.data.gov.uk/id/local-authority/43UM","WOKING BOROUGH COUNCIL","11/07/2018","05/10/2022","0000482386/001","SAVILLS (UK) LTD","01581900","1791.41","ASSET MANAGEMENT - WOLSEY PLACE","SERVICE CHARGE","D510","SERVICE CHARGE","ASSET MANAGEMENT","FACILITIES & MANAGEMENT SERVICES"
"http://statistics.data.gov.uk/id/local-authority/43UM","WOKING BOROUGH COUNCIL","09/08/2019","05/10/2022","0000482387/001","SAVILLS (UK) LTD","01581900","-5625.83","ASSET MANAGEMENT - WOLSEY PLACE","SERVICE CHARGE","D510","SERVICE CHARGE","ASSET MANAGEMENT","FACILITIES & MANAGEMENT SERVICES"
"http://statistics.data.gov.uk/id/local-authority/43UM","WOKING BOROUGH COUNCIL","09/08/2019","05/10/2022","0000482388/001","SAVILLS (UK) LTD","01581900","-887.78","ASSET MANAGEMENT - WOLSEY PLACE","SERVICE CHARGE","D510","SERVICE CHARGE","ASSET MANAGEMENT","FACILITIES & MANAGEMENT SERVICES"
"http://statistics.data.gov.uk/id/local-authority/43UM","WOKING BOROUGH COUNCIL","02/05/2017","05/10/2022","0000482391/001","SAVILLS (UK) LTD","01581900","-3870.00","ASSET MANAGEMENT - WOLSEY PLACE","SERVICE CHARGE","D510","SERVICE CHARGE","ASSET MANAGEMENT","FACILITIES & MANAGEMENT SERVICES"
"http://statistics.data.gov.uk/id/local-authority/43UM","WOKING BOROUGH COUNCIL","09/08/2019","05/10/2022","0000482392/001","SAVILLS (UK) LTD","01581900","-251.36","ASSET MANAGEMENT - WOLSEY PLACE","SERVICE CHARGE","D510","SERVICE CHARGE","ASSET MANAGEMENT","FACILITIES & MANAGEMENT SERVICES"
"http://statistics.data.gov.uk/id/local-authority/43UM","WOKING BOROUGH COUNCIL","11/09/2017","05/10/2022","0000482393/001","SAVILLS (UK) LTD","01581900","8462.00","ASSET MANAGEMENT - WOLSEY PLACE","SERVICE CHARGE","D510","SERVICE CHARGE","ASSET MANAGEMENT","FACILITIES & MANAGEMENT SERVICES"
"http://statistics.data.gov.uk/id/local-authority/43UM","WOKING BOROUGH COUNCIL","05/03/2018","05/10/2022","0000482394/001","SAVILLS (UK) LTD","01581900","8462.00","ASSET MANAGEMENT - WOLSEY PLACE","SERVICE CHARGE","D510","SERVICE CHARGE","ASSET MANAGEMENT","FACILITIES & MANAGEMENT SERVICES"
"http://statistics.data.gov.uk/id/local-authority/43UM","WOKING BOROUGH COUNCIL","01/09/2018","05/10/2022","0000482395/001","SAVILLS (UK) LTD","01581900","8462.00","ASSET MANAGEMENT - WOLSEY PLACE","SERVICE CHARGE","D510","SERVICE CHARGE","ASSET MANAGEMENT","FACILITIES & MANAGEMENT SERVICES"
"http://statistics.data.gov.uk/id/local-authority/43UM","WOKING BOROUGH COUNCIL","09/08/2019","05/10/2022","0000482396/001","SAVILLS (UK) LTD","01581900","-34243.73","ASSET MANAGEMENT - WOLSEY PLACE","SERVICE CHARGE","D510","SERVICE CHARGE","ASSET MANAGEMENT","FACILITIES & MANAGEMENT SERVICES"
"http://statistics.data.gov.uk/id/local-authority/43UM","WOKING BOROUGH COUNCIL","09/08/2019","05/10/2022","0000482397/001","SAVILLS (UK) LTD","01581900","-2257.70","ASSET MANAGEMENT - WOLSEY PLACE","SERVICE CHARGE","D510","SERVICE CHARGE","ASSET MANAGEMENT","FACILITIES & MANAGEMENT SERVICES"
"http://statistics.data.gov.uk/id/local-authority/43UM","WOKING BOROUGH COUNCIL","05/03/2018","05/10/2022","0000482398/001","SAVILLS (UK) LTD","01581900","4767.00","ASSET MANAGEMENT - WOLSEY PLACE","SERVICE CHARGE","D510","SERVICE CHARGE","ASSET MANAGEMENT","FACILITIES & MANAGEMENT SERVICES"
"http://statistics.data.gov.uk/id/local-authority/43UM","WOKING BOROUGH COUNCIL","01/09/2018","05/10/2022","0000482399/001","SAVILLS (UK) LTD","01581900","4767.00","ASSET MANAGEMENT - WOLSEY PLACE","SERVICE CHARGE","D510","SERVICE CHARGE","ASSET MANAGEMENT","FACILITIES & MANAGEMENT SERVICES"
"http://statistics.data.gov.uk/id/local-authority/43UM","WOKING BOROUGH COUNCIL","09/08/2019","05/10/2022","0000482400/001","SAVILLS (UK) LTD","01581900","-2298.01","ASSET MANAGEMENT - WOLSEY PLACE","SERVICE CHARGE","D510","SERVICE CHARGE","ASSET MANAGEMENT","FACILITIES & MANAGEMENT SERVICES"
"http://statistics.data.gov.uk/id/local-authority/43UM","WOKING BOROUGH COUNCIL","05/03/2018","05/10/2022","0000482401/001","SAVILLS (UK) LTD","01581900","3877.00","ASSET MANAGEMENT - WOLSEY PLACE","SERVICE CHARGE","D510","SERVICE CHARGE","ASSET MANAGEMENT","FACILITIES & MANAGEMENT SERVICES"
"http://statistics.data.gov.uk/id/local-authority/43UM","WOKING BOROUGH COUNCIL","01/09/2018","05/10/2022","0000482402/001","SAVILLS (UK) LTD","01581900","3877.00","ASSET MANAGEMENT - WOLSEY PLACE","SERVICE CHARGE","D510","SERVICE CHARGE","ASSET MANAGEMENT","FACILITIES & MANAGEMENT SERVICES"
"http://statistics.data.gov.uk/id/local-authority/43UM","WOKING BOROUGH COUNCIL","09/08/2019","05/10/2022","0000482403/001","SAVILLS (UK) LTD","01581900","-3741.56","ASSET MANAGEMENT - WOLSEY PLACE","SERVICE CHARGE","D510","SERVICE CHARGE","ASSET MANAGEMENT","FACILITIES & MANAGEMENT SERVICES"
"http://statistics.data.gov.uk/id/local-authority/43UM","WOKING BOROUGH COUNCIL","09/08/2019","05/10/2022","0000482404/001","SAVILLS (UK) LTD","01581900","3007.29","ASSET MANAGEMENT - WOLSEY PLACE","SERVICE CHARGE","D510","SERVICE CHARGE","ASSET MANAGEMENT","FACILITIES & MANAGEMENT SERVICES"
"http://statistics.data.gov.uk/id/local-authority/43UM","WOKING BOROUGH COUNCIL","05/03/2018","05/10/2022","0000482405/001","SAVILLS (UK) LTD","01581900","2006.00","ASSET MANAGEMENT - WOLSEY PLACE","SERVICE CHARGE","D510","SERVICE CHARGE","ASSET MANAGEMENT","FACILITIES & MANAGEMENT SERVICES"
"http://statistics.data.gov.uk/id/local-authority/43UM","WOKING BOROUGH COUNCIL","01/09/2018","05/10/2022","0000482406/001","SAVILLS (UK) LTD","01581900","2006.00","ASSET MANAGEMENT - WOLSEY PLACE","SERVICE CHARGE","D510","SERVICE CHARGE","ASSET MANAGEMENT","FACILITIES & MANAGEMENT SERVICES"
"http://statistics.data.gov.uk/id/local-authority/43UM","WOKING BOROUGH COUNCIL","24/01/2019","05/10/2022","0000482407/001","SAVILLS (UK) LTD","01581900","5068.00","ASSET MANAGEMENT - WOLSEY PLACE","SERVICE CHARGE","D510","SERVICE CHARGE","ASSET MANAGEMENT","FACILITIES & MANAGEMENT SERVICES"
"http://statistics.data.gov.uk/id/local-authority/43UM","WOKING BOROUGH COUNCIL","09/08/2019","05/10/2022","0000482408/001","SAVILLS (UK) LTD","01581900","-967.28","ASSET MANAGEMENT - WOLSEY PLACE","SERVICE CHARGE","D510","SERVICE CHARGE","ASSET MANAGEMENT","FACILITIES & MANAGEMENT SERVICES"
"http://statistics.data.gov.uk/id/local-authority/43UM","WOKING BOROUGH COUNCIL","11/09/2020","05/10/2022","0000482409/001","SAVILLS (UK) LTD","01581900","3199.00","ASSET MANAGEMENT - WOLSEY PLACE","SERVICE CHARGE","D510","SERVICE CHARGE","ASSET MANAGEMENT","FACILITIES & MANAGEMENT SERVICES"
"http://statistics.data.gov.uk/id/local-authority/43UM","WOKING BOROUGH COUNCIL","11/09/2017","05/10/2022","0000482410/001","SAVILLS (UK) LTD","01581900","24288.00","ASSET MANAGEMENT - WOLSEY PLACE","SERVICE CHARGE","D510","SERVICE CHARGE","ASSET MANAGEMENT","FACILITIES & MANAGEMENT SERVICES"
"http://statistics.data.gov.uk/id/local-authority/43UM","WOKING BOROUGH COUNCIL","05/03/2018","05/10/2022","0000482411/001","SAVILLS (UK) LTD","01581900","24288.00","ASSET MANAGEMENT - WOLSEY PLACE","SERVICE CHARGE","D510","SERVICE CHARGE","ASSET MANAGEMENT","FACILITIES & MANAGEMENT SERVICES"
"http://statistics.data.gov.uk/id/local-authority/43UM","WOKING BOROUGH COUNCIL","01/09/2018","05/10/2022","0000482412/001","SAVILLS (UK) LTD","01581900","24288.00","ASSET MANAGEMENT - WOLSEY PLACE","SERVICE CHARGE","D510","SERVICE CHARGE","ASSET MANAGEMENT","FACILITIES & MANAGEMENT SERVICES"
"http://statistics.data.gov.uk/id/local-authority/43UM","WOKING BOROUGH COUNCIL","01/12/2018","05/10/2022","0000482413/001","SAVILLS (UK) LTD","01581900","24288.00","ASSET MANAGEMENT - WOLSEY PLACE","SERVICE CHARGE","D510","SERVICE CHARGE","ASSET MANAGEMENT","FACILITIES & MANAGEMENT SERVICES"
"http://statistics.data.gov.uk/id/local-authority/43UM","WOKING BOROUGH COUNCIL","09/08/2019","05/10/2022","0000482414/001","SAVILLS (UK) LTD","01581900","-153.58","ASSET MANAGEMENT - WOLSEY PLACE","SERVICE CHARGE","D510","SERVICE CHARGE","ASSET MANAGEMENT","FACILITIES & MANAGEMENT SERVICES"
"http://statistics.data.gov.uk/id/local-authority/43UM","WOKING BOROUGH COUNCIL","11/09/2020","05/10/2022","0000482415/001","SAVILLS (UK) LTD","01581900","25089.00","ASSET MANAGEMENT - WOLSEY PLACE","SERVICE CHARGE","D510","SERVICE CHARGE","ASSET MANAGEMENT","FACILITIES & MANAGEMENT SERVICES"
"http://statistics.data.gov.uk/id/local-authority/43UM","WOKING BOROUGH COUNCIL","01/12/2018","05/10/2022","0000482416/001","SAVILLS (UK) LTD","01581900","3388.00","ASSET MANAGEMENT - WOLSEY PLACE","SERVICE CHARGE","D510","SERVICE CHARGE","ASSET MANAGEMENT","FACILITIES & MANAGEMENT SERVICES"
"http://statistics.data.gov.uk/id/local-authority/43UM","WOKING BOROUGH COUNCIL","09/08/2019","05/10/2022","0000482417/001","SAVILLS (UK) LTD","01581900","-2699.52","ASSET MANAGEMENT - WOLSEY PLACE","SERVICE CHARGE","D510","SERVICE CHARGE","ASSET MANAGEMENT","FACILITIES & MANAGEMENT SERVICES"
"http://statistics.data.gov.uk/id/local-authority/43UM","WOKING BOROUGH COUNCIL","11/09/2020","05/10/2022","0000482418/001","SAVILLS (UK) LTD","01581900","6327.00","ASSET MANAGEMENT - WOLSEY PLACE","SERVICE CHARGE","D510","SERVICE CHARGE","ASSET MANAGEMENT","FACILITIES & MANAGEMENT SERVICES"
"http://statistics.data.gov.uk/id/local-authority/43UM","WOKING BOROUGH COUNCIL","06/12/2020","05/10/2022","0000482419/001","SAVILLS (UK) LTD","01581900","6327.00","ASSET MANAGEMENT - WOLSEY PLACE","SERVICE CHARGE","D510","SERVICE CHARGE","ASSET MANAGEMENT","FACILITIES & MANAGEMENT SERVICES"
"http://statistics.data.gov.uk/id/local-authority/43UM","WOKING BOROUGH COUNCIL","24/02/2021","05/10/2022","0000482420/001","SAVILLS (UK) LTD","01581900","12654.00","ASSET MANAGEMENT - WOLSEY PLACE","SERVICE CHARGE","D510","SERVICE CHARGE","ASSET MANAGEMENT","FACILITIES & MANAGEMENT SERVICES"
"http://statistics.data.gov.uk/id/local-authority/43UM","WOKING BOROUGH COUNCIL","21/02/2022","05/10/2022","0000482422/001","SAVILLS (UK) LTD","01581900","-5646.00","ASSET MANAGEMENT - WOLSEY PLACE","SERVICE CHARGE","D510","SERVICE CHARGE","ASSET MANAGEMENT","FACILITIES & MANAGEMENT SERVICES"
"http://statistics.data.gov.uk/id/local-authority/43UM","WOKING BOROUGH COUNCIL","01/12/2021","05/10/2022","0000482423/001","SAVILLS (UK) LTD","01581900","6927.00","ASSET MANAGEMENT - WOLSEY PLACE","SERVICE CHARGE","D510","SERVICE CHARGE","ASSET MANAGEMENT","FACILITIES & MANAGEMENT SERVICES"
"http://statistics.data.gov.uk/id/local-authority/43UM","WOKING BOROUGH COUNCIL","21/02/2022","05/10/2022","0000482424/001","SAVILLS (UK) LTD","01581900","-6927.00","ASSET MANAGEMENT - WOLSEY PLACE","SERVICE CHARGE","D510","SERVICE CHARGE","ASSET MANAGEMENT","FACILITIES & MANAGEMENT SERVICES"
"http://statistics.data.gov.uk/id/local-authority/43UM","WOKING BOROUGH COUNCIL","01/09/2018","05/10/2022","0000482425/001","SAVILLS (UK) LTD","01581900","2802.69","ASSET MANAGEMENT - WOLSEY PLACE","SERVICE CHARGE","D510","SERVICE CHARGE","ASSET MANAGEMENT","FACILITIES & MANAGEMENT SERVICES"
"http://statistics.data.gov.uk/id/local-authority/43UM","WOKING BOROUGH COUNCIL","11/09/2020","05/10/2022","0000482452/001","SAVILLS (UK) LTD","01581900","1307.00","ASSET MANAGEMENT - WOLSEY PLACE","SERVICE CHARGE","D510","SERVICE CHARGE","ASSET MANAGEMENT","FACILITIES & MANAGEMENT SERVICES"
"http://statistics.data.gov.uk/id/local-authority/43UM","WOKING BOROUGH COUNCIL","24/01/2019","05/10/2022","0000482453/001","SAVILLS (UK) LTD","01581900","1320.00","ASSET MANAGEMENT - WOLSEY PLACE","SERVICE CHARGE","D510","SERVICE CHARGE","ASSET MANAGEMENT","FACILITIES & MANAGEMENT SERVICES"
"http://statistics.data.gov.uk/id/local-authority/43UM","WOKING BOROUGH COUNCIL","01/12/2018","05/10/2022","0000482454/001","SAVILLS (UK) LTD","01581900","996.00","ASSET MANAGEMENT - WOLSEY PLACE","SERVICE CHARGE","D510","SERVICE CHARGE","ASSET MANAGEMENT","FACILITIES & MANAGEMENT SERVICES"
"http://statistics.data.gov.uk/id/local-authority/43UM","WOKING BOROUGH COUNCIL","01/09/2018","05/10/2022","0000482455/001","SAVILLS (UK) LTD","01581900","996.00","ASSET MANAGEMENT - WOLSEY PLACE","SERVICE CHARGE","D510","SERVICE CHARGE","ASSET MANAGEMENT","FACILITIES & MANAGEMENT SERVICES"
"http://statistics.data.gov.uk/id/local-authority/43UM","WOKING BOROUGH COUNCIL","05/03/2018","05/10/2022","0000482456/001","SAVILLS (UK) LTD","01581900","996.00","ASSET MANAGEMENT - WOLSEY PLACE","SERVICE CHARGE","D510","SERVICE CHARGE","ASSET MANAGEMENT","FACILITIES & MANAGEMENT SERVICES"
"http://statistics.data.gov.uk/id/local-authority/43UM","WOKING BOROUGH COUNCIL","11/09/2017","05/10/2022","0000482457/001","SAVILLS (UK) LTD","01581900","996.00","ASSET MANAGEMENT - WOLSEY PLACE","SERVICE CHARGE","D510","SERVICE CHARGE","ASSET MANAGEMENT","FACILITIES & MANAGEMENT SERVICES"
"http://statistics.data.gov.uk/id/local-authority/43UM","WOKING BOROUGH COUNCIL","11/09/2020","05/10/2022","0000482458/001","SAVILLS (UK) LTD","01581900","3799.00","ASSET MANAGEMENT - WOLSEY PLACE","SERVICE CHARGE","D510","SERVICE CHARGE","ASSET MANAGEMENT","FACILITIES & MANAGEMENT SERVICES"
"http://statistics.data.gov.uk/id/local-authority/43UM","WOKING BOROUGH COUNCIL","01/12/2018","05/10/2022","0000482459/001","SAVILLS (UK) LTD","01581900","2802.69","ASSET MANAGEMENT - WOLSEY PLACE","SERVICE CHARGE","D510","SERVICE CHARGE","ASSET MANAGEMENT","FACILITIES & MANAGEMENT SERVICES"
"http://statistics.data.gov.uk/id/local-authority/43UM","WOKING BOROUGH COUNCIL","11/09/2020","05/10/2022","0000482460/001","SAVILLS (UK) LTD","01581900","4345.00","ASSET MANAGEMENT - WOLSEY PLACE","SERVICE CHARGE","D510","SERVICE CHARGE","ASSET MANAGEMENT","FACILITIES & MANAGEMENT SERVICES"
"http://statistics.data.gov.uk/id/local-authority/43UM","WOKING BOROUGH COUNCIL","24/07/2020","05/10/2022","0000482461/001","SAVILLS (UK) LTD","01581900","9041.63","ASSET MANAGEMENT - WOLSEY PLACE","SERVICE CHARGE","D510","SERVICE CHARGE","ASSET MANAGEMENT","FACILITIES & MANAGEMENT SERVICES"
"http://statistics.data.gov.uk/id/local-authority/43UM","WOKING BOROUGH COUNCIL","11/09/2020","05/10/2022","0000482462/001","SAVILLS (UK) LTD","01581900","7093.00","ASSET MANAGEMENT - WOLSEY PLACE","SERVICE CHARGE","D510","SERVICE CHARGE","ASSET MANAGEMENT","FACILITIES & MANAGEMENT SERVICES"
"http://statistics.data.gov.uk/id/local-authority/43UM","WOKING BOROUGH COUNCIL","06/12/2020","05/10/2022","0000482463/001","SAVILLS (UK) LTD","01581900","7093.00","ASSET MANAGEMENT - WOLSEY PLACE","SERVICE CHARGE","D510","SERVICE CHARGE","ASSET MANAGEMENT","FACILITIES & MANAGEMENT SERVICES"
"http://statistics.data.gov.uk/id/local-authority/43UM","WOKING BOROUGH COUNCIL","16/06/2022","05/10/2022","0000482464/001","SAVILLS (UK) LTD","01581900","2201.05","ASSET MANAGEMENT - WOLSEY PLACE","SERVICE CHARGE","D510","SERVICE CHARGE","ASSET MANAGEMENT","FACILITIES & MANAGEMENT SERVICES"
"http://statistics.data.gov.uk/id/local-authority/43UM","WOKING BOROUGH COUNCIL","01/06/2021","05/10/2022","0000482465/001","SAVILLS (UK) LTD","01581900","6329.00","ASSET MANAGEMENT - WOLSEY PLACE","SERVICE CHARGE","D510","SERVICE CHARGE","ASSET MANAGEMENT","FACILITIES & MANAGEMENT SERVICES"
"http://statistics.data.gov.uk/id/local-authority/43UM","WOKING BOROUGH COUNCIL","28/09/2022","05/10/2022","0000482510/001","SKANSKA RASHLEIGH WEATHERFOIL LTD","40413600","5303.00","ASSET MANAGEMENT - PEACOCKS - GENERAL","PEACOCKS R&M HOLDING","D108","PEACOCKS R&M HOLDING","ASSET MANAGEMENT","FACILITIES & MANAGEMENT SERVICES"
"http://statistics.data.gov.uk/id/local-authority/43UM","WOKING BOROUGH COUNCIL","28/09/2022","05/10/2022","0000482510/002","SKANSKA RASHLEIGH WEATHERFOIL LTD","40413600","1351.60","CORPORATE STRATEGY - LEISURE MANAGEMENT CONTRACT","FACILITIES MANAGEMENT CONTRACT","D909","FACILITIES MANAGEMENT CONTRACT","CORPORATE STRATEGY","FACILITIES & MANAGEMENT SERVICES"
"http://statistics.data.gov.uk/id/local-authority/43UM","WOKING BOROUGH COUNCIL","28/09/2022","05/10/2022","0000482510/003","SKANSKA RASHLEIGH WEATHERFOIL LTD","40413600","495.00","ASSET MANAGEMENT - WOLSEY PLACE","PEACOCKS R&M HOLDING","D108","PEACOCKS R&M HOLDING","ASSET MANAGEMENT","FACILITIES & MANAGEMENT SERVICES"
"http://statistics.data.gov.uk/id/local-authority/43UM","WOKING BOROUGH COUNCIL","28/09/2022","05/10/2022","0000482510/004","SKANSKA RASHLEIGH WEATHERFOIL LTD","40413600","123.75","NEIGHBOURHOOD SERVICES - VICTORIA HOSPITAL SITE","FACILITIES MANAGEMENT CONTRACT","D909","FACILITIES MANAGEMENT CONTRACT","NEIGHBOURHOOD SERVICES","FACILITIES & MANAGEMENT SERVICES"
"http://statistics.data.gov.uk/id/local-authority/43UM","WOKING BOROUGH COUNCIL","28/09/2022","05/10/2022","0000482510/005","SKANSKA RASHLEIGH WEATHERFOIL LTD","40413600","123.75","NEIGHBOURHOOD SERVICES - VIC WAY CAR PARK - WORKSHOP","FACILITIES MANAGEMENT CONTRACT","D909","FACILITIES MANAGEMENT CONTRACT","NEIGHBOURHOOD SERVICES","FACILITIES & MANAGEMENT SERVICES"
"http://statistics.data.gov.uk/id/local-authority/43UM","WOKING BOROUGH COUNCIL","28/09/2022","05/10/2022","0000482510/006","SKANSKA RASHLEIGH WEATHERFOIL LTD","40413600","697.20","CORPORATE STRATEGY - LEISURE MANAGEMENT CONTRACT","FACILITIES MANAGEMENT CONTRACT","D909","FACILITIES MANAGEMENT CONTRACT","CORPORATE STRATEGY","FACILITIES & MANAGEMENT SERVICES"
"http://statistics.data.gov.uk/id/local-authority/43UM","WOKING BOROUGH COUNCIL","28/09/2022","05/10/2022","0000482510/007","SKANSKA RASHLEIGH WEATHERFOIL LTD","40413600","1083.83","ASSET MANAGEMENT - PEACOCKS - GENERAL","PEACOCKS R&M HOLDING","D108","PEACOCKS R&M HOLDING","ASSET MANAGEMENT","FACILITIES & MANAGEMENT SERVICES"
"http://statistics.data.gov.uk/id/local-authority/43UM","WOKING BOROUGH COUNCIL","28/09/2022","05/10/2022","0000482510/008","SKANSKA RASHLEIGH WEATHERFOIL LTD","40413600","1297.10","ASSET MANAGEMENT - WOLSEY PLACE","PEACOCKS R&M HOLDING","D108","PEACOCKS R&M HOLDING","ASSET MANAGEMENT","FACILITIES & MANAGEMENT SERVICES"
"http://statistics.data.gov.uk/id/local-authority/43UM","WOKING BOROUGH COUNCIL","28/09/2022","05/10/2022","0000482510/009","SKANSKA RASHLEIGH WEATHERFOIL LTD","40413600","4074.42","ASSET MANAGEMENT - WOLSEY PLACE","PEACOCKS R&M HOLDING","D108","PEACOCKS R&M HOLDING","ASSET MANAGEMENT","FACILITIES & MANAGEMENT SERVICES"
"http://statistics.data.gov.uk/id/local-authority/43UM","WOKING BOROUGH COUNCIL","28/09/2022","05/10/2022","0000482510/010","SKANSKA RASHLEIGH WEATHERFOIL LTD","40413600","1218.62","ASSET MANAGEMENT - WOLSEY PLACE","PEACOCKS R&M HOLDING","D108","PEACOCKS R&M HOLDING","ASSET MANAGEMENT","FACILITIES & MANAGEMENT SERVICES"
"http://statistics.data.gov.uk/id/local-authority/43UM","WOKING BOROUGH COUNCIL","28/09/2022","05/10/2022","0000482510/011","SKANSKA RASHLEIGH WEATHERFOIL LTD","40413600","1362.50","ASSET MANAGEMENT - WOLSEY PLACE","PEACOCKS R&M HOLDING","D108","PEACOCKS R&M HOLDING","ASSET MANAGEMENT","FACILITIES & MANAGEMENT SERVICES"
"http://statistics.data.gov.uk/id/local-authority/43UM","WOKING BOROUGH COUNCIL","28/09/2022","05/10/2022","0000482510/012","SKANSKA RASHLEIGH WEATHERFOIL LTD","40413600","453.02","ASSET MANAGEMENT - PEACOCKS - GENERAL","PEACOCKS R&M HOLDING","D108","PEACOCKS R&M HOLDING","ASSET MANAGEMENT","FACILITIES & MANAGEMENT SERVICES"
"http://statistics.data.gov.uk/id/local-authority/43UM","WOKING BOROUGH COUNCIL","28/09/2022","05/10/2022","0000482510/013","SKANSKA RASHLEIGH WEATHERFOIL LTD","40413600","170.50","ASSET MANAGEMENT - WOLSEY PLACE","PEACOCKS R&M HOLDING","D108","PEACOCKS R&M HOLDING","ASSET MANAGEMENT","FACILITIES & MANAGEMENT SERVICES"
"http://statistics.data.gov.uk/id/local-authority/43UM","WOKING BOROUGH COUNCIL","28/09/2022","05/10/2022","0000482510/014","SKANSKA RASHLEIGH WEATHERFOIL LTD","40413600","955.00","HOUSING SERVICES - FM CONTRACT REC HENRY PLAZA","PAYMENT TO CONTRACTOR","T700","PAYMENT TO CONTRACTOR","HOUSING SERVICES","FACILITIES & MANAGEMENT SERVICES"
"http://statistics.data.gov.uk/id/local-authority/43UM","WOKING BOROUGH COUNCIL","28/09/2022","05/10/2022","0000482510/015","SKANSKA RASHLEIGH WEATHERFOIL LTD","40413600","1726.56","ASSET MANAGEMENT - WOLSEY PLACE","PEACOCKS R&M HOLDING","D108","PEACOCKS R&M HOLDING","ASSET MANAGEMENT","FACILITIES & MANAGEMENT SERVICES"
"http://statistics.data.gov.uk/id/local-authority/43UM","WOKING BOROUGH COUNCIL","28/09/2022","05/10/2022","0000482510/016","SKANSKA RASHLEIGH WEATHERFOIL LTD","40413600","1805.04","ASSET MANAGEMENT - WOLSEY PLACE","PEACOCKS R&M HOLDING","D108","PEACOCKS R&M HOLDING","ASSET MANAGEMENT","FACILITIES & MANAGEMENT SERVICES"
"http://statistics.data.gov.uk/id/local-authority/43UM","WOKING BOROUGH COUNCIL","28/09/2022","05/10/2022","0000482510/017","SKANSKA RASHLEIGH WEATHERFOIL LTD","40413600","445.50","ASSET MANAGEMENT - WOLSEY PLACE","PEACOCKS R&M HOLDING","D108","PEACOCKS R&M HOLDING","ASSET MANAGEMENT","FACILITIES & MANAGEMENT SERVICES"
"http://statistics.data.gov.uk/id/local-authority/43UM","WOKING BOROUGH COUNCIL","28/09/2022","05/10/2022","0000482510/018","SKANSKA RASHLEIGH WEATHERFOIL LTD","40413600","210.00","CORPORATE STRATEGY - LEISURE MANAGEMENT CONTRACT","FACILITIES MANAGEMENT CONTRACT","D909","FACILITIES MANAGEMENT CONTRACT","CORPORATE STRATEGY","FACILITIES & MANAGEMENT SERVICES"
"http://statistics.data.gov.uk/id/local-authority/43UM","WOKING BOROUGH COUNCIL","15/09/2022","05/10/2022","0000482512/001","SKANSKA RASHLEIGH WEATHERFOIL LTD","40413600","2232.58","INDEPENDENT LIVING SERVICES - MEALS SERVICE - ST MARYS","FACILITIES MANAGEMENT CONTRACT","D909","FACILITIES MANAGEMENT CONTRACT","INDEPENDENT LIVING SERVICES","FACILITIES & MANAGEMENT SERVICES"
"http://statistics.data.gov.uk/id/local-authority/43UM","WOKING BOROUGH COUNCIL","27/09/2022","05/10/2022","0000482542/001","SKANSKA RASHLEIGH WEATHERFOIL LTD","40413600","7000.00","ASSET MANAGEMENT - PEACOCKS - GENERAL","PEACOCKS R&M HOLDING","D108","PEACOCKS R&M HOLDING","ASSET MANAGEMENT","FACILITIES & MANAGEMENT SERVICES"
"http://statistics.data.gov.uk/id/local-authority/43UM","WOKING BOROUGH COUNCIL","30/09/2022","05/10/2022","0000482575/001","DMA SIGNS LTD","01853700","225.00","ASSET MANAGEMENT - TOWN CENTRE SIGNAGE WAYFINDING","MAIN CONTRACTOR","Q200","MAIN CONTRACTOR","ASSET MANAGEMENT","FACILITIES & MANAGEMENT SERVICES"
"http://statistics.data.gov.uk/id/local-authority/43UM","WOKING BOROUGH COUNCIL","29/09/2022","05/10/2022","0000482600/001","TINDLE NEWSPAPERS SURREY & HAMPSHIRE","40249900","320.00","CORPORATE STRATEGY - PUBLIC RELATIONS","STATUTORY ADVERTS","H410","STATUTORY ADVERTS","CORPORATE STRATEGY","FACILITIES & MANAGEMENT SERVICES"
"http://statistics.data.gov.uk/id/local-authority/43UM","WOKING BOROUGH COUNCIL","28/09/2022","05/10/2022","0000482625/001","BEAVER HOUSE SERVICES LTD","41010900","1810.00","HOUSING SERVICES - RESPONSIVE REPARS HRA","HRA REPAIRS CONTRACTOR","D112","HRA REPAIRS CONTRACTOR","HOUSING SERVICES","FACILITIES & MANAGEMENT SERVICES"
"http://statistics.data.gov.uk/id/local-authority/43UM","WOKING BOROUGH COUNCIL","30/09/2022","05/10/2022","0000482657/001","EUROTECH MONITORING SERVICES LTD","00643100","378.20","ASSET MANAGEMENT - UNIT 15A MON WAY EAST","CONTRACT SECURITY","H602","CONTRACT SECURITY","ASSET MANAGEMENT","FACILITIES & MANAGEMENT SERVICES"
"http://statistics.data.gov.uk/id/local-authority/43UM","WOKING BOROUGH COUNCIL","03/10/2022","05/10/2022","0000482661/001","ARTICLE SEVEN","00942800","426.25","INFORMATION TECHNOLOGY - I.T.S. ICT","PC & SERVER SYSTEMS SOFTWARE","G193","PC & SERVER SYSTEMS SOFTWARE","INFORMATION TECHNOLOGY","FACILITIES & MANAGEMENT SERVICES"
"http://statistics.data.gov.uk/id/local-authority/43UM","WOKING BOROUGH COUNCIL","04/10/2022","05/10/2022","0065000377/001","REDACTED PERSONAL DATA","41055500","293.35","FINANCIAL SERVICES - SUNDRY DEPOSITS","SUNDRY DEPOSITS","S400","SUNDRY DEPOSITS","FINANCIAL SERVICES","FACILITIES & MANAGEMENT SERVICES"
"http://statistics.data.gov.uk/id/local-authority/43UM","WOKING BOROUGH COUNCIL","03/09/2022","05/10/2022","0000482035/001","GARY LEA","40308200","70.00","NEIGHBOURHOOD SERVICES - CAR PARKS ADMIN&OPERATIONAL EX","TICKET MACHINE TARIFF CHANGES","D832","TICKET MACHINE TARIFF CHANGES","NEIGHBOURHOOD SERVICES","FINANCIAL SERVICES"
"http://statistics.data.gov.uk/id/local-authority/43UM","WOKING BOROUGH COUNCIL","09/09/2022","05/10/2022","0000482036/001","OLGA KISEL","40946300","64.54","CORPORATE STRATEGY - WAVS","INTERPRETATION & TRANSLATION","H636","INTERPRETATION & TRANSLATION","CORPORATE STRATEGY","FINANCIAL SERVICES"
"http://statistics.data.gov.uk/id/local-authority/43UM","WOKING BOROUGH COUNCIL","25/08/2022","05/10/2022","0000482042/001","QIUFU HURLEY","40912900","41.16","CORPORATE STRATEGY - WAVS","INTERPRETATION & TRANSLATION","H636","INTERPRETATION & TRANSLATION","CORPORATE STRATEGY","FINANCIAL SERVICES"
"http://statistics.data.gov.uk/id/local-authority/43UM","WOKING BOROUGH COUNCIL","15/09/2022","05/10/2022","0000482065/001","JILL TONKS","40817100","800.00","CORPORATE MANAGEMENT GROUP - STAFF TRAINING/GENERAL COSTS","TRAINING - CORPORATE","A910","TRAINING - CORPORATE","CORPORATE MANAGEMENT GROUP","FINANCIAL SERVICES"
"http://statistics.data.gov.uk/id/local-authority/43UM","WOKING BOROUGH COUNCIL","16/09/2022","05/10/2022","0000482112/001","THAMESWEY HOUSING LIMITED","40790400","850.00","HOUSING SERVICES - HOUSING OPTIONS DEPOSITS","DEPOSITS","T720","DEPOSITS","HOUSING SERVICES","FINANCIAL SERVICES"
"http://statistics.data.gov.uk/id/local-authority/43UM","WOKING BOROUGH COUNCIL","16/09/2022","05/10/2022","0000482126/001","THAMESWEY HOUSING LIMITED","40790400","825.00","HOUSING SERVICES - HOUSING OPTIONS DEPOSITS","DEPOSITS","T720","DEPOSITS","HOUSING SERVICES","FINANCIAL SERVICES"
"http://statistics.data.gov.uk/id/local-authority/43UM","WOKING BOROUGH COUNCIL","05/09/2022","05/10/2022","0000482172/001","QIUFU HURLEY","40912900","38.44","CORPORATE STRATEGY - WAVS","INTERPRETATION & TRANSLATION","H636","INTERPRETATION & TRANSLATION","CORPORATE STRATEGY","FINANCIAL SERVICES"
"http://statistics.data.gov.uk/id/local-authority/43UM","WOKING BOROUGH COUNCIL","05/09/2022","05/10/2022","0000482173/001","QIUFU HURLEY","40912900","48.06","CORPORATE STRATEGY - WAVS","INTERPRETATION & TRANSLATION","H636","INTERPRETATION & TRANSLATION","CORPORATE STRATEGY","FINANCIAL SERVICES"
"http://statistics.data.gov.uk/id/local-authority/43UM","WOKING BOROUGH COUNCIL","08/09/2022","05/10/2022","0000482174/001","QIUFU HURLEY","40912900","40.06","CORPORATE STRATEGY - WAVS","INTERPRETATION & TRANSLATION","H636","INTERPRETATION & TRANSLATION","CORPORATE STRATEGY","FINANCIAL SERVICES"
"http://statistics.data.gov.uk/id/local-authority/43UM","WOKING BOROUGH COUNCIL","16/09/2022","05/10/2022","0000482176/001","OLGA KISEL","40946300","40.04","CORPORATE STRATEGY - WAVS","INTERPRETATION & TRANSLATION","H636","INTERPRETATION & TRANSLATION","CORPORATE STRATEGY","FINANCIAL SERVICES"
"http://statistics.data.gov.uk/id/local-authority/43UM","WOKING BOROUGH COUNCIL","18/09/2022","05/10/2022","0000482177/001","OLGA KISEL","40946300","61.78","CORPORATE STRATEGY - WAVS","INTERPRETATION & TRANSLATION","H636","INTERPRETATION & TRANSLATION","CORPORATE STRATEGY","FINANCIAL SERVICES"
"http://statistics.data.gov.uk/id/local-authority/43UM","WOKING BOROUGH COUNCIL","15/09/2022","05/10/2022","0000482178/001","NOORAGHA HASHIMI","40998500","66.50","CORPORATE STRATEGY - WAVS","INTERPRETATION & TRANSLATION","H636","INTERPRETATION & TRANSLATION","CORPORATE STRATEGY","FINANCIAL SERVICES"
"http://statistics.data.gov.uk/id/local-authority/43UM","WOKING BOROUGH COUNCIL","15/09/2022","05/10/2022","0000482179/001","QIUFU HURLEY","40912900","52.64","CORPORATE STRATEGY - WAVS","INTERPRETATION & TRANSLATION","H636","INTERPRETATION & TRANSLATION","CORPORATE STRATEGY","FINANCIAL SERVICES"
"http://statistics.data.gov.uk/id/local-authority/43UM","WOKING BOROUGH COUNCIL","15/09/2022","05/10/2022","0000482180/001","OLGA KISEL","40946300","33.68","CORPORATE STRATEGY - WAVS","INTERPRETATION & TRANSLATION","H636","INTERPRETATION & TRANSLATION","CORPORATE STRATEGY","FINANCIAL SERVICES"
"http://statistics.data.gov.uk/id/local-authority/43UM","WOKING BOROUGH COUNCIL","13/09/2022","05/10/2022","0000482182/001","NOORAGHA HASHIMI","40998500","26.00","CORPORATE STRATEGY - WAVS","INTERPRETATION & TRANSLATION","H636","INTERPRETATION & TRANSLATION","CORPORATE STRATEGY","FINANCIAL SERVICES"
"http://statistics.data.gov.uk/id/local-authority/43UM","WOKING BOROUGH COUNCIL","20/09/2022","05/10/2022","0000482198/001","OLGA KISEL","40946300","45.37","CORPORATE STRATEGY - WAVS","INTERPRETATION & TRANSLATION","H636","INTERPRETATION & TRANSLATION","CORPORATE STRATEGY","FINANCIAL SERVICES"
"http://statistics.data.gov.uk/id/local-authority/43UM","WOKING BOROUGH COUNCIL","16/09/2022","05/10/2022","0000482222/001","HEADLINE DESIGN & PRINT","00016900","37.50","CORPORATE STRATEGY - DEMOCRATIC REPRESENTATION","MEMBERS TRAINING","H284","MEMBERS TRAINING","CORPORATE STRATEGY","FINANCIAL SERVICES"
"http://statistics.data.gov.uk/id/local-authority/43UM","WOKING BOROUGH COUNCIL","09/09/2022","05/10/2022","0000482224/001","GARY LEA","40308200","130.00","PLANNING SERVICES - WOKING TOWN CENTRE MASTERPLAN","OTHER CONSULTANTS","Q430","OTHER CONSULTANTS","PLANNING SERVICES","FINANCIAL SERVICES"
"http://statistics.data.gov.uk/id/local-authority/43UM","WOKING BOROUGH COUNCIL","21/09/2022","05/10/2022","0000482271/001","SURREY COUNTY COUNCIL-PENSION CONTRIBS","40235700","1157.00","FINANCIAL SERVICES - CORPORATE PENSION COSTS","PENSIONS-SCC","A730","PENSIONS-SCC","FINANCIAL SERVICES","FINANCIAL SERVICES"
"http://statistics.data.gov.uk/id/local-authority/43UM","WOKING BOROUGH COUNCIL","23/09/2022","05/10/2022","0000482288/001","REDACTED PERSONAL DATA","41050000","4952.09","INDEPENDENT LIVING SERVICES - SW REGEN HOME LOSS PAYMENTS","MAIN CONTRACTOR","Q200","MAIN CONTRACTOR","INDEPENDENT LIVING SERVICES","FINANCIAL SERVICES"
"http://statistics.data.gov.uk/id/local-authority/43UM","WOKING BOROUGH COUNCIL","22/09/2022","05/10/2022","0000482289/001","REDACTED PERSONAL DATA","41046400","7100.00","INDEPENDENT LIVING SERVICES - SW REGEN HOME LOSS PAYMENTS","MAIN CONTRACTOR","Q200","MAIN CONTRACTOR","INDEPENDENT LIVING SERVICES","FINANCIAL SERVICES"
"http://statistics.data.gov.uk/id/local-authority/43UM","WOKING BOROUGH COUNCIL","23/09/2022","05/10/2022","0000482290/001","REDACTED PERSONAL DATA","41005400","255.00","INDEPENDENT LIVING SERVICES - SW REGEN HOME LOSS PAYMENTS","MAIN CONTRACTOR","Q200","MAIN CONTRACTOR","INDEPENDENT LIVING SERVICES","FINANCIAL SERVICES"
"http://statistics.data.gov.uk/id/local-authority/43UM","WOKING BOROUGH COUNCIL","22/09/2022","05/10/2022","0000482291/001","LEE CAVALIERE","40916200","3710.00","NEIGHBOURHOOD SERVICES - ARTS DEVELOPMENT","NEW BEGININGS","H418","NEW BEGININGS","NEIGHBOURHOOD SERVICES","FINANCIAL SERVICES"
"http://statistics.data.gov.uk/id/local-authority/43UM","WOKING BOROUGH COUNCIL","26/09/2022","05/10/2022","0000482341/001","AIR SOCIAL","40813800","275.00","CORPORATE STRATEGY - TOWN CENTRE FORUM","MARKETING","H406","MARKETING","CORPORATE STRATEGY","FINANCIAL SERVICES"
"http://statistics.data.gov.uk/id/local-authority/43UM","WOKING BOROUGH COUNCIL","26/09/2022","05/10/2022","0000482341/002","AIR SOCIAL","40813800","275.00","CORPORATE STRATEGY - TOWN CENTRE FORUM","MARKETING","H406","MARKETING","CORPORATE STRATEGY","FINANCIAL SERVICES"
"http://statistics.data.gov.uk/id/local-authority/43UM","WOKING BOROUGH COUNCIL","26/09/2022","05/10/2022","0000482341/003","AIR SOCIAL","40813800","275.00","CORPORATE STRATEGY - TOWN CENTRE FORUM","MARKETING","H406","MARKETING","CORPORATE STRATEGY","FINANCIAL SERVICES"
"http://statistics.data.gov.uk/id/local-authority/43UM","WOKING BOROUGH COUNCIL","26/09/2022","05/10/2022","0000482341/004","AIR SOCIAL","40813800","275.00","CORPORATE STRATEGY - TOWN CENTRE FORUM","MARKETING","H406","MARKETING","CORPORATE STRATEGY","FINANCIAL SERVICES"
"http://statistics.data.gov.uk/id/local-authority/43UM","WOKING BOROUGH COUNCIL","26/09/2022","05/10/2022","0000482341/005","AIR SOCIAL","40813800","275.00","CORPORATE STRATEGY - TOWN CENTRE FORUM","MARKETING","H406","MARKETING","CORPORATE STRATEGY","FINANCIAL SERVICES"
"http://statistics.data.gov.uk/id/local-authority/43UM","WOKING BOROUGH COUNCIL","26/09/2022","05/10/2022","0000482341/006","AIR SOCIAL","40813800","275.00","CORPORATE STRATEGY - TOWN CENTRE FORUM","MARKETING","H406","MARKETING","CORPORATE STRATEGY","FINANCIAL SERVICES"
"http://statistics.data.gov.uk/id/local-authority/43UM","WOKING BOROUGH COUNCIL","26/09/2022","05/10/2022","0000482341/007","AIR SOCIAL","40813800","275.00","CORPORATE STRATEGY - TOWN CENTRE FORUM","MARKETING","H406","MARKETING","CORPORATE STRATEGY","FINANCIAL SERVICES"
"http://statistics.data.gov.uk/id/local-authority/43UM","WOKING BOROUGH COUNCIL","26/09/2022","05/10/2022","0000482341/008","AIR SOCIAL","40813800","275.00","CORPORATE STRATEGY - TOWN CENTRE FORUM","MARKETING","H406","MARKETING","CORPORATE STRATEGY","FINANCIAL SERVICES"
"http://statistics.data.gov.uk/id/local-authority/43UM","WOKING BOROUGH COUNCIL","26/09/2022","05/10/2022","0000482341/009","AIR SOCIAL","40813800","275.00","CORPORATE STRATEGY - TOWN CENTRE FORUM","MARKETING","H406","MARKETING","CORPORATE STRATEGY","FINANCIAL SERVICES"
"http://statistics.data.gov.uk/id/local-authority/43UM","WOKING BOROUGH COUNCIL","20/09/2022","05/10/2022","0000482347/001","GREENHILL ENTERTAINMENT LTD","89503200","250.00","CORPORATE STRATEGY - OPERATION BRIDGES","ARTISTS FEES","H754","ARTISTS FEES","CORPORATE STRATEGY","FINANCIAL SERVICES"
"http://statistics.data.gov.uk/id/local-authority/43UM","WOKING BOROUGH COUNCIL","23/09/2022","05/10/2022","0000482383/001","HEADLINE DESIGN & PRINT","00016900","171.50","PLANNING SERVICES - WOKING TOWN CENTRE MASTERPLAN","OTHER CONSULTANTS","Q430","OTHER CONSULTANTS","PLANNING SERVICES","FINANCIAL SERVICES"
"http://statistics.data.gov.uk/id/local-authority/43UM","WOKING BOROUGH COUNCIL","23/09/2022","05/10/2022","0000482384/001","HEADLINE DESIGN & PRINT","00016900","75.00","INDEPENDENT LIVING SERVICES - COMMUNITY CARE-ADMIN","INTERNAL PRINTING - PUBLICITY","G615","INTERNAL PRINTING - PUBLICITY","INDEPENDENT LIVING SERVICES","FINANCIAL SERVICES"
"http://statistics.data.gov.uk/id/local-authority/43UM","WOKING BOROUGH COUNCIL","11/09/2022","05/10/2022","0000482389/001","BRISTOW & SUTOR","40257600","6.75","REVENUES AND BENEFITS - RENT ALLOWANCES","DEBT COLLECTION AGENCY COMMISS","H910","DEBT COLLECTION AGENCY COMMISS","REVENUES AND BENEFITS","FINANCIAL SERVICES"
"http://statistics.data.gov.uk/id/local-authority/43UM","WOKING BOROUGH COUNCIL","26/09/2022","05/10/2022","0000482429/001","GARY LEA","40308200","385.00","HOUSING SERVICES - ESTATE CLEANING HRA","HRA CLEANING","D119","HRA CLEANING","HOUSING SERVICES","FINANCIAL SERVICES"
"http://statistics.data.gov.uk/id/local-authority/43UM","WOKING BOROUGH COUNCIL","26/09/2022","05/10/2022","0000482430/001","GARY LEA","40308200","975.00","HOUSING SERVICES - ESTATE CLEANING HRA","HRA CLEANING","D119","HRA CLEANING","HOUSING SERVICES","FINANCIAL SERVICES"
"http://statistics.data.gov.uk/id/local-authority/43UM","WOKING BOROUGH COUNCIL","27/09/2022","05/10/2022","0000482438/001","ASSOC.OF DEMOCRATIC SERVICES OFFICERS","40101000","55.00","CORPORATE MANAGEMENT GROUP - STAFF TRAINING/GENERAL COSTS","TRAINING - CORPORATE","A910","TRAINING - CORPORATE","CORPORATE MANAGEMENT GROUP","FINANCIAL SERVICES"
"http://statistics.data.gov.uk/id/local-authority/43UM","WOKING BOROUGH COUNCIL","29/09/2022","05/10/2022","0000482473/001","SEYMOURS LETTINGS & MANAGEMENT","40782900","3446.00","HOUSING SERVICES - HOUSING OPTIONS DEPOSITS","DEPOSITS","T720","DEPOSITS","HOUSING SERVICES","FINANCIAL SERVICES"
"http://statistics.data.gov.uk/id/local-authority/43UM","WOKING BOROUGH COUNCIL","09/09/2022","05/10/2022","0000482491/001","COMMERCIAL HOLDINGS 496 LTD","40918500","767.60","ASSET MANAGEMENT - HIF WTC FLT3,4-5 GUILDFORD RD","OTHER CONSULTANTS","Q430","OTHER CONSULTANTS","ASSET MANAGEMENT","FINANCIAL SERVICES"
"http://statistics.data.gov.uk/id/local-authority/43UM","WOKING BOROUGH COUNCIL","27/09/2022","05/10/2022","0000482500/001","GARY LEA","40308200","50.00","ASSET MANAGEMENT - DARTMOUTH AVE PARADE","R&M BUILDINGS - CONTRACTORS","D100","R&M BUILDINGS - CONTRACTORS","ASSET MANAGEMENT","FINANCIAL SERVICES"
"http://statistics.data.gov.uk/id/local-authority/43UM","WOKING BOROUGH COUNCIL","28/09/2022","05/10/2022","0000482525/001","MOTIVATION BY MUSIC","40821100","360.00","NEIGHBOURHOOD SERVICES - ARTS DEVELOPMENT","GRANTS","H100","GRANTS","NEIGHBOURHOOD SERVICES","FINANCIAL SERVICES"
"http://statistics.data.gov.uk/id/local-authority/43UM","WOKING BOROUGH COUNCIL","01/10/2022","05/10/2022","0000482570/001","AIR SOCIAL","40813800","2250.00","ASSET MANAGEMENT - PLANET WOKING","MAIN CONTRACTOR","Q200","MAIN CONTRACTOR","ASSET MANAGEMENT","FINANCIAL SERVICES"
"http://statistics.data.gov.uk/id/local-authority/43UM","WOKING BOROUGH COUNCIL","21/09/2022","05/10/2022","0000482574/001","JILL TONKS","40817100","500.00","CORPORATE MANAGEMENT GROUP - STAFF TRAINING/GENERAL COSTS","TRAINING - CORPORATE","A910","TRAINING - CORPORATE","CORPORATE MANAGEMENT GROUP","FINANCIAL SERVICES"
"http://statistics.data.gov.uk/id/local-authority/43UM","WOKING BOROUGH COUNCIL","29/09/2022","05/10/2022","0000482582/001","LEADERS LIMITED","40792800","2596.69","HOUSING SERVICES - HOUSING OPTIONS DEPOSITS","DEPOSITS","T720","DEPOSITS","HOUSING SERVICES","FINANCIAL SERVICES"
"http://statistics.data.gov.uk/id/local-authority/43UM","WOKING BOROUGH COUNCIL","07/10/2022","05/10/2022","0000482586/001","BOOM! CREDIT UNION","40344200","1216.00","CORPORATE STRATEGY - SURREY SAVE CREDIT UNION","PAYMENTS OVER","S340","PAYMENTS OVER","CORPORATE STRATEGY","FINANCIAL SERVICES"
"http://statistics.data.gov.uk/id/local-authority/43UM","WOKING BOROUGH COUNCIL","30/09/2022","05/10/2022","0000482633/001","COMFORT BUILDING SERVICES LIMITED","40791600","17784.80","ASSET MANAGEMENT - FACILITIES MANAGEMENT","FACILITIES MANAGEMENT REPAIRS","D908","FACILITIES MANAGEMENT REPAIRS","ASSET MANAGEMENT","FINANCIAL SERVICES"
"http://statistics.data.gov.uk/id/local-authority/43UM","WOKING BOROUGH COUNCIL","23/09/2022","05/10/2022","0065000373/001","EMERA CHOWN","41054000","25.79","CORPORATE STRATEGY - OPERATION BRIDGES","FLORAL DECORATION","H902","FLORAL DECORATION","CORPORATE STRATEGY","FINANCIAL SERVICES"
"http://statistics.data.gov.uk/id/local-authority/43UM","WOKING BOROUGH COUNCIL","28/09/2022","05/10/2022","0065000374/001","JULIE FISHER","41040300","28.89","CORPORATE MANAGEMENT GROUP - CORPORATE MANAGEMENT GROUP","TRAVEL EXPENSES","A901","TRAVEL EXPENSES","CORPORATE MANAGEMENT GROUP","FINANCIAL SERVICES"
"http://statistics.data.gov.uk/id/local-authority/43UM","WOKING BOROUGH COUNCIL","03/10/2022","05/10/2022","0065000378/001","ALICEA VAN DER RYST","41055700","26.40","REVENUES AND BENEFITS - COUNCIL TAX","TRAVEL EXPENSES-OFFICERS","F600","TRAVEL EXPENSES-OFFICERS","REVENUES AND BENEFITS","FINANCIAL SERVICES"
"http://statistics.data.gov.uk/id/local-authority/43UM","WOKING BOROUGH COUNCIL","05/10/2022","05/10/2022","0065000380/001","REBECCA GIBBONS","41051700","12.00","INDEPENDENT LIVING SERVICES - SOCIAL PRESCRIBING","PARKING COSTS","F510","PARKING COSTS","INDEPENDENT LIVING SERVICES","FINANCIAL SERVICES"
"http://statistics.data.gov.uk/id/local-authority/43UM","WOKING BOROUGH COUNCIL","05/10/2022","05/10/2022","0065000380/002","REBECCA GIBBONS","41051700","7.60","INDEPENDENT LIVING SERVICES - SOCIAL PRESCRIBING","PARKING COSTS","F510","PARKING COSTS","INDEPENDENT LIVING SERVICES","FINANCIAL SERVICES"
"http://statistics.data.gov.uk/id/local-authority/43UM","WOKING BOROUGH COUNCIL","05/10/2022","05/10/2022","0065000380/003","REBECCA GIBBONS","41051700","34.50","INDEPENDENT LIVING SERVICES - SOCIAL PRESCRIBING","PARKING COSTS","F510","PARKING COSTS","INDEPENDENT LIVING SERVICES","FINANCIAL SERVICES"
"http://statistics.data.gov.uk/id/local-authority/43UM","WOKING BOROUGH COUNCIL","27/09/2022","05/10/2022","0000482528/001","OFFICEFURNITUREONLINE.CO.UK","40663700","708.00","INDEPENDENT LIVING SERVICES - FAMILY CENTRES","REFURBISHMENTS","D104","REFURBISHMENTS","INDEPENDENT LIVING SERVICES","FURNITURE & SOFT FURNISHINGS"
"http://statistics.data.gov.uk/id/local-authority/43UM","WOKING BOROUGH COUNCIL","20/09/2022","05/10/2022","0000482201/001","VPS (UK) LIMITED","41039500","20260.00","HOUSING SERVICES - RESPONSIVE REPARS HRA","HRA REPAIRS CONTRACTOR","D112","HRA REPAIRS CONTRACTOR","HOUSING SERVICES","HEALTH & SAFETY"
"http://statistics.data.gov.uk/id/local-authority/43UM","WOKING BOROUGH COUNCIL","15/09/2022","05/10/2022","0000482336/001","VALUE PRODUCTS LTD","41053800","19.95","ASSET MANAGEMENT - PEACOCK WALK MARKET","EQUIPMENT","G100","EQUIPMENT","ASSET MANAGEMENT","HEALTH & SAFETY"
"http://statistics.data.gov.uk/id/local-authority/43UM","WOKING BOROUGH COUNCIL","29/09/2022","05/10/2022","0000482484/001","JPEN MEDICAL","40571000","141.00","INDEPENDENT LIVING SERVICES - ST MARY'S DAY CENTRE","FIXTURES & FITTINGS - NEW","D800","FIXTURES & FITTINGS - NEW","INDEPENDENT LIVING SERVICES","HEALTH & SAFETY"
"http://statistics.data.gov.uk/id/local-authority/43UM","WOKING BOROUGH COUNCIL","30/09/2022","05/10/2022","0000482628/001","SURREY FIRE & SAFETY LTD","41015600","722.00","HOUSING SERVICES - STATUTORU HRA","HRA STATUTORY","D116","HRA STATUTORY","HOUSING SERVICES","HEALTH & SAFETY"
"http://statistics.data.gov.uk/id/local-authority/43UM","WOKING BOROUGH COUNCIL","12/09/2022","05/10/2022","0000482016/001","PROJECT 114 LTD","40370300","560.00","HOUSING SERVICES - UKRAINE REFUGEE","EMERGENCY ACCOMODATION","Q525","EMERGENCY ACCOMODATION","HOUSING SERVICES","HOUSING MANAGEMENT"
"http://statistics.data.gov.uk/id/local-authority/43UM","WOKING BOROUGH COUNCIL","12/09/2022","05/10/2022","0000482016/002","PROJECT 114 LTD","40370300","7900.00","HOUSING SERVICES - HOUSING OPTIONS","BED & BREAKFAST EXPENDITURE","H786","BED & BREAKFAST EXPENDITURE","HOUSING SERVICES","HOUSING MANAGEMENT"
"http://statistics.data.gov.uk/id/local-authority/43UM","WOKING BOROUGH COUNCIL","12/09/2022","05/10/2022","0000482116/001","MARTIN CONWAY","01025900","385.00","HOUSING SERVICES - HOUSING OPTIONS","BED & BREAKFAST EXPENDITURE","H786","BED & BREAKFAST EXPENDITURE","HOUSING SERVICES","HOUSING MANAGEMENT"
"http://statistics.data.gov.uk/id/local-authority/43UM","WOKING BOROUGH COUNCIL","12/09/2022","05/10/2022","0000482117/001","MARTIN CONWAY","01025900","385.00","HOUSING SERVICES - HOUSING OPTIONS","BED & BREAKFAST EXPENDITURE","H786","BED & BREAKFAST EXPENDITURE","HOUSING SERVICES","HOUSING MANAGEMENT"
"http://statistics.data.gov.uk/id/local-authority/43UM","WOKING BOROUGH COUNCIL","12/09/2022","05/10/2022","0000482118/001","MARTIN CONWAY","01025900","455.00","HOUSING SERVICES - HOUSING OPTIONS","BED & BREAKFAST EXPENDITURE","H786","BED & BREAKFAST EXPENDITURE","HOUSING SERVICES","HOUSING MANAGEMENT"
"http://statistics.data.gov.uk/id/local-authority/43UM","WOKING BOROUGH COUNCIL","12/09/2022","05/10/2022","0000482119/001","MARTIN CONWAY","01025900","420.00","HOUSING SERVICES - HOUSING OPTIONS","BED & BREAKFAST EXPENDITURE","H786","BED & BREAKFAST EXPENDITURE","HOUSING SERVICES","HOUSING MANAGEMENT"
"http://statistics.data.gov.uk/id/local-authority/43UM","WOKING BOROUGH COUNCIL","20/09/2022","05/10/2022","0000482140/001","PROJECT 114 LTD","40370300","1330.00","HOUSING SERVICES - HOUSING OPTIONS","BED & BREAKFAST EXPENDITURE","H786","BED & BREAKFAST EXPENDITURE","HOUSING SERVICES","HOUSING MANAGEMENT"
"http://statistics.data.gov.uk/id/local-authority/43UM","WOKING BOROUGH COUNCIL","20/09/2022","05/10/2022","0000482142/001","PROJECT 114 LTD","40370300","560.00","HOUSING SERVICES - UKRAINE REFUGEE","EMERGENCY ACCOMODATION","Q525","EMERGENCY ACCOMODATION","HOUSING SERVICES","HOUSING MANAGEMENT"
"http://statistics.data.gov.uk/id/local-authority/43UM","WOKING BOROUGH COUNCIL","20/09/2022","05/10/2022","0000482142/002","PROJECT 114 LTD","40370300","7980.00","HOUSING SERVICES - HOUSING OPTIONS","BED & BREAKFAST EXPENDITURE","H786","BED & BREAKFAST EXPENDITURE","HOUSING SERVICES","HOUSING MANAGEMENT"
"http://statistics.data.gov.uk/id/local-authority/43UM","WOKING BOROUGH COUNCIL","20/09/2022","05/10/2022","0000482163/001","MAN WITH A VAN","41021400","160.00","HOUSING SERVICES - HOMELESSNESS DIRECTRTE FUNDING","PERSONALISED BDGT. EXPENSES","H126","PERSONALISED BDGT. EXPENSES","HOUSING SERVICES","HOUSING MANAGEMENT"
"http://statistics.data.gov.uk/id/local-authority/43UM","WOKING BOROUGH COUNCIL","21/09/2022","05/10/2022","0000482185/001","ATKINSONS GUEST HOUSE","40250600","875.00","HOUSING SERVICES - HOUSING OPTIONS","BED & BREAKFAST EXPENDITURE","H786","BED & BREAKFAST EXPENDITURE","HOUSING SERVICES","HOUSING MANAGEMENT"
"http://statistics.data.gov.uk/id/local-authority/43UM","WOKING BOROUGH COUNCIL","21/09/2022","05/10/2022","0000482186/001","ATKINSONS GUEST HOUSE","40250600","665.00","HOUSING SERVICES - HOUSING OPTIONS","BED & BREAKFAST EXPENDITURE","H786","BED & BREAKFAST EXPENDITURE","HOUSING SERVICES","HOUSING MANAGEMENT"
"http://statistics.data.gov.uk/id/local-authority/43UM","WOKING BOROUGH COUNCIL","21/09/2022","05/10/2022","0000482187/001","ATKINSONS GUEST HOUSE","40250600","665.00","HOUSING SERVICES - HOUSING OPTIONS","BED & BREAKFAST EXPENDITURE","H786","BED & BREAKFAST EXPENDITURE","HOUSING SERVICES","HOUSING MANAGEMENT"
"http://statistics.data.gov.uk/id/local-authority/43UM","WOKING BOROUGH COUNCIL","02/09/2022","05/10/2022","0000482218/001","PROPERTY INITIATIVES MANAGEMENT LTD","40910000","30571.50","ASSET MANAGEMENT - DUKES COURT","AGENTS LETTING FEES","H742","AGENTS LETTING FEES","ASSET MANAGEMENT","HOUSING MANAGEMENT"
"http://statistics.data.gov.uk/id/local-authority/43UM","WOKING BOROUGH COUNCIL","18/09/2022","05/10/2022","0000482219/001","THE GATWICK WHITE HOUSE HOTEL","40346700","185.00","HOUSING SERVICES - HOUSING OPTIONS","BED & BREAKFAST EXPENDITURE","H786","BED & BREAKFAST EXPENDITURE","HOUSING SERVICES","HOUSING MANAGEMENT"
"http://statistics.data.gov.uk/id/local-authority/43UM","WOKING BOROUGH COUNCIL","23/09/2022","05/10/2022","0000482302/001","FERRET INFORMATION SYSTEMS LTD","00039500","48.00","CORPORATE MANAGEMENT GROUP - STAFF TRAINING/GENERAL COSTS","TRAINING - CORPORATE","A910","TRAINING - CORPORATE","CORPORATE MANAGEMENT GROUP","HOUSING MANAGEMENT"
"http://statistics.data.gov.uk/id/local-authority/43UM","WOKING BOROUGH COUNCIL","23/09/2022","05/10/2022","0000482302/002","FERRET INFORMATION SYSTEMS LTD","00039500","48.00","CORPORATE MANAGEMENT GROUP - STAFF TRAINING/GENERAL COSTS","TRAINING - CORPORATE","A910","TRAINING - CORPORATE","CORPORATE MANAGEMENT GROUP","HOUSING MANAGEMENT"
"http://statistics.data.gov.uk/id/local-authority/43UM","WOKING BOROUGH COUNCIL","19/09/2022","05/10/2022","0000482324/001","MARTIN CONWAY","01025900","385.00","HOUSING SERVICES - HOUSING OPTIONS","BED & BREAKFAST EXPENDITURE","H786","BED & BREAKFAST EXPENDITURE","HOUSING SERVICES","HOUSING MANAGEMENT"
"http://statistics.data.gov.uk/id/local-authority/43UM","WOKING BOROUGH COUNCIL","19/09/2022","05/10/2022","0000482325/001","MARTIN CONWAY","01025900","385.00","HOUSING SERVICES - HOUSING OPTIONS","BED & BREAKFAST EXPENDITURE","H786","BED & BREAKFAST EXPENDITURE","HOUSING SERVICES","HOUSING MANAGEMENT"
"http://statistics.data.gov.uk/id/local-authority/43UM","WOKING BOROUGH COUNCIL","19/09/2022","05/10/2022","0000482326/001","MARTIN CONWAY","01025900","455.00","HOUSING SERVICES - HOUSING OPTIONS","BED & BREAKFAST EXPENDITURE","H786","BED & BREAKFAST EXPENDITURE","HOUSING SERVICES","HOUSING MANAGEMENT"
"http://statistics.data.gov.uk/id/local-authority/43UM","WOKING BOROUGH COUNCIL","19/09/2022","05/10/2022","0000482327/001","MARTIN CONWAY","01025900","420.00","HOUSING SERVICES - HOUSING OPTIONS","BED & BREAKFAST EXPENDITURE","H786","BED & BREAKFAST EXPENDITURE","HOUSING SERVICES","HOUSING MANAGEMENT"
"http://statistics.data.gov.uk/id/local-authority/43UM","WOKING BOROUGH COUNCIL","23/09/2022","05/10/2022","0000482330/001","BRIDGES","40735600","2500.00","HOUSING SERVICES - LETS RENT SCHEME","CORE BOND CLAIMS","H712","CORE BOND CLAIMS","HOUSING SERVICES","HOUSING MANAGEMENT"
"http://statistics.data.gov.uk/id/local-authority/43UM","WOKING BOROUGH COUNCIL","26/09/2022","05/10/2022","0000482351/001","ENVIROSURV LTD","41034700","161.26","HOUSING SERVICES - PRIVATE SECTOR LEASING SCHEME","SCHED 1B VOIDS","D166","SCHED 1B VOIDS","HOUSING SERVICES","HOUSING MANAGEMENT"
"http://statistics.data.gov.uk/id/local-authority/43UM","WOKING BOROUGH COUNCIL","28/09/2022","05/10/2022","0000482469/001","MAN WITH A VAN","41021400","180.00","HOUSING SERVICES - HOMELESSNESS DIRECTRTE FUNDING","PERSONALISED BDGT. EXPENSES","H126","PERSONALISED BDGT. EXPENSES","HOUSING SERVICES","HOUSING MANAGEMENT"
"http://statistics.data.gov.uk/id/local-authority/43UM","WOKING BOROUGH COUNCIL","26/09/2022","05/10/2022","0000482486/001","PROJECT 114 LTD","40370300","560.00","HOUSING SERVICES - UKRAINE REFUGEE","EMERGENCY ACCOMODATION","Q525","EMERGENCY ACCOMODATION","HOUSING SERVICES","HOUSING MANAGEMENT"
"http://statistics.data.gov.uk/id/local-authority/43UM","WOKING BOROUGH COUNCIL","26/09/2022","05/10/2022","0000482486/002","PROJECT 114 LTD","40370300","8460.00","HOUSING SERVICES - HOUSING OPTIONS","BED & BREAKFAST EXPENDITURE","H786","BED & BREAKFAST EXPENDITURE","HOUSING SERVICES","HOUSING MANAGEMENT"
"http://statistics.data.gov.uk/id/local-authority/43UM","WOKING BOROUGH COUNCIL","26/09/2022","05/10/2022","0000482487/001","PROJECT 114 LTD","40370300","1330.00","HOUSING SERVICES - HOUSING OPTIONS","BED & BREAKFAST EXPENDITURE","H786","BED & BREAKFAST EXPENDITURE","HOUSING SERVICES","HOUSING MANAGEMENT"
"http://statistics.data.gov.uk/id/local-authority/43UM","WOKING BOROUGH COUNCIL","28/09/2022","05/10/2022","0000482520/001","ATKINSONS GUEST HOUSE","40250600","665.00","HOUSING SERVICES - HOUSING OPTIONS","BED & BREAKFAST EXPENDITURE","H786","BED & BREAKFAST EXPENDITURE","HOUSING SERVICES","HOUSING MANAGEMENT"
"http://statistics.data.gov.uk/id/local-authority/43UM","WOKING BOROUGH COUNCIL","28/09/2022","05/10/2022","0000482521/001","ATKINSONS GUEST HOUSE","40250600","875.00","HOUSING SERVICES - HOUSING OPTIONS","BED & BREAKFAST EXPENDITURE","H786","BED & BREAKFAST EXPENDITURE","HOUSING SERVICES","HOUSING MANAGEMENT"
"http://statistics.data.gov.uk/id/local-authority/43UM","WOKING BOROUGH COUNCIL","28/09/2022","05/10/2022","0000482522/001","ATKINSONS GUEST HOUSE","40250600","665.00","HOUSING SERVICES - HOUSING OPTIONS","BED & BREAKFAST EXPENDITURE","H786","BED & BREAKFAST EXPENDITURE","HOUSING SERVICES","HOUSING MANAGEMENT"
"http://statistics.data.gov.uk/id/local-authority/43UM","WOKING BOROUGH COUNCIL","28/09/2022","05/10/2022","0000482534/001","FRAZERS SURVEYORS LTD","00076400","175.00","HOUSING SERVICES - SALE COUNCIL HOUSES","OTHER CONSULTANTS","Q430","OTHER CONSULTANTS","HOUSING SERVICES","HOUSING MANAGEMENT"
"http://statistics.data.gov.uk/id/local-authority/43UM","WOKING BOROUGH COUNCIL","27/09/2022","05/10/2022","0000482579/001","MULGAS LIMITED","40290900","74.75","HOUSING SERVICES - PRIVATE SECTOR LEASING SCHEME","SCHED 1B VOIDS","D166","SCHED 1B VOIDS","HOUSING SERVICES","HOUSING MANAGEMENT"
"http://statistics.data.gov.uk/id/local-authority/43UM","WOKING BOROUGH COUNCIL","06/09/2022","05/10/2022","0000481801/001","FREEDOM LEISURE","40296500","117.60","INDEPENDENT LIVING SERVICES - MOORCROFT","WELL BEING ACTIVITIES","H419","WELL BEING ACTIVITIES","INDEPENDENT LIVING SERVICES","HUMAN RESOURCES"
"http://statistics.data.gov.uk/id/local-authority/43UM","WOKING BOROUGH COUNCIL","06/09/2022","05/10/2022","0000481801/002","FREEDOM LEISURE","40296500","117.60","INDEPENDENT LIVING SERVICES - ST MARY'S DAY CENTRE","WELL BEING ACTIVITIES","H419","WELL BEING ACTIVITIES","INDEPENDENT LIVING SERVICES","HUMAN RESOURCES"
"http://statistics.data.gov.uk/id/local-authority/43UM","WOKING BOROUGH COUNCIL","14/09/2022","05/10/2022","0000482001/001","BROOK STREET (UK) LTD","01049600","150.22","HOUSING SERVICES - HOUSING STANDARDS & LICENSING","TEMPORARY STAFF","A110","TEMPORARY STAFF","HOUSING SERVICES","HUMAN RESOURCES"
"http://statistics.data.gov.uk/id/local-authority/43UM","WOKING BOROUGH COUNCIL","09/09/2022","05/10/2022","0000482052/001","FAITH RECRUITMENT","01709500","663.38","NEIGHBOURHOOD SERVICES - PARKING SERVICES","TEMPORARY STAFF","A110","TEMPORARY STAFF","NEIGHBOURHOOD SERVICES","HUMAN RESOURCES"
"http://statistics.data.gov.uk/id/local-authority/43UM","WOKING BOROUGH COUNCIL","09/09/2022","05/10/2022","0000482053/001","FAITH RECRUITMENT","01709500","41.37","NEIGHBOURHOOD SERVICES - PARKING SERVICES","TEMPORARY STAFF","A110","TEMPORARY STAFF","NEIGHBOURHOOD SERVICES","HUMAN RESOURCES"
"http://statistics.data.gov.uk/id/local-authority/43UM","WOKING BOROUGH COUNCIL","21/09/2022","05/10/2022","0000482196/001","BROOK STREET (UK) LTD","01049600","160.95","HOUSING SERVICES - HOUSING STANDARDS & LICENSING","TEMPORARY STAFF","A110","TEMPORARY STAFF","HOUSING SERVICES","HUMAN RESOURCES"
"http://statistics.data.gov.uk/id/local-authority/43UM","WOKING BOROUGH COUNCIL","21/09/2022","05/10/2022","0000482247/001","VIVID RESOURCING","40463200","1258.00","HOUSING SERVICES - HOUSING NEEDS & ALLOCATIONS","TEMPORARY STAFF","A110","TEMPORARY STAFF","HOUSING SERVICES","HUMAN RESOURCES"
"http://statistics.data.gov.uk/id/local-authority/43UM","WOKING BOROUGH COUNCIL","16/09/2022","05/10/2022","0000482298/001","FAITH RECRUITMENT","01709500","663.38","NEIGHBOURHOOD SERVICES - PARKING SERVICES","TEMPORARY STAFF","A110","TEMPORARY STAFF","NEIGHBOURHOOD SERVICES","HUMAN RESOURCES"
"http://statistics.data.gov.uk/id/local-authority/43UM","WOKING BOROUGH COUNCIL","16/09/2022","05/10/2022","0000482303/001","FAITH RECRUITMENT","01709500","41.37","NEIGHBOURHOOD SERVICES - PARKING SERVICES","TEMPORARY STAFF","A110","TEMPORARY STAFF","NEIGHBOURHOOD SERVICES","HUMAN RESOURCES"
"http://statistics.data.gov.uk/id/local-authority/43UM","WOKING BOROUGH COUNCIL","12/09/2022","05/10/2022","0000482315/001","LAILA BRICE","40857000","328.90","CORPORATE STRATEGY - WAVS","INTERPRETATION & TRANSLATION","H636","INTERPRETATION & TRANSLATION","CORPORATE STRATEGY","HUMAN RESOURCES"
"http://statistics.data.gov.uk/id/local-authority/43UM","WOKING BOROUGH COUNCIL","23/09/2022","05/10/2022","0000482340/001","ABC UMBRELLA LTD","41031700","987.50","REVENUES AND BENEFITS - COUNCIL TAX","TEMPORARY STAFF","A110","TEMPORARY STAFF","REVENUES AND BENEFITS","HUMAN RESOURCES"
"http://statistics.data.gov.uk/id/local-authority/43UM","WOKING BOROUGH COUNCIL","14/09/2022","05/10/2022","0000482342/001","VENN GROUP LIMITED","40383900","387.36","REVENUES AND BENEFITS - BENEFIT SERVICES","TEMPORARY STAFF","A110","TEMPORARY STAFF","REVENUES AND BENEFITS","HUMAN RESOURCES"
"http://statistics.data.gov.uk/id/local-authority/43UM","WOKING BOROUGH COUNCIL","23/09/2022","05/10/2022","0000482355/001","UNIVERSITY OF THE WEST OF ENGLAND","00436200","4100.00","CORPORATE MANAGEMENT GROUP - STAFF TRAINING/GENERAL COSTS","TRAINING - POST ENTRY","A903","TRAINING - POST ENTRY","CORPORATE MANAGEMENT GROUP","HUMAN RESOURCES"
"http://statistics.data.gov.uk/id/local-authority/43UM","WOKING BOROUGH COUNCIL","23/09/2022","05/10/2022","0000482476/001","FAITH RECRUITMENT","01709500","41.37","PLANNING SERVICES - DEVELOPMENT CONTROL","TEMPORARY STAFF","A110","TEMPORARY STAFF","PLANNING SERVICES","HUMAN RESOURCES"
"http://statistics.data.gov.uk/id/local-authority/43UM","WOKING BOROUGH COUNCIL","23/09/2022","05/10/2022","0000482477/001","FAITH RECRUITMENT","01709500","398.00","PLANNING SERVICES - DEVELOPMENT CONTROL","TEMPORARY STAFF","A110","TEMPORARY STAFF","PLANNING SERVICES","HUMAN RESOURCES"
"http://statistics.data.gov.uk/id/local-authority/43UM","WOKING BOROUGH COUNCIL","23/09/2022","05/10/2022","0000482479/001","FAITH RECRUITMENT","01709500","503.44","INFORMATION TECHNOLOGY - 150 COUNCIL TAX REBATE SCHEME","TEMP STAFF SALARIES","Q480","TEMP STAFF SALARIES","INFORMATION TECHNOLOGY","HUMAN RESOURCES"
"http://statistics.data.gov.uk/id/local-authority/43UM","WOKING BOROUGH COUNCIL","23/09/2022","05/10/2022","0000482480/001","FAITH RECRUITMENT","01709500","151.90","INFORMATION TECHNOLOGY - 150 COUNCIL TAX REBATE SCHEME","TEMP STAFF SALARIES","Q480","TEMP STAFF SALARIES","INFORMATION TECHNOLOGY","HUMAN RESOURCES"
"http://statistics.data.gov.uk/id/local-authority/43UM","WOKING BOROUGH COUNCIL","23/09/2022","05/10/2022","0000482481/001","FAITH RECRUITMENT","01709500","539.08","CORPORATE STRATEGY - CUSTOMER SERVICES","TEMPORARY STAFF","A110","TEMPORARY STAFF","CORPORATE STRATEGY","HUMAN RESOURCES"
"http://statistics.data.gov.uk/id/local-authority/43UM","WOKING BOROUGH COUNCIL","23/09/2022","05/10/2022","0000482482/001","FAITH RECRUITMENT","01709500","46.88","CORPORATE STRATEGY - CUSTOMER SERVICES","TEMPORARY STAFF","A110","TEMPORARY STAFF","CORPORATE STRATEGY","HUMAN RESOURCES"
"http://statistics.data.gov.uk/id/local-authority/43UM","WOKING BOROUGH COUNCIL","21/09/2022","05/10/2022","0000482485/001","VENN GROUP LIMITED","40383900","387.36","REVENUES AND BENEFITS - BENEFIT SERVICES","TEMPORARY STAFF","A110","TEMPORARY STAFF","REVENUES AND BENEFITS","HUMAN RESOURCES"
"http://statistics.data.gov.uk/id/local-authority/43UM","WOKING BOROUGH COUNCIL","28/09/2022","05/10/2022","0000482488/001","BROOK STREET (UK) LTD","01049600","160.95","HOUSING SERVICES - HOUSING STANDARDS & LICENSING","TEMPORARY STAFF","A110","TEMPORARY STAFF","HOUSING SERVICES","HUMAN RESOURCES"
"http://statistics.data.gov.uk/id/local-authority/43UM","WOKING BOROUGH COUNCIL","29/09/2022","05/10/2022","0000482490/001","FLYING UMBRELLA","41022200","1000.00","REVENUES AND BENEFITS - BENEFIT SERVICES","TEMPORARY STAFF","A110","TEMPORARY STAFF","REVENUES AND BENEFITS","HUMAN RESOURCES"
"http://statistics.data.gov.uk/id/local-authority/43UM","WOKING BOROUGH COUNCIL","28/09/2022","05/10/2022","0000482511/001","VIVID RESOURCING","40463200","1006.40","HOUSING SERVICES - HOUSING NEEDS & ALLOCATIONS","TEMPORARY STAFF","A110","TEMPORARY STAFF","HOUSING SERVICES","HUMAN RESOURCES"
"http://statistics.data.gov.uk/id/local-authority/43UM","WOKING BOROUGH COUNCIL","28/09/2022","05/10/2022","0000482634/001","HAYS","00228700","866.72","CORPORATE MANAGEMENT GROUP - HUMAN RESOURCES","TEMPORARY STAFF","A110","TEMPORARY STAFF","CORPORATE MANAGEMENT GROUP","HUMAN RESOURCES"
"http://statistics.data.gov.uk/id/local-authority/43UM","WOKING BOROUGH COUNCIL","30/09/2022","05/10/2022","0000482659/001","DISCLOSURE & BARRING SERVICE","01174400","76.00","CORPORATE MANAGEMENT GROUP - STAFF TRAINING/GENERAL COSTS","CRIMINAL RECORDS BUREAU FEES","H642","CRIMINAL RECORDS BUREAU FEES","CORPORATE MANAGEMENT GROUP","HUMAN RESOURCES"
"http://statistics.data.gov.uk/id/local-authority/43UM","WOKING BOROUGH COUNCIL","29/09/2022","05/10/2022","0065000375/001","JOANNE MCINTOSH","40323300","46.20","CORPORATE STRATEGY - CIVIC EXPENSES","OFFICIAL HOSPITALITY","H310","OFFICIAL HOSPITALITY","CORPORATE STRATEGY","HUMAN RESOURCES"
"http://statistics.data.gov.uk/id/local-authority/43UM","WOKING BOROUGH COUNCIL","21/09/2022","05/10/2022","0000482269/001","ICL MEDIA","01821200","450.00","NEIGHBOURHOOD SERVICES - TOWN CTR MANAGEMENT","R&M BUILDINGS - CONTRACTORS","D100","R&M BUILDINGS - CONTRACTORS","NEIGHBOURHOOD SERVICES","INFORMATION COMMUNICATION TECHNOLOGY"
"http://statistics.data.gov.uk/id/local-authority/43UM","WOKING BOROUGH COUNCIL","23/09/2022","05/10/2022","0000482378/001","RACKSPACE INTERNATIONAL GMBH","01570000","508.95","INFORMATION TECHNOLOGY - I.T.S. ICT","HOSTED SYSTEMS","G198","HOSTED SYSTEMS","INFORMATION TECHNOLOGY","INFORMATION COMMUNICATION TECHNOLOGY"
"http://statistics.data.gov.uk/id/local-authority/43UM","WOKING BOROUGH COUNCIL","23/09/2022","05/10/2022","0000482380/001","BT GLOBAL SERVICES","01298100","1151.15","INFORMATION TECHNOLOGY - COMMUNICATIONS","NETWORK CIRCUITS","G800","NETWORK CIRCUITS","INFORMATION TECHNOLOGY","INFORMATION COMMUNICATION TECHNOLOGY"
"http://statistics.data.gov.uk/id/local-authority/43UM","WOKING BOROUGH COUNCIL","01/09/2022","05/10/2022","0000482503/001","CMIS-UK LIMITED","40655600","120.00","CORPORATE STRATEGY - TOWN CENTRE FORUM","ECDEV INWARD INVESTMENT PLAN","H409","ECDEV INWARD INVESTMENT PLAN","CORPORATE STRATEGY","INFORMATION COMMUNICATION TECHNOLOGY"
"http://statistics.data.gov.uk/id/local-authority/43UM","WOKING BOROUGH COUNCIL","28/09/2022","05/10/2022","0000482527/001","VIRGIN MEDIA BUSINESS","00316500","65.00","ASSET MANAGEMENT - C.C.T.V.","CCTV TRANSMISSION MAINTENANCE","D342","CCTV TRANSMISSION MAINTENANCE","ASSET MANAGEMENT","INFORMATION COMMUNICATION TECHNOLOGY"
"http://statistics.data.gov.uk/id/local-authority/43UM","WOKING BOROUGH COUNCIL","28/09/2022","05/10/2022","0000482559/001","VIRGIN MEDIA BUSINESS","00316500","40.00","HOUSING SERVICES - ESTATE MANAGEMENT","NETWORK CIRCUITS","G800","NETWORK CIRCUITS","HOUSING SERVICES","INFORMATION COMMUNICATION TECHNOLOGY"
"http://statistics.data.gov.uk/id/local-authority/43UM","WOKING BOROUGH COUNCIL","30/09/2022","05/10/2022","0000482568/001","BT BUSINESS DIRECT","01898800","127.56","INFORMATION TECHNOLOGY - HYBRID WORKING EQUIPMENT","ADDITIONAL EQUIPMENT","Q020","ADDITIONAL EQUIPMENT","INFORMATION TECHNOLOGY","INFORMATION COMMUNICATION TECHNOLOGY"
"http://statistics.data.gov.uk/id/local-authority/43UM","WOKING BOROUGH COUNCIL","30/09/2022","05/10/2022","0000482573/001","INSIGHT DIRECT (UK) LTD","01141200","818.60","INFORMATION TECHNOLOGY - I.T.S. ICT","PC & SERVER APPLICATION SOFT/W","G180","PC & SERVER APPLICATION SOFT/W","INFORMATION TECHNOLOGY","INFORMATION COMMUNICATION TECHNOLOGY"
"http://statistics.data.gov.uk/id/local-authority/43UM","WOKING BOROUGH COUNCIL","29/09/2022","05/10/2022","0000482673/001","ANDERSON STRATHERN LLP","40105500","3150.00","ASSET MANAGEMENT - WOLSEY PLACE","LEGAL FEES","H677","LEGAL FEES","ASSET MANAGEMENT","LEGAL SERVICES"
"http://statistics.data.gov.uk/id/local-authority/43UM","WOKING BOROUGH COUNCIL","29/09/2022","05/10/2022","0065000376/001","REYNOLDS PORTER CHAMBERLAIN","41054200","3500.00","ASSET MANAGEMENT - HIF WTC 4A GUILDFORD ROAD","LEGAL FEES","Q190","LEGAL FEES","ASSET MANAGEMENT","LEGAL SERVICES"
"http://statistics.data.gov.uk/id/local-authority/43UM","WOKING BOROUGH COUNCIL","22/08/2022","05/10/2022","0000482449/001","LUCY DUGGAN","40854200","80.00","INDEPENDENT LIVING SERVICES - SHEERWATER SOCIAL SUPPORT","OTHER CONSULTANTS","Q430","OTHER CONSULTANTS","INDEPENDENT LIVING SERVICES","ARTS & LEISURE SERVICES"
"http://statistics.data.gov.uk/id/local-authority/43UM","WOKING BOROUGH COUNCIL","26/09/2022","05/10/2022","0000482450/001","LUCY DUGGAN","40854200","60.00","INDEPENDENT LIVING SERVICES - SHEERWATER SOCIAL SUPPORT","OTHER CONSULTANTS","Q430","OTHER CONSULTANTS","INDEPENDENT LIVING SERVICES","ARTS & LEISURE SERVICES"
"http://statistics.data.gov.uk/id/local-authority/43UM","WOKING BOROUGH COUNCIL","28/09/2022","05/10/2022","0000482509/001","A L MARKETING","41013800","13701.00","CORPORATE STRATEGY - PUBLIC RELATIONS","PROMOTIONS & GRANTS","H467","PROMOTIONS & GRANTS","CORPORATE STRATEGY","ARTS & LEISURE SERVICES"
"http://statistics.data.gov.uk/id/local-authority/43UM","WOKING BOROUGH COUNCIL","03/10/2022","05/10/2022","0000482672/001","FIT & PROPER DESIGN LTD","40998100","5215.50","ASSET MANAGEMENT - PROPERTY SERVICES","CONSULTANTS","H670","CONSULTANTS","ASSET MANAGEMENT","ARTS & LEISURE SERVICES"
"http://statistics.data.gov.uk/id/local-authority/43UM","WOKING BOROUGH COUNCIL","11/09/2022","05/10/2022","0000481901/001","WHISTL UK LIMITED","00367900","116.71","CORPORATE STRATEGY - POSTAGE","POSTAGE - STANDARD TARIFF","G700","POSTAGE - STANDARD TARIFF","CORPORATE STRATEGY","MAIL SERVICES"
"http://statistics.data.gov.uk/id/local-authority/43UM","WOKING BOROUGH COUNCIL","18/09/2022","05/10/2022","0000482105/001","WHISTL UK LIMITED","00367900","112.50","CORPORATE STRATEGY - POSTAGE","POSTAGE - STANDARD TARIFF","G700","POSTAGE - STANDARD TARIFF","CORPORATE STRATEGY","MAIL SERVICES"
"http://statistics.data.gov.uk/id/local-authority/43UM","WOKING BOROUGH COUNCIL","29/09/2022","05/10/2022","0000482530/001","MS ZOE FLINT","41024600","63.00","CORPORATE STRATEGY - WOMENS SUPPORT CENTRE SURREY","VOLUNTEER EXPENSES","H313","VOLUNTEER EXPENSES","CORPORATE STRATEGY","SOCIAL COMMUNITY CARE SUP & SERV (ADULT)"
"http://statistics.data.gov.uk/id/local-authority/43UM","WOKING BOROUGH COUNCIL","26/09/2022","05/10/2022","0000482426/001","BRITISH PARKING ASSOCIATION","00062200","26.00","NEIGHBOURHOOD SERVICES - CAR PARKS ADMIN&OPERATIONAL EX","MEMBERSHIP FEES","H116","MEMBERSHIP FEES","NEIGHBOURHOOD SERVICES","STREET & TRAFFIC MANAGEMENT"
"http://statistics.data.gov.uk/id/local-authority/43UM","WOKING BOROUGH COUNCIL","26/09/2022","05/10/2022","0000482426/002","BRITISH PARKING ASSOCIATION","00062200","198.00","NEIGHBOURHOOD SERVICES - CAR PARKS ADMIN&OPERATIONAL EX","MEMBERSHIP FEES","H116","MEMBERSHIP FEES","NEIGHBOURHOOD SERVICES","STREET & TRAFFIC MANAGEMENT"
"http://statistics.data.gov.uk/id/local-authority/43UM","WOKING BOROUGH COUNCIL","26/09/2022","05/10/2022","0000482426/003","BRITISH PARKING ASSOCIATION","00062200","74.00","NEIGHBOURHOOD SERVICES - CAR PARKS ADMIN&OPERATIONAL EX","MEMBERSHIP FEES","H116","MEMBERSHIP FEES","NEIGHBOURHOOD SERVICES","STREET & TRAFFIC MANAGEMENT"
"http://statistics.data.gov.uk/id/local-authority/43UM","WOKING BOROUGH COUNCIL","26/09/2022","05/10/2022","0000482426/004","BRITISH PARKING ASSOCIATION","00062200","708.00","NEIGHBOURHOOD SERVICES - CAR PARKS ADMIN&OPERATIONAL EX","MEMBERSHIP FEES","H116","MEMBERSHIP FEES","NEIGHBOURHOOD SERVICES","STREET & TRAFFIC MANAGEMENT"
"http://statistics.data.gov.uk/id/local-authority/43UM","WOKING BOROUGH COUNCIL","30/09/2022","05/10/2022","0000482563/001","WPS UNITED KINGDOM LTD","40942300","1525.00","ASSET MANAGEMENT - CAR PARK MANAGEMENT SYSTEM","PURCHASE OF EQUIPMENT","Q510","PURCHASE OF EQUIPMENT","ASSET MANAGEMENT","STREET & TRAFFIC MANAGEMENT"
"http://statistics.data.gov.uk/id/local-authority/43UM","WOKING BOROUGH COUNCIL","04/05/2022","05/10/2022","0000477458/001","CASTLE WATER LIMITED","40650200","218.40","NEIGHBOURHOOD SERVICES - MUSLIM BURIAL GRND PEACE GARDE","DRAIN/WATER SERVICES","D715","DRAIN/WATER SERVICES","NEIGHBOURHOOD SERVICES","UTILITIES"
"http://statistics.data.gov.uk/id/local-authority/43UM","WOKING BOROUGH COUNCIL","24/05/2022","05/10/2022","0000478131/001","CASTLE WATER LIMITED","40650200","1078.21","ASSET MANAGEMENT - CIVIC OFFICES","DRAIN/WATER SERVICES","D715","DRAIN/WATER SERVICES","ASSET MANAGEMENT","UTILITIES"
"http://statistics.data.gov.uk/id/local-authority/43UM","WOKING BOROUGH COUNCIL","15/07/2022","05/10/2022","0000480828/001","GAZPROM MARKETING & TRADING RETAIL LTD","40670600","299.92","HOUSING SERVICES - ENERGY","GAS","D420","GAS","HOUSING SERVICES","UTILITIES"
"http://statistics.data.gov.uk/id/local-authority/43UM","WOKING BOROUGH COUNCIL","15/07/2022","05/10/2022","0000480828/002","GAZPROM MARKETING & TRADING RETAIL LTD","40670600","147.10","INDEPENDENT LIVING SERVICES - ALPHA RD COMMUNITY HALL","GAS","D420","GAS","INDEPENDENT LIVING SERVICES","UTILITIES"
"http://statistics.data.gov.uk/id/local-authority/43UM","WOKING BOROUGH COUNCIL","15/07/2022","05/10/2022","0000480828/003","GAZPROM MARKETING & TRADING RETAIL LTD","40670600","757.24","HOUSING SERVICES - ENERGY","GAS","D420","GAS","HOUSING SERVICES","UTILITIES"
"http://statistics.data.gov.uk/id/local-authority/43UM","WOKING BOROUGH COUNCIL","15/07/2022","05/10/2022","0000480828/004","GAZPROM MARKETING & TRADING RETAIL LTD","40670600","408.21","BUILDING SERVICES - L.M.C. - HOE VALLEY SCHOOL","GAS","D420","GAS","BUILDING SERVICES","UTILITIES"
"http://statistics.data.gov.uk/id/local-authority/43UM","WOKING BOROUGH COUNCIL","15/07/2022","05/10/2022","0000480828/005","GAZPROM MARKETING & TRADING RETAIL LTD","40670600","-3697.63","LEISURE SERVICES - SHEERWATER LEISURE CENTRE","UTILITIES","Q506","UTILITIES","LEISURE SERVICES","UTILITIES"
"http://statistics.data.gov.uk/id/local-authority/43UM","WOKING BOROUGH COUNCIL","15/07/2022","05/10/2022","0000480828/006","GAZPROM MARKETING & TRADING RETAIL LTD","40670600","-3496.75","LEISURE SERVICES - SHEERWATER LEISURE CENTRE","UTILITIES","Q506","UTILITIES","LEISURE SERVICES","UTILITIES"
"http://statistics.data.gov.uk/id/local-authority/43UM","WOKING BOROUGH COUNCIL","15/07/2022","05/10/2022","0000480828/007","GAZPROM MARKETING & TRADING RETAIL LTD","40670600","-3023.72","LEISURE SERVICES - SHEERWATER LEISURE CENTRE","UTILITIES","Q506","UTILITIES","LEISURE SERVICES","UTILITIES"
"http://statistics.data.gov.uk/id/local-authority/43UM","WOKING BOROUGH COUNCIL","15/07/2022","05/10/2022","0000480828/008","GAZPROM MARKETING & TRADING RETAIL LTD","40670600","-3314.50","LEISURE SERVICES - SHEERWATER LEISURE CENTRE","UTILITIES","Q506","UTILITIES","LEISURE SERVICES","UTILITIES"
"http://statistics.data.gov.uk/id/local-authority/43UM","WOKING BOROUGH COUNCIL","15/07/2022","05/10/2022","0000480828/009","GAZPROM MARKETING & TRADING RETAIL LTD","40670600","10235.50","LEISURE SERVICES - SHEERWATER LEISURE CENTRE","UTILITIES","Q506","UTILITIES","LEISURE SERVICES","UTILITIES"
"http://statistics.data.gov.uk/id/local-authority/43UM","WOKING BOROUGH COUNCIL","15/07/2022","05/10/2022","0000480828/010","GAZPROM MARKETING & TRADING RETAIL LTD","40670600","-4746.50","LEISURE SERVICES - SHEERWATER LEISURE CENTRE","UTILITIES","Q506","UTILITIES","LEISURE SERVICES","UTILITIES"
"http://statistics.data.gov.uk/id/local-authority/43UM","WOKING BOROUGH COUNCIL","15/07/2022","05/10/2022","0000480828/011","GAZPROM MARKETING & TRADING RETAIL LTD","40670600","-3303.72","LEISURE SERVICES - SHEERWATER LEISURE CENTRE","UTILITIES","Q506","UTILITIES","LEISURE SERVICES","UTILITIES"
"http://statistics.data.gov.uk/id/local-authority/43UM","WOKING BOROUGH COUNCIL","15/07/2022","05/10/2022","0000480828/012","GAZPROM MARKETING & TRADING RETAIL LTD","40670600","-1522.58","LEISURE SERVICES - SHEERWATER LEISURE CENTRE","UTILITIES","Q506","UTILITIES","LEISURE SERVICES","UTILITIES"
"http://statistics.data.gov.uk/id/local-authority/43UM","WOKING BOROUGH COUNCIL","15/07/2022","05/10/2022","0000480828/013","GAZPROM MARKETING & TRADING RETAIL LTD","40670600","-2102.67","LEISURE SERVICES - SHEERWATER LEISURE CENTRE","UTILITIES","Q506","UTILITIES","LEISURE SERVICES","UTILITIES"
"http://statistics.data.gov.uk/id/local-authority/43UM","WOKING BOROUGH COUNCIL","15/07/2022","05/10/2022","0000480828/014","GAZPROM MARKETING & TRADING RETAIL LTD","40670600","-2624.85","LEISURE SERVICES - SHEERWATER LEISURE CENTRE","UTILITIES","Q506","UTILITIES","LEISURE SERVICES","UTILITIES"
"http://statistics.data.gov.uk/id/local-authority/43UM","WOKING BOROUGH COUNCIL","15/07/2022","05/10/2022","0000480828/015","GAZPROM MARKETING & TRADING RETAIL LTD","40670600","-1453.92","LEISURE SERVICES - SHEERWATER LEISURE CENTRE","UTILITIES","Q506","UTILITIES","LEISURE SERVICES","UTILITIES"
"http://statistics.data.gov.uk/id/local-authority/43UM","WOKING BOROUGH COUNCIL","15/07/2022","05/10/2022","0000480828/016","GAZPROM MARKETING & TRADING RETAIL LTD","40670600","-2386.60","LEISURE SERVICES - SHEERWATER LEISURE CENTRE","UTILITIES","Q506","UTILITIES","LEISURE SERVICES","UTILITIES"
"http://statistics.data.gov.uk/id/local-authority/43UM","WOKING BOROUGH COUNCIL","15/07/2022","05/10/2022","0000480828/017","GAZPROM MARKETING & TRADING RETAIL LTD","40670600","-1580.28","LEISURE SERVICES - SHEERWATER LEISURE CENTRE","UTILITIES","Q506","UTILITIES","LEISURE SERVICES","UTILITIES"
"http://statistics.data.gov.uk/id/local-authority/43UM","WOKING BOROUGH COUNCIL","15/07/2022","05/10/2022","0000480828/018","GAZPROM MARKETING & TRADING RETAIL LTD","40670600","-1433.01","LEISURE SERVICES - SHEERWATER LEISURE CENTRE","UTILITIES","Q506","UTILITIES","LEISURE SERVICES","UTILITIES"
"http://statistics.data.gov.uk/id/local-authority/43UM","WOKING BOROUGH COUNCIL","15/07/2022","05/10/2022","0000480828/019","GAZPROM MARKETING & TRADING RETAIL LTD","40670600","408.53","ASSET MANAGEMENT - UNIT 15A MON WAY EAST","GAS","D420","GAS","ASSET MANAGEMENT","UTILITIES"
"http://statistics.data.gov.uk/id/local-authority/43UM","WOKING BOROUGH COUNCIL","15/07/2022","05/10/2022","0000480828/020","GAZPROM MARKETING & TRADING RETAIL LTD","40670600","365.34","HOUSING SERVICES - WATERMAN HOUSE TEMP ACC.","GAS","D420","GAS","HOUSING SERVICES","UTILITIES"
"http://statistics.data.gov.uk/id/local-authority/43UM","WOKING BOROUGH COUNCIL","15/07/2022","05/10/2022","0000480828/021","GAZPROM MARKETING & TRADING RETAIL LTD","40670600","45.47","HOUSING SERVICES - ENERGY","CLIMATE CHANGE LEVY","D430","CLIMATE CHANGE LEVY","HOUSING SERVICES","UTILITIES"
"http://statistics.data.gov.uk/id/local-authority/43UM","WOKING BOROUGH COUNCIL","15/07/2022","05/10/2022","0000480828/022","GAZPROM MARKETING & TRADING RETAIL LTD","40670600","25.06","INDEPENDENT LIVING SERVICES - ALPHA RD COMMUNITY HALL","CLIMATE CHANGE LEVY","D430","CLIMATE CHANGE LEVY","INDEPENDENT LIVING SERVICES","UTILITIES"
"http://statistics.data.gov.uk/id/local-authority/43UM","WOKING BOROUGH COUNCIL","15/07/2022","05/10/2022","0000480828/023","GAZPROM MARKETING & TRADING RETAIL LTD","40670600","142.31","HOUSING SERVICES - ENERGY","CLIMATE CHANGE LEVY","D430","CLIMATE CHANGE LEVY","HOUSING SERVICES","UTILITIES"
"http://statistics.data.gov.uk/id/local-authority/43UM","WOKING BOROUGH COUNCIL","15/07/2022","05/10/2022","0000480828/024","GAZPROM MARKETING & TRADING RETAIL LTD","40670600","79.19","BUILDING SERVICES - L.M.C. - HOE VALLEY SCHOOL","CLIMATE CHANGE LEVY","D430","CLIMATE CHANGE LEVY","BUILDING SERVICES","UTILITIES"
"http://statistics.data.gov.uk/id/local-authority/43UM","WOKING BOROUGH COUNCIL","15/07/2022","05/10/2022","0000480828/025","GAZPROM MARKETING & TRADING RETAIL LTD","40670600","-883.18","LEISURE SERVICES - SHEERWATER LEISURE CENTRE","UTILITIES","Q506","UTILITIES","LEISURE SERVICES","UTILITIES"
"http://statistics.data.gov.uk/id/local-authority/43UM","WOKING BOROUGH COUNCIL","15/07/2022","05/10/2022","0000480828/026","GAZPROM MARKETING & TRADING RETAIL LTD","40670600","-826.37","LEISURE SERVICES - SHEERWATER LEISURE CENTRE","UTILITIES","Q506","UTILITIES","LEISURE SERVICES","UTILITIES"
"http://statistics.data.gov.uk/id/local-authority/43UM","WOKING BOROUGH COUNCIL","15/07/2022","05/10/2022","0000480828/027","GAZPROM MARKETING & TRADING RETAIL LTD","40670600","-697.83","LEISURE SERVICES - SHEERWATER LEISURE CENTRE","UTILITIES","Q506","UTILITIES","LEISURE SERVICES","UTILITIES"
"http://statistics.data.gov.uk/id/local-authority/43UM","WOKING BOROUGH COUNCIL","15/07/2022","05/10/2022","0000480828/028","GAZPROM MARKETING & TRADING RETAIL LTD","40670600","-790.56","LEISURE SERVICES - SHEERWATER LEISURE CENTRE","UTILITIES","Q506","UTILITIES","LEISURE SERVICES","UTILITIES"
"http://statistics.data.gov.uk/id/local-authority/43UM","WOKING BOROUGH COUNCIL","15/07/2022","05/10/2022","0000480828/029","GAZPROM MARKETING & TRADING RETAIL LTD","40670600","558.55","LEISURE SERVICES - SHEERWATER LEISURE CENTRE","UTILITIES","Q506","UTILITIES","LEISURE SERVICES","UTILITIES"
"http://statistics.data.gov.uk/id/local-authority/43UM","WOKING BOROUGH COUNCIL","15/07/2022","05/10/2022","0000480828/030","GAZPROM MARKETING & TRADING RETAIL LTD","40670600","-1248.94","LEISURE SERVICES - SHEERWATER LEISURE CENTRE","UTILITIES","Q506","UTILITIES","LEISURE SERVICES","UTILITIES"
"http://statistics.data.gov.uk/id/local-authority/43UM","WOKING BOROUGH COUNCIL","15/07/2022","05/10/2022","0000480828/031","GAZPROM MARKETING & TRADING RETAIL LTD","40670600","-771.77","LEISURE SERVICES - SHEERWATER LEISURE CENTRE","UTILITIES","Q506","UTILITIES","LEISURE SERVICES","UTILITIES"
"http://statistics.data.gov.uk/id/local-authority/43UM","WOKING BOROUGH COUNCIL","15/07/2022","05/10/2022","0000480828/032","GAZPROM MARKETING & TRADING RETAIL LTD","40670600","-273.26","LEISURE SERVICES - SHEERWATER LEISURE CENTRE","UTILITIES","Q506","UTILITIES","LEISURE SERVICES","UTILITIES"
"http://statistics.data.gov.uk/id/local-authority/43UM","WOKING BOROUGH COUNCIL","15/07/2022","05/10/2022","0000480828/033","GAZPROM MARKETING & TRADING RETAIL LTD","40670600","-432.07","LEISURE SERVICES - SHEERWATER LEISURE CENTRE","UTILITIES","Q506","UTILITIES","LEISURE SERVICES","UTILITIES"
"http://statistics.data.gov.uk/id/local-authority/43UM","WOKING BOROUGH COUNCIL","15/07/2022","05/10/2022","0000480828/034","GAZPROM MARKETING & TRADING RETAIL LTD","40670600","-585.01","LEISURE SERVICES - SHEERWATER LEISURE CENTRE","UTILITIES","Q506","UTILITIES","LEISURE SERVICES","UTILITIES"
"http://statistics.data.gov.uk/id/local-authority/43UM","WOKING BOROUGH COUNCIL","15/07/2022","05/10/2022","0000480828/035","GAZPROM MARKETING & TRADING RETAIL LTD","40670600","-248.59","LEISURE SERVICES - SHEERWATER LEISURE CENTRE","UTILITIES","Q506","UTILITIES","LEISURE SERVICES","UTILITIES"
"http://statistics.data.gov.uk/id/local-authority/43UM","WOKING BOROUGH COUNCIL","15/07/2022","05/10/2022","0000480828/036","GAZPROM MARKETING & TRADING RETAIL LTD","40670600","-512.38","LEISURE SERVICES - SHEERWATER LEISURE CENTRE","UTILITIES","Q506","UTILITIES","LEISURE SERVICES","UTILITIES"
"http://statistics.data.gov.uk/id/local-authority/43UM","WOKING BOROUGH COUNCIL","15/07/2022","05/10/2022","0000480828/037","GAZPROM MARKETING & TRADING RETAIL LTD","40670600","-289.58","LEISURE SERVICES - SHEERWATER LEISURE CENTRE","UTILITIES","Q506","UTILITIES","LEISURE SERVICES","UTILITIES"
"http://statistics.data.gov.uk/id/local-authority/43UM","WOKING BOROUGH COUNCIL","15/07/2022","05/10/2022","0000480828/038","GAZPROM MARKETING & TRADING RETAIL LTD","40670600","-242.68","LEISURE SERVICES - SHEERWATER LEISURE CENTRE","UTILITIES","Q506","UTILITIES","LEISURE SERVICES","UTILITIES"
"http://statistics.data.gov.uk/id/local-authority/43UM","WOKING BOROUGH COUNCIL","15/07/2022","05/10/2022","0000480828/039","GAZPROM MARKETING & TRADING RETAIL LTD","40670600","77.54","ASSET MANAGEMENT - UNIT 15A MON WAY EAST","CLIMATE CHANGE LEVY","D430","CLIMATE CHANGE LEVY","ASSET MANAGEMENT","UTILITIES"
"http://statistics.data.gov.uk/id/local-authority/43UM","WOKING BOROUGH COUNCIL","15/07/2022","05/10/2022","0000480828/040","GAZPROM MARKETING & TRADING RETAIL LTD","40670600","28.46","HOUSING SERVICES - WATERMAN HOUSE TEMP ACC.","CLIMATE CHANGE LEVY","D430","CLIMATE CHANGE LEVY","HOUSING SERVICES","UTILITIES"
"http://statistics.data.gov.uk/id/local-authority/43UM","WOKING BOROUGH COUNCIL","15/07/2022","05/10/2022","0000480905/001","GAZPROM MARKETING & TRADING RETAIL LTD","40670600","227.91","HOUSING SERVICES - ENERGY","GAS","D420","GAS","HOUSING SERVICES","UTILITIES"
"http://statistics.data.gov.uk/id/local-authority/43UM","WOKING BOROUGH COUNCIL","15/07/2022","05/10/2022","0000480905/002","GAZPROM MARKETING & TRADING RETAIL LTD","40670600","234.86","HOUSING SERVICES - ENERGY","GAS","D420","GAS","HOUSING SERVICES","UTILITIES"
"http://statistics.data.gov.uk/id/local-authority/43UM","WOKING BOROUGH COUNCIL","15/07/2022","05/10/2022","0000480905/003","GAZPROM MARKETING & TRADING RETAIL LTD","40670600","6.54","HOUSING SERVICES - ENERGY","GAS","D420","GAS","HOUSING SERVICES","UTILITIES"
"http://statistics.data.gov.uk/id/local-authority/43UM","WOKING BOROUGH COUNCIL","15/07/2022","05/10/2022","0000480905/004","GAZPROM MARKETING & TRADING RETAIL LTD","40670600","37.67","HOUSING SERVICES - ENERGY","GAS","D420","GAS","HOUSING SERVICES","UTILITIES"
"http://statistics.data.gov.uk/id/local-authority/43UM","WOKING BOROUGH COUNCIL","15/07/2022","05/10/2022","0000480905/005","GAZPROM MARKETING & TRADING RETAIL LTD","40670600","7.86","HOUSING SERVICES - ENERGY","GAS","D420","GAS","HOUSING SERVICES","UTILITIES"
"http://statistics.data.gov.uk/id/local-authority/43UM","WOKING BOROUGH COUNCIL","15/07/2022","05/10/2022","0000480905/006","GAZPROM MARKETING & TRADING RETAIL LTD","40670600","150.20","HOUSING SERVICES - ENERGY","GAS","D420","GAS","HOUSING SERVICES","UTILITIES"
"http://statistics.data.gov.uk/id/local-authority/43UM","WOKING BOROUGH COUNCIL","15/07/2022","05/10/2022","0000480905/007","GAZPROM MARKETING & TRADING RETAIL LTD","40670600","225.38","HOUSING SERVICES - ENERGY","GAS","D420","GAS","HOUSING SERVICES","UTILITIES"
"http://statistics.data.gov.uk/id/local-authority/43UM","WOKING BOROUGH COUNCIL","15/07/2022","05/10/2022","0000480905/008","GAZPROM MARKETING & TRADING RETAIL LTD","40670600","273.31","HOUSING SERVICES - ENERGY","GAS","D420","GAS","HOUSING SERVICES","UTILITIES"
"http://statistics.data.gov.uk/id/local-authority/43UM","WOKING BOROUGH COUNCIL","15/07/2022","05/10/2022","0000480905/009","GAZPROM MARKETING & TRADING RETAIL LTD","40670600","198.69","HOUSING SERVICES - ENERGY","GAS","D420","GAS","HOUSING SERVICES","UTILITIES"
"http://statistics.data.gov.uk/id/local-authority/43UM","WOKING BOROUGH COUNCIL","15/07/2022","05/10/2022","0000480905/010","GAZPROM MARKETING & TRADING RETAIL LTD","40670600","7.86","HOUSING SERVICES - ENERGY","GAS","D420","GAS","HOUSING SERVICES","UTILITIES"
"http://statistics.data.gov.uk/id/local-authority/43UM","WOKING BOROUGH COUNCIL","15/07/2022","05/10/2022","0000480905/011","GAZPROM MARKETING & TRADING RETAIL LTD","40670600","283.23","HOUSING SERVICES - ENERGY","GAS","D420","GAS","HOUSING SERVICES","UTILITIES"
"http://statistics.data.gov.uk/id/local-authority/43UM","WOKING BOROUGH COUNCIL","15/07/2022","05/10/2022","0000480905/012","GAZPROM MARKETING & TRADING RETAIL LTD","40670600","105.65","HOUSING SERVICES - ENERGY","GAS","D420","GAS","HOUSING SERVICES","UTILITIES"
"http://statistics.data.gov.uk/id/local-authority/43UM","WOKING BOROUGH COUNCIL","15/07/2022","05/10/2022","0000480905/013","GAZPROM MARKETING & TRADING RETAIL LTD","40670600","18.14","HOUSING SERVICES - ENERGY","GAS","D420","GAS","HOUSING SERVICES","UTILITIES"
"http://statistics.data.gov.uk/id/local-authority/43UM","WOKING BOROUGH COUNCIL","15/07/2022","05/10/2022","0000480905/014","GAZPROM MARKETING & TRADING RETAIL LTD","40670600","495.68","HOUSING SERVICES - ENERGY","GAS","D420","GAS","HOUSING SERVICES","UTILITIES"
"http://statistics.data.gov.uk/id/local-authority/43UM","WOKING BOROUGH COUNCIL","15/07/2022","05/10/2022","0000480905/015","GAZPROM MARKETING & TRADING RETAIL LTD","40670600","67.86","HOUSING SERVICES - TEMPORARY ACCOMMODATION","GAS","D420","GAS","HOUSING SERVICES","UTILITIES"
"http://statistics.data.gov.uk/id/local-authority/43UM","WOKING BOROUGH COUNCIL","15/07/2022","05/10/2022","0000480905/016","GAZPROM MARKETING & TRADING RETAIL LTD","40670600","124.11","HOUSING SERVICES - TEMPORARY ACCOMMODATION","GAS","D420","GAS","HOUSING SERVICES","UTILITIES"
"http://statistics.data.gov.uk/id/local-authority/43UM","WOKING BOROUGH COUNCIL","15/07/2022","05/10/2022","0000480905/017","GAZPROM MARKETING & TRADING RETAIL LTD","40670600","152.63","HOUSING SERVICES - ENERGY","GAS","D420","GAS","HOUSING SERVICES","UTILITIES"
"http://statistics.data.gov.uk/id/local-authority/43UM","WOKING BOROUGH COUNCIL","15/07/2022","05/10/2022","0000480905/018","GAZPROM MARKETING & TRADING RETAIL LTD","40670600","113.36","HOUSING SERVICES - TEMPORARY ACCOMMODATION","GAS","D420","GAS","HOUSING SERVICES","UTILITIES"
"http://statistics.data.gov.uk/id/local-authority/43UM","WOKING BOROUGH COUNCIL","15/07/2022","05/10/2022","0000480905/019","GAZPROM MARKETING & TRADING RETAIL LTD","40670600","74.29","HOUSING SERVICES - TEMPORARY ACCOMMODATION","GAS","D420","GAS","HOUSING SERVICES","UTILITIES"
"http://statistics.data.gov.uk/id/local-authority/43UM","WOKING BOROUGH COUNCIL","15/07/2022","05/10/2022","0000480905/020","GAZPROM MARKETING & TRADING RETAIL LTD","40670600","92.63","HOUSING SERVICES - TEMPORARY ACCOMMODATION","GAS","D420","GAS","HOUSING SERVICES","UTILITIES"
"http://statistics.data.gov.uk/id/local-authority/43UM","WOKING BOROUGH COUNCIL","15/07/2022","05/10/2022","0000480905/021","GAZPROM MARKETING & TRADING RETAIL LTD","40670600","427.30","HOUSING SERVICES - ENERGY","GAS","D420","GAS","HOUSING SERVICES","UTILITIES"
"http://statistics.data.gov.uk/id/local-authority/43UM","WOKING BOROUGH COUNCIL","15/07/2022","05/10/2022","0000480905/022","GAZPROM MARKETING & TRADING RETAIL LTD","40670600","403.27","HOUSING SERVICES - ENERGY","GAS","D420","GAS","HOUSING SERVICES","UTILITIES"
"http://statistics.data.gov.uk/id/local-authority/43UM","WOKING BOROUGH COUNCIL","15/07/2022","05/10/2022","0000480905/023","GAZPROM MARKETING & TRADING RETAIL LTD","40670600","124.43","ASSET MANAGEMENT - PROVINCIAL HOUSE","GAS","D420","GAS","ASSET MANAGEMENT","UTILITIES"
"http://statistics.data.gov.uk/id/local-authority/43UM","WOKING BOROUGH COUNCIL","15/07/2022","05/10/2022","0000480905/024","GAZPROM MARKETING & TRADING RETAIL LTD","40670600","140.75","HOUSING SERVICES - ENERGY","GAS","D420","GAS","HOUSING SERVICES","UTILITIES"
"http://statistics.data.gov.uk/id/local-authority/43UM","WOKING BOROUGH COUNCIL","15/07/2022","05/10/2022","0000480905/025","GAZPROM MARKETING & TRADING RETAIL LTD","40670600","131.23","HOUSING SERVICES - ENERGY","GAS","D420","GAS","HOUSING SERVICES","UTILITIES"
"http://statistics.data.gov.uk/id/local-authority/43UM","WOKING BOROUGH COUNCIL","15/07/2022","05/10/2022","0000480905/026","GAZPROM MARKETING & TRADING RETAIL LTD","40670600","127.78","HOUSING SERVICES - ENERGY","GAS","D420","GAS","HOUSING SERVICES","UTILITIES"
"http://statistics.data.gov.uk/id/local-authority/43UM","WOKING BOROUGH COUNCIL","15/07/2022","05/10/2022","0000480905/027","GAZPROM MARKETING & TRADING RETAIL LTD","40670600","130.00","HOUSING SERVICES - ENERGY","GAS","D420","GAS","HOUSING SERVICES","UTILITIES"
"http://statistics.data.gov.uk/id/local-authority/43UM","WOKING BOROUGH COUNCIL","15/07/2022","05/10/2022","0000480905/028","GAZPROM MARKETING & TRADING RETAIL LTD","40670600","127.18","HOUSING SERVICES - ENERGY","GAS","D420","GAS","HOUSING SERVICES","UTILITIES"
"http://statistics.data.gov.uk/id/local-authority/43UM","WOKING BOROUGH COUNCIL","15/07/2022","05/10/2022","0000480905/029","GAZPROM MARKETING & TRADING RETAIL LTD","40670600","520.51","HOUSING SERVICES - ENERGY","GAS","D420","GAS","HOUSING SERVICES","UTILITIES"
"http://statistics.data.gov.uk/id/local-authority/43UM","WOKING BOROUGH COUNCIL","15/07/2022","05/10/2022","0000480905/030","GAZPROM MARKETING & TRADING RETAIL LTD","40670600","355.58","HOUSING SERVICES - ENERGY","GAS","D420","GAS","HOUSING SERVICES","UTILITIES"
"http://statistics.data.gov.uk/id/local-authority/43UM","WOKING BOROUGH COUNCIL","15/07/2022","05/10/2022","0000480905/031","GAZPROM MARKETING & TRADING RETAIL LTD","40670600","508.91","HOUSING SERVICES - ENERGY","GAS","D420","GAS","HOUSING SERVICES","UTILITIES"
"http://statistics.data.gov.uk/id/local-authority/43UM","WOKING BOROUGH COUNCIL","15/07/2022","05/10/2022","0000480905/032","GAZPROM MARKETING & TRADING RETAIL LTD","40670600","145.40","HOUSING SERVICES - ENERGY","GAS","D420","GAS","HOUSING SERVICES","UTILITIES"
"http://statistics.data.gov.uk/id/local-authority/43UM","WOKING BOROUGH COUNCIL","15/07/2022","05/10/2022","0000480905/033","GAZPROM MARKETING & TRADING RETAIL LTD","40670600","412.05","HOUSING SERVICES - ENERGY","GAS","D420","GAS","HOUSING SERVICES","UTILITIES"
"http://statistics.data.gov.uk/id/local-authority/43UM","WOKING BOROUGH COUNCIL","15/07/2022","05/10/2022","0000480905/034","GAZPROM MARKETING & TRADING RETAIL LTD","40670600","58.72","HOUSING SERVICES - DISABLED FACILITIES GRANTS","GAS","D420","GAS","HOUSING SERVICES","UTILITIES"
"http://statistics.data.gov.uk/id/local-authority/43UM","WOKING BOROUGH COUNCIL","15/07/2022","05/10/2022","0000480905/035","GAZPROM MARKETING & TRADING RETAIL LTD","40670600","492.96","HOUSING SERVICES - ENERGY","GAS","D420","GAS","HOUSING SERVICES","UTILITIES"
"http://statistics.data.gov.uk/id/local-authority/43UM","WOKING BOROUGH COUNCIL","15/07/2022","05/10/2022","0000480905/036","GAZPROM MARKETING & TRADING RETAIL LTD","40670600","242.26","HOUSING SERVICES - ENERGY","GAS","D420","GAS","HOUSING SERVICES","UTILITIES"
"http://statistics.data.gov.uk/id/local-authority/43UM","WOKING BOROUGH COUNCIL","15/07/2022","05/10/2022","0000480905/037","GAZPROM MARKETING & TRADING RETAIL LTD","40670600","85.77","HOUSING SERVICES - ENERGY","GAS","D420","GAS","HOUSING SERVICES","UTILITIES"
"http://statistics.data.gov.uk/id/local-authority/43UM","WOKING BOROUGH COUNCIL","15/07/2022","05/10/2022","0000480905/038","GAZPROM MARKETING & TRADING RETAIL LTD","40670600","329.61","HOUSING SERVICES - ENERGY","GAS","D420","GAS","HOUSING SERVICES","UTILITIES"
"http://statistics.data.gov.uk/id/local-authority/43UM","WOKING BOROUGH COUNCIL","15/07/2022","05/10/2022","0000480905/039","GAZPROM MARKETING & TRADING RETAIL LTD","40670600","-289.83","HOUSING SERVICES - ENERGY","GAS","D420","GAS","HOUSING SERVICES","UTILITIES"
"http://statistics.data.gov.uk/id/local-authority/43UM","WOKING BOROUGH COUNCIL","15/07/2022","05/10/2022","0000480905/040","GAZPROM MARKETING & TRADING RETAIL LTD","40670600","-356.60","HOUSING SERVICES - ENERGY","GAS","D420","GAS","HOUSING SERVICES","UTILITIES"
"http://statistics.data.gov.uk/id/local-authority/43UM","WOKING BOROUGH COUNCIL","15/07/2022","05/10/2022","0000480905/041","GAZPROM MARKETING & TRADING RETAIL LTD","40670600","192.84","HOUSING SERVICES - ENERGY","GAS","D420","GAS","HOUSING SERVICES","UTILITIES"
"http://statistics.data.gov.uk/id/local-authority/43UM","WOKING BOROUGH COUNCIL","15/07/2022","05/10/2022","0000480905/042","GAZPROM MARKETING & TRADING RETAIL LTD","40670600","130.69","HOUSING SERVICES - ENERGY","GAS","D420","GAS","HOUSING SERVICES","UTILITIES"
"http://statistics.data.gov.uk/id/local-authority/43UM","WOKING BOROUGH COUNCIL","15/07/2022","05/10/2022","0000480905/043","GAZPROM MARKETING & TRADING RETAIL LTD","40670600","128.94","HOUSING SERVICES - ENERGY","GAS","D420","GAS","HOUSING SERVICES","UTILITIES"
"http://statistics.data.gov.uk/id/local-authority/43UM","WOKING BOROUGH COUNCIL","15/07/2022","05/10/2022","0000480905/044","GAZPROM MARKETING & TRADING RETAIL LTD","40670600","77.46","HOUSING SERVICES - ENERGY","GAS","D420","GAS","HOUSING SERVICES","UTILITIES"
"http://statistics.data.gov.uk/id/local-authority/43UM","WOKING BOROUGH COUNCIL","15/07/2022","05/10/2022","0000480905/045","GAZPROM MARKETING & TRADING RETAIL LTD","40670600","72.61","INDEPENDENT LIVING SERVICES - MEALS SERVICE-MOORCROFT","GAS","D420","GAS","INDEPENDENT LIVING SERVICES","UTILITIES"
"http://statistics.data.gov.uk/id/local-authority/43UM","WOKING BOROUGH COUNCIL","15/07/2022","05/10/2022","0000480905/046","GAZPROM MARKETING & TRADING RETAIL LTD","40670600","809.57","HOUSING SERVICES - ENERGY","GAS","D420","GAS","HOUSING SERVICES","UTILITIES"
"http://statistics.data.gov.uk/id/local-authority/43UM","WOKING BOROUGH COUNCIL","15/07/2022","05/10/2022","0000480905/047","GAZPROM MARKETING & TRADING RETAIL LTD","40670600","161.08","HOUSING SERVICES - ENERGY","GAS","D420","GAS","HOUSING SERVICES","UTILITIES"
"http://statistics.data.gov.uk/id/local-authority/43UM","WOKING BOROUGH COUNCIL","15/07/2022","05/10/2022","0000480905/048","GAZPROM MARKETING & TRADING RETAIL LTD","40670600","20.49","HOUSING SERVICES - ENERGY","GAS","D420","GAS","HOUSING SERVICES","UTILITIES"
"http://statistics.data.gov.uk/id/local-authority/43UM","WOKING BOROUGH COUNCIL","15/07/2022","05/10/2022","0000480905/049","GAZPROM MARKETING & TRADING RETAIL LTD","40670600","213.64","HOUSING SERVICES - ENERGY","GAS","D420","GAS","HOUSING SERVICES","UTILITIES"
"http://statistics.data.gov.uk/id/local-authority/43UM","WOKING BOROUGH COUNCIL","15/07/2022","05/10/2022","0000480905/050","GAZPROM MARKETING & TRADING RETAIL LTD","40670600","376.87","HOUSING SERVICES - ENERGY","GAS","D420","GAS","HOUSING SERVICES","UTILITIES"
"http://statistics.data.gov.uk/id/local-authority/43UM","WOKING BOROUGH COUNCIL","15/07/2022","05/10/2022","0000480905/051","GAZPROM MARKETING & TRADING RETAIL LTD","40670600","4.93","HOUSING SERVICES - ENERGY","GAS","D420","GAS","HOUSING SERVICES","UTILITIES"
"http://statistics.data.gov.uk/id/local-authority/43UM","WOKING BOROUGH COUNCIL","15/07/2022","05/10/2022","0000480905/052","GAZPROM MARKETING & TRADING RETAIL LTD","40670600","348.25","HOUSING SERVICES - ENERGY","GAS","D420","GAS","HOUSING SERVICES","UTILITIES"
"http://statistics.data.gov.uk/id/local-authority/43UM","WOKING BOROUGH COUNCIL","15/07/2022","05/10/2022","0000480905/053","GAZPROM MARKETING & TRADING RETAIL LTD","40670600","42.97","HOUSING SERVICES - ENERGY","GAS","D420","GAS","HOUSING SERVICES","UTILITIES"
"http://statistics.data.gov.uk/id/local-authority/43UM","WOKING BOROUGH COUNCIL","15/07/2022","05/10/2022","0000480905/054","GAZPROM MARKETING & TRADING RETAIL LTD","40670600","403.13","HOUSING SERVICES - ENERGY","GAS","D420","GAS","HOUSING SERVICES","UTILITIES"
"http://statistics.data.gov.uk/id/local-authority/43UM","WOKING BOROUGH COUNCIL","15/07/2022","05/10/2022","0000480905/055","GAZPROM MARKETING & TRADING RETAIL LTD","40670600","268.69","HOUSING SERVICES - ENERGY","GAS","D420","GAS","HOUSING SERVICES","UTILITIES"
"http://statistics.data.gov.uk/id/local-authority/43UM","WOKING BOROUGH COUNCIL","15/07/2022","05/10/2022","0000480905/056","GAZPROM MARKETING & TRADING RETAIL LTD","40670600","133.61","HOUSING SERVICES - ENERGY","GAS","D420","GAS","HOUSING SERVICES","UTILITIES"
"http://statistics.data.gov.uk/id/local-authority/43UM","WOKING BOROUGH COUNCIL","15/07/2022","05/10/2022","0000480905/057","GAZPROM MARKETING & TRADING RETAIL LTD","40670600","520.92","HOUSING SERVICES - ENERGY","GAS","D420","GAS","HOUSING SERVICES","UTILITIES"
"http://statistics.data.gov.uk/id/local-authority/43UM","WOKING BOROUGH COUNCIL","15/07/2022","05/10/2022","0000480905/058","GAZPROM MARKETING & TRADING RETAIL LTD","40670600","252.18","HOUSING SERVICES - ENERGY","GAS","D420","GAS","HOUSING SERVICES","UTILITIES"
"http://statistics.data.gov.uk/id/local-authority/43UM","WOKING BOROUGH COUNCIL","15/07/2022","05/10/2022","0000480905/059","GAZPROM MARKETING & TRADING RETAIL LTD","40670600","128.82","HOUSING SERVICES - ENERGY","GAS","D420","GAS","HOUSING SERVICES","UTILITIES"
"http://statistics.data.gov.uk/id/local-authority/43UM","WOKING BOROUGH COUNCIL","15/07/2022","05/10/2022","0000480905/060","GAZPROM MARKETING & TRADING RETAIL LTD","40670600","208.53","HOUSING SERVICES - ENERGY","GAS","D420","GAS","HOUSING SERVICES","UTILITIES"
"http://statistics.data.gov.uk/id/local-authority/43UM","WOKING BOROUGH COUNCIL","15/07/2022","05/10/2022","0000480905/061","GAZPROM MARKETING & TRADING RETAIL LTD","40670600","404.08","HOUSING SERVICES - ENERGY","GAS","D420","GAS","HOUSING SERVICES","UTILITIES"
"http://statistics.data.gov.uk/id/local-authority/43UM","WOKING BOROUGH COUNCIL","15/07/2022","05/10/2022","0000480905/062","GAZPROM MARKETING & TRADING RETAIL LTD","40670600","456.14","HOUSING SERVICES - ENERGY","GAS","D420","GAS","HOUSING SERVICES","UTILITIES"
"http://statistics.data.gov.uk/id/local-authority/43UM","WOKING BOROUGH COUNCIL","15/07/2022","05/10/2022","0000480905/063","GAZPROM MARKETING & TRADING RETAIL LTD","40670600","73.45","HOUSING SERVICES - TEMPORARY ACCOMMODATION","GAS","D420","GAS","HOUSING SERVICES","UTILITIES"
"http://statistics.data.gov.uk/id/local-authority/43UM","WOKING BOROUGH COUNCIL","15/07/2022","05/10/2022","0000480905/064","GAZPROM MARKETING & TRADING RETAIL LTD","40670600","31.83","INDEPENDENT LIVING SERVICES - MEALS SERVICE -THE VYNE","GAS","D420","GAS","INDEPENDENT LIVING SERVICES","UTILITIES"
"http://statistics.data.gov.uk/id/local-authority/43UM","WOKING BOROUGH COUNCIL","15/07/2022","05/10/2022","0000480905/065","GAZPROM MARKETING & TRADING RETAIL LTD","40670600","181.98","HOUSING SERVICES - ENERGY","GAS","D420","GAS","HOUSING SERVICES","UTILITIES"
"http://statistics.data.gov.uk/id/local-authority/43UM","WOKING BOROUGH COUNCIL","15/07/2022","05/10/2022","0000480905/066","GAZPROM MARKETING & TRADING RETAIL LTD","40670600","566.61","HOUSING SERVICES - ENERGY","GAS","D420","GAS","HOUSING SERVICES","UTILITIES"
"http://statistics.data.gov.uk/id/local-authority/43UM","WOKING BOROUGH COUNCIL","15/07/2022","05/10/2022","0000480905/067","GAZPROM MARKETING & TRADING RETAIL LTD","40670600","234.61","HOUSING SERVICES - ENERGY","GAS","D420","GAS","HOUSING SERVICES","UTILITIES"
"http://statistics.data.gov.uk/id/local-authority/43UM","WOKING BOROUGH COUNCIL","15/07/2022","05/10/2022","0000480905/068","GAZPROM MARKETING & TRADING RETAIL LTD","40670600","181.57","HOUSING SERVICES - ENERGY","GAS","D420","GAS","HOUSING SERVICES","UTILITIES"
"http://statistics.data.gov.uk/id/local-authority/43UM","WOKING BOROUGH COUNCIL","15/07/2022","05/10/2022","0000480905/069","GAZPROM MARKETING & TRADING RETAIL LTD","40670600","303.01","HOUSING SERVICES - ENERGY","GAS","D420","GAS","HOUSING SERVICES","UTILITIES"
"http://statistics.data.gov.uk/id/local-authority/43UM","WOKING BOROUGH COUNCIL","15/07/2022","05/10/2022","0000480905/070","GAZPROM MARKETING & TRADING RETAIL LTD","40670600","137.12","HOUSING SERVICES - ENERGY","GAS","D420","GAS","HOUSING SERVICES","UTILITIES"
"http://statistics.data.gov.uk/id/local-authority/43UM","WOKING BOROUGH COUNCIL","15/07/2022","05/10/2022","0000480905/071","GAZPROM MARKETING & TRADING RETAIL LTD","40670600","192.99","HOUSING SERVICES - ENERGY","GAS","D420","GAS","HOUSING SERVICES","UTILITIES"
"http://statistics.data.gov.uk/id/local-authority/43UM","WOKING BOROUGH COUNCIL","11/02/2022","05/10/2022","0000481370/001","POZITIVE ENERGY","40980200","207.10","ASSET MANAGEMENT - UNIT 16 MON WAY WEST","ELECTRICITY","D400","ELECTRICITY","ASSET MANAGEMENT","UTILITIES"
"http://statistics.data.gov.uk/id/local-authority/43UM","WOKING BOROUGH COUNCIL","15/08/2022","05/10/2022","0000481399/001","GAZPROM MARKETING & TRADING RETAIL LTD","40670600","296.15","HOUSING SERVICES - ENERGY","GAS","D420","GAS","HOUSING SERVICES","UTILITIES"
"http://statistics.data.gov.uk/id/local-authority/43UM","WOKING BOROUGH COUNCIL","15/08/2022","05/10/2022","0000481399/002","GAZPROM MARKETING & TRADING RETAIL LTD","40670600","42.21","HOUSING SERVICES - ENERGY","CLIMATE CHANGE LEVY","D430","CLIMATE CHANGE LEVY","HOUSING SERVICES","UTILITIES"
"http://statistics.data.gov.uk/id/local-authority/43UM","WOKING BOROUGH COUNCIL","15/08/2022","05/10/2022","0000481399/003","GAZPROM MARKETING & TRADING RETAIL LTD","40670600","220.04","HOUSING SERVICES - ENERGY","GAS","D420","GAS","HOUSING SERVICES","UTILITIES"
"http://statistics.data.gov.uk/id/local-authority/43UM","WOKING BOROUGH COUNCIL","15/08/2022","05/10/2022","0000481399/004","GAZPROM MARKETING & TRADING RETAIL LTD","40670600","142.21","INDEPENDENT LIVING SERVICES - ALPHA RD COMMUNITY HALL","GAS","D420","GAS","INDEPENDENT LIVING SERVICES","UTILITIES"
"http://statistics.data.gov.uk/id/local-authority/43UM","WOKING BOROUGH COUNCIL","15/08/2022","05/10/2022","0000481399/005","GAZPROM MARKETING & TRADING RETAIL LTD","40670600","411.22","HOUSING SERVICES - ENERGY","GAS","D420","GAS","HOUSING SERVICES","UTILITIES"
"http://statistics.data.gov.uk/id/local-authority/43UM","WOKING BOROUGH COUNCIL","15/08/2022","05/10/2022","0000481399/006","GAZPROM MARKETING & TRADING RETAIL LTD","40670600","6.55","HOUSING SERVICES - ENERGY","GAS","D420","GAS","HOUSING SERVICES","UTILITIES"
"http://statistics.data.gov.uk/id/local-authority/43UM","WOKING BOROUGH COUNCIL","15/08/2022","05/10/2022","0000481399/007","GAZPROM MARKETING & TRADING RETAIL LTD","40670600","39.82","HOUSING SERVICES - ENERGY","GAS","D420","GAS","HOUSING SERVICES","UTILITIES"
"http://statistics.data.gov.uk/id/local-authority/43UM","WOKING BOROUGH COUNCIL","15/08/2022","05/10/2022","0000481399/008","GAZPROM MARKETING & TRADING RETAIL LTD","40670600","8.13","HOUSING SERVICES - ENERGY","GAS","D420","GAS","HOUSING SERVICES","UTILITIES"
"http://statistics.data.gov.uk/id/local-authority/43UM","WOKING BOROUGH COUNCIL","15/08/2022","05/10/2022","0000481399/009","GAZPROM MARKETING & TRADING RETAIL LTD","40670600","136.75","HOUSING SERVICES - ENERGY","GAS","D420","GAS","HOUSING SERVICES","UTILITIES"
"http://statistics.data.gov.uk/id/local-authority/43UM","WOKING BOROUGH COUNCIL","15/08/2022","05/10/2022","0000481399/010","GAZPROM MARKETING & TRADING RETAIL LTD","40670600","211.60","HOUSING SERVICES - ENERGY","GAS","D420","GAS","HOUSING SERVICES","UTILITIES"
"http://statistics.data.gov.uk/id/local-authority/43UM","WOKING BOROUGH COUNCIL","15/08/2022","05/10/2022","0000481399/011","GAZPROM MARKETING & TRADING RETAIL LTD","40670600","234.08","HOUSING SERVICES - ENERGY","GAS","D420","GAS","HOUSING SERVICES","UTILITIES"
"http://statistics.data.gov.uk/id/local-authority/43UM","WOKING BOROUGH COUNCIL","15/08/2022","05/10/2022","0000481399/012","GAZPROM MARKETING & TRADING RETAIL LTD","40670600","205.31","HOUSING SERVICES - ENERGY","GAS","D420","GAS","HOUSING SERVICES","UTILITIES"
"http://statistics.data.gov.uk/id/local-authority/43UM","WOKING BOROUGH COUNCIL","15/08/2022","05/10/2022","0000481399/013","GAZPROM MARKETING & TRADING RETAIL LTD","40670600","8.13","HOUSING SERVICES - ENERGY","GAS","D420","GAS","HOUSING SERVICES","UTILITIES"
"http://statistics.data.gov.uk/id/local-authority/43UM","WOKING BOROUGH COUNCIL","15/08/2022","05/10/2022","0000481399/014","GAZPROM MARKETING & TRADING RETAIL LTD","40670600","277.21","HOUSING SERVICES - ENERGY","GAS","D420","GAS","HOUSING SERVICES","UTILITIES"
"http://statistics.data.gov.uk/id/local-authority/43UM","WOKING BOROUGH COUNCIL","15/08/2022","05/10/2022","0000481399/015","GAZPROM MARKETING & TRADING RETAIL LTD","40670600","102.79","HOUSING SERVICES - ENERGY","GAS","D420","GAS","HOUSING SERVICES","UTILITIES"
"http://statistics.data.gov.uk/id/local-authority/43UM","WOKING BOROUGH COUNCIL","15/08/2022","05/10/2022","0000481399/016","GAZPROM MARKETING & TRADING RETAIL LTD","40670600","18.74","HOUSING SERVICES - ENERGY","GAS","D420","GAS","HOUSING SERVICES","UTILITIES"
"http://statistics.data.gov.uk/id/local-authority/43UM","WOKING BOROUGH COUNCIL","15/08/2022","05/10/2022","0000481399/017","GAZPROM MARKETING & TRADING RETAIL LTD","40670600","383.22","HOUSING SERVICES - ENERGY","GAS","D420","GAS","HOUSING SERVICES","UTILITIES"
"http://statistics.data.gov.uk/id/local-authority/43UM","WOKING BOROUGH COUNCIL","15/08/2022","05/10/2022","0000481399/018","GAZPROM MARKETING & TRADING RETAIL LTD","40670600","61.50","HOUSING SERVICES - TEMPORARY ACCOMMODATION","GAS","D420","GAS","HOUSING SERVICES","UTILITIES"
"http://statistics.data.gov.uk/id/local-authority/43UM","WOKING BOROUGH COUNCIL","15/08/2022","05/10/2022","0000481399/019","GAZPROM MARKETING & TRADING RETAIL LTD","40670600","84.65","HOUSING SERVICES - TEMPORARY ACCOMMODATION","GAS","D420","GAS","HOUSING SERVICES","UTILITIES"
"http://statistics.data.gov.uk/id/local-authority/43UM","WOKING BOROUGH COUNCIL","15/08/2022","05/10/2022","0000481399/020","GAZPROM MARKETING & TRADING RETAIL LTD","40670600","147.82","HOUSING SERVICES - ENERGY","GAS","D420","GAS","HOUSING SERVICES","UTILITIES"
"http://statistics.data.gov.uk/id/local-authority/43UM","WOKING BOROUGH COUNCIL","15/08/2022","05/10/2022","0000481399/021","GAZPROM MARKETING & TRADING RETAIL LTD","40670600","102.60","HOUSING SERVICES - TEMPORARY ACCOMMODATION","GAS","D420","GAS","HOUSING SERVICES","UTILITIES"
"http://statistics.data.gov.uk/id/local-authority/43UM","WOKING BOROUGH COUNCIL","15/08/2022","05/10/2022","0000481399/022","GAZPROM MARKETING & TRADING RETAIL LTD","40670600","70.49","HOUSING SERVICES - TEMPORARY ACCOMMODATION","GAS","D420","GAS","HOUSING SERVICES","UTILITIES"
"http://statistics.data.gov.uk/id/local-authority/43UM","WOKING BOROUGH COUNCIL","15/08/2022","05/10/2022","0000481399/023","GAZPROM MARKETING & TRADING RETAIL LTD","40670600","90.76","HOUSING SERVICES - TEMPORARY ACCOMMODATION","GAS","D420","GAS","HOUSING SERVICES","UTILITIES"
"http://statistics.data.gov.uk/id/local-authority/43UM","WOKING BOROUGH COUNCIL","15/08/2022","05/10/2022","0000481399/024","GAZPROM MARKETING & TRADING RETAIL LTD","40670600","402.69","HOUSING SERVICES - ENERGY","GAS","D420","GAS","HOUSING SERVICES","UTILITIES"
"http://statistics.data.gov.uk/id/local-authority/43UM","WOKING BOROUGH COUNCIL","15/08/2022","05/10/2022","0000481399/025","GAZPROM MARKETING & TRADING RETAIL LTD","40670600","327.86","HOUSING SERVICES - ENERGY","GAS","D420","GAS","HOUSING SERVICES","UTILITIES"
"http://statistics.data.gov.uk/id/local-authority/43UM","WOKING BOROUGH COUNCIL","15/08/2022","05/10/2022","0000481399/026","GAZPROM MARKETING & TRADING RETAIL LTD","40670600","94.57","ASSET MANAGEMENT - PROVINCIAL HOUSE","GAS","D420","GAS","ASSET MANAGEMENT","UTILITIES"
"http://statistics.data.gov.uk/id/local-authority/43UM","WOKING BOROUGH COUNCIL","15/08/2022","05/10/2022","0000481399/027","GAZPROM MARKETING & TRADING RETAIL LTD","40670600","150.42","HOUSING SERVICES - ENERGY","GAS","D420","GAS","HOUSING SERVICES","UTILITIES"
"http://statistics.data.gov.uk/id/local-authority/43UM","WOKING BOROUGH COUNCIL","15/08/2022","05/10/2022","0000481399/028","GAZPROM MARKETING & TRADING RETAIL LTD","40670600","117.33","HOUSING SERVICES - ENERGY","GAS","D420","GAS","HOUSING SERVICES","UTILITIES"
"http://statistics.data.gov.uk/id/local-authority/43UM","WOKING BOROUGH COUNCIL","15/08/2022","05/10/2022","0000481399/029","GAZPROM MARKETING & TRADING RETAIL LTD","40670600","116.00","HOUSING SERVICES - ENERGY","GAS","D420","GAS","HOUSING SERVICES","UTILITIES"
"http://statistics.data.gov.uk/id/local-authority/43UM","WOKING BOROUGH COUNCIL","15/08/2022","05/10/2022","0000481399/030","GAZPROM MARKETING & TRADING RETAIL LTD","40670600","128.41","HOUSING SERVICES - ENERGY","GAS","D420","GAS","HOUSING SERVICES","UTILITIES"
"http://statistics.data.gov.uk/id/local-authority/43UM","WOKING BOROUGH COUNCIL","15/08/2022","05/10/2022","0000481399/031","GAZPROM MARKETING & TRADING RETAIL LTD","40670600","115.13","HOUSING SERVICES - ENERGY","GAS","D420","GAS","HOUSING SERVICES","UTILITIES"
"http://statistics.data.gov.uk/id/local-authority/43UM","WOKING BOROUGH COUNCIL","15/08/2022","05/10/2022","0000481399/032","GAZPROM MARKETING & TRADING RETAIL LTD","40670600","489.92","HOUSING SERVICES - ENERGY","GAS","D420","GAS","HOUSING SERVICES","UTILITIES"
"http://statistics.data.gov.uk/id/local-authority/43UM","WOKING BOROUGH COUNCIL","15/08/2022","05/10/2022","0000481399/033","GAZPROM MARKETING & TRADING RETAIL LTD","40670600","285.80","HOUSING SERVICES - ENERGY","GAS","D420","GAS","HOUSING SERVICES","UTILITIES"
"http://statistics.data.gov.uk/id/local-authority/43UM","WOKING BOROUGH COUNCIL","15/08/2022","05/10/2022","0000481399/034","GAZPROM MARKETING & TRADING RETAIL LTD","40670600","471.29","HOUSING SERVICES - ENERGY","GAS","D420","GAS","HOUSING SERVICES","UTILITIES"
"http://statistics.data.gov.uk/id/local-authority/43UM","WOKING BOROUGH COUNCIL","15/08/2022","05/10/2022","0000481399/035","GAZPROM MARKETING & TRADING RETAIL LTD","40670600","140.45","HOUSING SERVICES - ENERGY","GAS","D420","GAS","HOUSING SERVICES","UTILITIES"
"http://statistics.data.gov.uk/id/local-authority/43UM","WOKING BOROUGH COUNCIL","15/08/2022","05/10/2022","0000481399/036","GAZPROM MARKETING & TRADING RETAIL LTD","40670600","602.79","HOUSING SERVICES - ENERGY","GAS","D420","GAS","HOUSING SERVICES","UTILITIES"
"http://statistics.data.gov.uk/id/local-authority/43UM","WOKING BOROUGH COUNCIL","15/08/2022","05/10/2022","0000481399/037","GAZPROM MARKETING & TRADING RETAIL LTD","40670600","94.08","HOUSING SERVICES - ENERGY","CLIMATE CHANGE LEVY","D430","CLIMATE CHANGE LEVY","HOUSING SERVICES","UTILITIES"
"http://statistics.data.gov.uk/id/local-authority/43UM","WOKING BOROUGH COUNCIL","15/08/2022","05/10/2022","0000481399/038","GAZPROM MARKETING & TRADING RETAIL LTD","40670600","378.32","HOUSING SERVICES - ENERGY","GAS","D420","GAS","HOUSING SERVICES","UTILITIES"
"http://statistics.data.gov.uk/id/local-authority/43UM","WOKING BOROUGH COUNCIL","15/08/2022","05/10/2022","0000481399/039","GAZPROM MARKETING & TRADING RETAIL LTD","40670600","61.23","HOUSING SERVICES - DISABLED FACILITIES GRANTS","GAS","D420","GAS","HOUSING SERVICES","UTILITIES"
"http://statistics.data.gov.uk/id/local-authority/43UM","WOKING BOROUGH COUNCIL","15/08/2022","05/10/2022","0000481399/040","GAZPROM MARKETING & TRADING RETAIL LTD","40670600","450.52","HOUSING SERVICES - ENERGY","GAS","D420","GAS","HOUSING SERVICES","UTILITIES"
"http://statistics.data.gov.uk/id/local-authority/43UM","WOKING BOROUGH COUNCIL","15/08/2022","05/10/2022","0000481399/041","GAZPROM MARKETING & TRADING RETAIL LTD","40670600","228.68","HOUSING SERVICES - ENERGY","GAS","D420","GAS","HOUSING SERVICES","UTILITIES"
"http://statistics.data.gov.uk/id/local-authority/43UM","WOKING BOROUGH COUNCIL","15/08/2022","05/10/2022","0000481399/042","GAZPROM MARKETING & TRADING RETAIL LTD","40670600","72.86","HOUSING SERVICES - ENERGY","GAS","D420","GAS","HOUSING SERVICES","UTILITIES"
"http://statistics.data.gov.uk/id/local-authority/43UM","WOKING BOROUGH COUNCIL","15/08/2022","05/10/2022","0000481399/043","GAZPROM MARKETING & TRADING RETAIL LTD","40670600","349.97","BUILDING SERVICES - L.M.C. - HOE VALLEY SCHOOL","GAS","D420","GAS","BUILDING SERVICES","UTILITIES"
"http://statistics.data.gov.uk/id/local-authority/43UM","WOKING BOROUGH COUNCIL","15/08/2022","05/10/2022","0000481399/044","GAZPROM MARKETING & TRADING RETAIL LTD","40670600","58.17","BUILDING SERVICES - L.M.C. - HOE VALLEY SCHOOL","CLIMATE CHANGE LEVY","D430","CLIMATE CHANGE LEVY","BUILDING SERVICES","UTILITIES"
"http://statistics.data.gov.uk/id/local-authority/43UM","WOKING BOROUGH COUNCIL","15/08/2022","05/10/2022","0000481399/045","GAZPROM MARKETING & TRADING RETAIL LTD","40670600","219.18","HOUSING SERVICES - ENERGY","GAS","D420","GAS","HOUSING SERVICES","UTILITIES"
"http://statistics.data.gov.uk/id/local-authority/43UM","WOKING BOROUGH COUNCIL","15/08/2022","05/10/2022","0000481399/046","GAZPROM MARKETING & TRADING RETAIL LTD","40670600","179.76","HOUSING SERVICES - ENERGY","GAS","D420","GAS","HOUSING SERVICES","UTILITIES"
"http://statistics.data.gov.uk/id/local-authority/43UM","WOKING BOROUGH COUNCIL","15/08/2022","05/10/2022","0000481399/047","GAZPROM MARKETING & TRADING RETAIL LTD","40670600","76.95","HOUSING SERVICES - ENERGY","GAS","D420","GAS","HOUSING SERVICES","UTILITIES"
"http://statistics.data.gov.uk/id/local-authority/43UM","WOKING BOROUGH COUNCIL","15/08/2022","05/10/2022","0000481399/048","GAZPROM MARKETING & TRADING RETAIL LTD","40670600","198.30","HOUSING SERVICES - ENERGY","GAS","D420","GAS","HOUSING SERVICES","UTILITIES"
"http://statistics.data.gov.uk/id/local-authority/43UM","WOKING BOROUGH COUNCIL","15/08/2022","05/10/2022","0000481399/049","GAZPROM MARKETING & TRADING RETAIL LTD","40670600","71.20","HOUSING SERVICES - ENERGY","GAS","D420","GAS","HOUSING SERVICES","UTILITIES"
"http://statistics.data.gov.uk/id/local-authority/43UM","WOKING BOROUGH COUNCIL","15/08/2022","05/10/2022","0000481399/050","GAZPROM MARKETING & TRADING RETAIL LTD","40670600","75.04","INDEPENDENT LIVING SERVICES - MEALS SERVICE-MOORCROFT","GAS","D420","GAS","INDEPENDENT LIVING SERVICES","UTILITIES"
"http://statistics.data.gov.uk/id/local-authority/43UM","WOKING BOROUGH COUNCIL","15/08/2022","05/10/2022","0000481399/051","GAZPROM MARKETING & TRADING RETAIL LTD","40670600","727.16","HOUSING SERVICES - ENERGY","GAS","D420","GAS","HOUSING SERVICES","UTILITIES"
"http://statistics.data.gov.uk/id/local-authority/43UM","WOKING BOROUGH COUNCIL","15/08/2022","05/10/2022","0000481399/052","GAZPROM MARKETING & TRADING RETAIL LTD","40670600","166.45","HOUSING SERVICES - ENERGY","GAS","D420","GAS","HOUSING SERVICES","UTILITIES"
"http://statistics.data.gov.uk/id/local-authority/43UM","WOKING BOROUGH COUNCIL","15/08/2022","05/10/2022","0000481399/053","GAZPROM MARKETING & TRADING RETAIL LTD","40670600","20.96","HOUSING SERVICES - ENERGY","GAS","D420","GAS","HOUSING SERVICES","UTILITIES"
"http://statistics.data.gov.uk/id/local-authority/43UM","WOKING BOROUGH COUNCIL","15/08/2022","05/10/2022","0000481399/054","GAZPROM MARKETING & TRADING RETAIL LTD","40670600","170.37","HOUSING SERVICES - ENERGY","GAS","D420","GAS","HOUSING SERVICES","UTILITIES"
"http://statistics.data.gov.uk/id/local-authority/43UM","WOKING BOROUGH COUNCIL","15/08/2022","05/10/2022","0000481399/055","GAZPROM MARKETING & TRADING RETAIL LTD","40670600","332.30","HOUSING SERVICES - ENERGY","GAS","D420","GAS","HOUSING SERVICES","UTILITIES"
"http://statistics.data.gov.uk/id/local-authority/43UM","WOKING BOROUGH COUNCIL","15/08/2022","05/10/2022","0000481399/056","GAZPROM MARKETING & TRADING RETAIL LTD","40670600","5.10","HOUSING SERVICES - ENERGY","GAS","D420","GAS","HOUSING SERVICES","UTILITIES"
"http://statistics.data.gov.uk/id/local-authority/43UM","WOKING BOROUGH COUNCIL","15/08/2022","05/10/2022","0000481399/057","GAZPROM MARKETING & TRADING RETAIL LTD","40670600","265.94","HOUSING SERVICES - ENERGY","GAS","D420","GAS","HOUSING SERVICES","UTILITIES"
"http://statistics.data.gov.uk/id/local-authority/43UM","WOKING BOROUGH COUNCIL","15/08/2022","05/10/2022","0000481399/058","GAZPROM MARKETING & TRADING RETAIL LTD","40670600","40.16","HOUSING SERVICES - ENERGY","GAS","D420","GAS","HOUSING SERVICES","UTILITIES"
"http://statistics.data.gov.uk/id/local-authority/43UM","WOKING BOROUGH COUNCIL","15/08/2022","05/10/2022","0000481399/059","GAZPROM MARKETING & TRADING RETAIL LTD","40670600","389.91","HOUSING SERVICES - ENERGY","GAS","D420","GAS","HOUSING SERVICES","UTILITIES"
"http://statistics.data.gov.uk/id/local-authority/43UM","WOKING BOROUGH COUNCIL","15/08/2022","05/10/2022","0000481399/060","GAZPROM MARKETING & TRADING RETAIL LTD","40670600","231.70","HOUSING SERVICES - ENERGY","GAS","D420","GAS","HOUSING SERVICES","UTILITIES"
"http://statistics.data.gov.uk/id/local-authority/43UM","WOKING BOROUGH COUNCIL","15/08/2022","05/10/2022","0000481399/061","GAZPROM MARKETING & TRADING RETAIL LTD","40670600","95.41","HOUSING SERVICES - ENERGY","GAS","D420","GAS","HOUSING SERVICES","UTILITIES"
"http://statistics.data.gov.uk/id/local-authority/43UM","WOKING BOROUGH COUNCIL","15/08/2022","05/10/2022","0000481399/062","GAZPROM MARKETING & TRADING RETAIL LTD","40670600","1108.67","LEISURE SERVICES - SHEERWATER LEISURE CENTRE","UTILITIES","Q506","UTILITIES","LEISURE SERVICES","UTILITIES"
"http://statistics.data.gov.uk/id/local-authority/43UM","WOKING BOROUGH COUNCIL","15/08/2022","05/10/2022","0000481399/063","GAZPROM MARKETING & TRADING RETAIL LTD","40670600","139.53","LEISURE SERVICES - SHEERWATER LEISURE CENTRE","UTILITIES","Q506","UTILITIES","LEISURE SERVICES","UTILITIES"
"http://statistics.data.gov.uk/id/local-authority/43UM","WOKING BOROUGH COUNCIL","15/08/2022","05/10/2022","0000481399/064","GAZPROM MARKETING & TRADING RETAIL LTD","40670600","512.72","HOUSING SERVICES - ENERGY","GAS","D420","GAS","HOUSING SERVICES","UTILITIES"
"http://statistics.data.gov.uk/id/local-authority/43UM","WOKING BOROUGH COUNCIL","15/08/2022","05/10/2022","0000481399/065","GAZPROM MARKETING & TRADING RETAIL LTD","40670600","225.42","HOUSING SERVICES - ENERGY","GAS","D420","GAS","HOUSING SERVICES","UTILITIES"
